Body Name,Transaction Number,Account Code Description,Expenses Type,Service Code,Service Area Categorisation,Supplier Name,Date,Amount
Bath and North East Somerset Council,10979846,LN5,Data Lines,P05,Neighbourhood Services,THE NETWORKING PEOPLE (TNP) LTD,04/10/2021,17.72
Bath and North East Somerset Council,10979846,LN5,Data Lines,P26,Economic Development & Resources,THE NETWORKING PEOPLE (TNP) LTD,04/10/2021,33.04
Bath and North East Somerset Council,10980004,YF2,Fees & Charges,P26,Economic Development & Resources,RS SECURITY LTD,04/10/2021,168
Bath and North East Somerset Council,10980325,LF1,Printing/Design,P26,Economic Development & Resources,ESP COLOUR LTD,04/10/2021,195.4
Bath and North East Somerset Council,10980208,7P8,Cash Related,,,CLARKSON'S INDEPENDENT FUNERAL DIRECTORS,04/10/2021,2606
Bath and North East Somerset Council,81023107,PG4,Support Grants,P26,Economic Development & Resources,COVID 19 BUSINESS GRANT,04/10/2021,500
Bath and North East Somerset Council,81023108,PG4,Support Grants,P26,Economic Development & Resources,COVID 19 BUSINESS GRANT,04/10/2021,500
Bath and North East Somerset Council,81023109,PG4,Support Grants,P26,Economic Development & Resources,COVID 19 BUSINESS GRANT,04/10/2021,500
Bath and North East Somerset Council,81023110,PG4,Support Grants,P26,Economic Development & Resources,COVID 19 BUSINESS GRANT,04/10/2021,500
Bath and North East Somerset Council,10980325,LF1,Printing/Design,P26,Economic Development & Resources,ESP COLOUR LTD,04/10/2021,438.5
Bath and North East Somerset Council,10980272,KB1,Hire of Vehicles,P05,Neighbourhood Services,SFS LIMITED T/A CTS,04/10/2021,440
Bath and North East Somerset Council,10980268,LK1,Fees,P29,"Children & Young People, Communities & Culture",SAFE AND SOUND UK LIMITED,04/10/2021,448
Bath and North East Somerset Council,10978315,3F7,External Fees,P23,"Housing, Planning & Economic Development",CAPITA SYMONDS,04/10/2021,459.23
Bath and North East Somerset Council,10980206,DB1,Agency Staff,P28,Adults & Council House Building,MAYFAIR STAFFING LTD,04/10/2021,473.7
Bath and North East Somerset Council,10980284,LJ4,Contracts,P05,Neighbourhood Services,VOLKSWAGEN GROUP UNITED KINGDOM LTD,04/10/2021,485.9
Bath and North East Somerset Council,10980192,3F7,External Fees,P22,Climate Emergency & Neighbourhood Services,CLARKE WILLMOTT,04/10/2021,498
Bath and North East Somerset Council,10980352,EA1,Training,P26,Economic Development & Resources,INSPIRED 2 LEARN,04/10/2021,500
Bath and North East Somerset Council,10980220,LA1,Equipment Purchase (Non Medical),P26,Economic Development & Resources,NE APPLIANCES,04/10/2021,500
Bath and North East Somerset Council,10980293,LK1,Fees,P27,Climate & Sustainable Travel,WESSEX WATER SERVICES LIMITED,04/10/2021,512.14
Bath and North East Somerset Council,10980237,DB1,Agency Staff,P28,Adults & Council House Building,THORNBURY NURSING SERVICES,04/10/2021,513.21
Bath and North East Somerset Council,81022957,PB3,Payments to Other Establishments,P26,Economic Development & Resources,CURO CHOICE LIMITED,04/10/2021,716.39
Bath and North East Somerset Council,81022958,PB3,Payments to Other Establishments,P26,Economic Development & Resources,CURO CHOICE LIMITED,04/10/2021,941.16
Bath and North East Somerset Council,81022959,PB3,Payments to Other Establishments,P26,Economic Development & Resources,CURO CHOICE LIMITED,04/10/2021,1010.75
Bath and North East Somerset Council,10980214,PB4,Payments to Private Contractors,P05,Neighbourhood Services,M J CHURCH PLANT LTD,04/10/2021,572.85
Bath and North East Somerset Council,10980341,3C4,Building Works,P19,Resources and Deputy Leader,ZETA COMPLIANCE SERVICES LTD,04/10/2021,575
Bath and North East Somerset Council,10980004,DB1,Agency Staff,P26,Economic Development & Resources,RS SECURITY LTD,04/10/2021,585
Bath and North East Somerset Council,10980419,LA5,Materials,P05,Neighbourhood Services,WEST KINGTON NURSERIES LTD,04/10/2021,606.76
Bath and North East Somerset Council,10979846,LP1,Hardware Purchase,P26,Economic Development & Resources,THE NETWORKING PEOPLE (TNP) LTD,04/10/2021,618.66
Bath and North East Somerset Council,10980373,LD1,Protective & Safety Clothing & PPE,P05,Neighbourhood Services,ARCO SOUTH WEST,04/10/2021,628.16
Bath and North East Somerset Council,10980299,LF1,Printing/Design,P30,Planning,STANFORD MARSH LIMITED,04/10/2021,637.5
Bath and North East Somerset Council,10980371,LD1,Protective & Safety Clothing & PPE,P05,Neighbourhood Services,SMI GROUP LTD,04/10/2021,678
Bath and North East Somerset Council,10980216,KB1,Hire of Vehicles,P05,Neighbourhood Services,ROBERTS (BATH) LTD,04/10/2021,779.65
Bath and North East Somerset Council,10973030,LX1,Educational Activity,P29,"Children & Young People, Communities & Culture",TEACHING PERSONNEL,04/10/2021,794.48
Bath and North East Somerset Council,10980143,HP3,Room Hire Charges,P29,"Children & Young People, Communities & Culture",ST LUKE'S P.C.C.,04/10/2021,850
Bath and North East Somerset Council,10980322,LM1,Volunt Homes Placements Top/Up,P29,"Children & Young People, Communities & Culture",MEDGEN HEALTHCARE RECRUITMENT,04/10/2021,886.88
Bath and North East Somerset Council,10980134,HA1,Responsive Maintenance,P26,Economic Development & Resources,BS3 SERVICES LTD,04/10/2021,932.56
Bath and North East Somerset Council,10980356,3N7,Misc. Costs,P19,Resources and Deputy Leader,MANNINGS FACILITIES MANAGEMENT LTD,04/10/2021,936.5
Bath and North East Somerset Council,10980319,LJ4,Contracts,P27,Climate & Sustainable Travel,GRADKO INTERNATIONAL LIMITED,04/10/2021,953.9
Bath and North East Somerset Council,10980197,LD1,Protective & Safety Clothing & PPE,P25,Transport Services,K.I.T. CO,04/10/2021,975.2
Bath and North East Somerset Council,10980224,LM4,Respite Care,P29,"Children & Young People, Communities & Culture",THORNBURY NURSING SERVICES,04/10/2021,993.03
Bath and North East Somerset Council,81022955,PB3,Payments to Other Establishments,P26,Economic Development & Resources,YOUTH CONNECT SOUTH WEST,04/10/2021,1010.75
Bath and North East Somerset Council,81022961,PB3,Payments to Other Establishments,P26,Economic Development & Resources,YOUTH CONNECT SOUTH WEST,04/10/2021,1010.75
Bath and North East Somerset Council,81023111,LE1,Education Payment (independent school),P29,"Children & Young People, Communities & Culture",PALLADIAN ACADEMY TRUST RE RALPH ALLEN,04/10/2021,1050
Bath and North East Somerset Council,10980266,LM4,Respite Care,P29,"Children & Young People, Communities & Culture",THORNBURY NURSING SERVICES,04/10/2021,1063.43
Bath and North East Somerset Council,10980215,PB4,Payments to Private Contractors,P05,Neighbourhood Services,M J CHURCH PLANT LTD,04/10/2021,1091.24
Bath and North East Somerset Council,10980320,LM2,Foster Carer Allowances,P29,"Children & Young People, Communities & Culture",KEYS PCE LIMITED,04/10/2021,1117.86
Bath and North East Somerset Council,10980243,DB1,Agency Staff,P28,Adults & Council House Building,NEWCROSS HEALTHCARE SOLUTIONS LTD,04/10/2021,1152.8
Bath and North East Somerset Council,10980012,3C4,Building Works,P19,Resources and Deputy Leader,DAWSON STEEPLEJACKS LTD,04/10/2021,1165
Bath and North East Somerset Council,10980240,DB1,Agency Staff,P28,Adults & Council House Building,NEWCROSS HEALTHCARE SOLUTIONS LTD,04/10/2021,1249.33
Bath and North East Somerset Council,10980082,LK1,Fees,P29,"Children & Young People, Communities & Culture",REDACTED,04/10/2021,3522
Bath and North East Somerset Council,10979889,LA5,Materials,P05,Neighbourhood Services,MR L D TAYLOR T/A AQUARIUS SOLUTIONS,04/10/2021,1511.3
Bath and North East Somerset Council,10980238,DB1,Agency Staff,P28,Adults & Council House Building,NEWCROSS HEALTHCARE SOLUTIONS LTD,04/10/2021,1524.21
Bath and North East Somerset Council,10979822,KE2,Payment to Parents/Students,P29,"Children & Young People, Communities & Culture",REDACTED,04/10/2021,517.28
Bath and North East Somerset Council,10980217,KB1,Hire of Vehicles,P05,Neighbourhood Services,ROBERTS (BATH) LTD,04/10/2021,1550
Bath and North East Somerset Council,10980353,HA6,Planned Maintenance PCB,P26,Economic Development & Resources,MANNINGS FACILITIES MANAGEMENT LTD,04/10/2021,1559
Bath and North East Somerset Council,10980290,LM1,Volunt Homes Placements Top/Up,P29,"Children & Young People, Communities & Culture",DAVID SHAW,04/10/2021,1650
Bath and North East Somerset Council,10980295,LJ1,Consultants Fees,P26,Economic Development & Resources,AVON WILDLIFE TRUST,04/10/2021,1668.56
Bath and North East Somerset Council,10980196,LJ1,Consultants Fees,P26,Economic Development & Resources,AVON WILDLIFE TRUST,04/10/2021,1700
Bath and North East Somerset Council,10978650,3F7,External Fees,P23,"Housing, Planning & Economic Development",BRYAN CAVE LEIGHTON PAISNER LLP,04/10/2021,1757.8
Bath and North East Somerset Council,10980241,DB1,Agency Staff,P28,Adults & Council House Building,NURSE PLUS AND CARER PLUS (UK) LTD,04/10/2021,2250.91
Bath and North East Somerset Council,10980382,3M3,Design Costs,P23,"Housing, Planning & Economic Development",NICHOLAS PEARSON ASSOCIATES,04/10/2021,1874.5
Bath and North East Somerset Council,10980387,HA1,Responsive Maintenance,P26,Economic Development & Resources,TYCO FIRE & INTEGRATED SOLUTIONS (UK) LTD,04/10/2021,1962
Bath and North East Somerset Council,81023112,LE1,Education Payment (independent school),P29,"Children & Young People, Communities & Culture",CLEVEDON LEARNING TRUST,04/10/2021,2000
Bath and North East Somerset Council,81023114,LE1,Education Payment (independent school),P29,"Children & Young People, Communities & Culture",ST AUGUSTINE'S CATHOLIC COLLEGE,04/10/2021,2000
Bath and North East Somerset Council,10975268,3F7,External Fees,P23,"Housing, Planning & Economic Development",BRISTOL & BATH HERITAGE CONSULTANCY LIMITED,04/10/2021,2000
Bath and North East Somerset Council,10980400,LL3,Supported Living,P28,Adults & Council House Building,SWAN Advice Network,04/10/2021,2264
Bath and North East Somerset Council,10980117,HE1,General Maintenance,P25,Transport Services,BUS SHELTERS LTD,04/10/2021,2264.95
Bath and North East Somerset Council,10980219,KA3,Fuel,P05,Neighbourhood Services,CERTAS ENERGY UK LTD,04/10/2021,2404.4
Bath and North East Somerset Council,10980275,LJ1,Consultants Fees,P28,Adults & Council House Building,FRASER HEAD,04/10/2021,2450
Bath and North East Somerset Council,10976571,3F7,External Fees,P23,"Housing, Planning & Economic Development",BAM CONSTRUCTION LIMITED,04/10/2021,2507.36
Bath and North East Somerset Council,10980324,HE1,General Maintenance,P26,Economic Development & Resources,TESGL LTD,04/10/2021,2560
Bath and North East Somerset Council,81022956,PB3,Payments to Other Establishments,P26,Economic Development & Resources,ROSEATE VILLA (EIDERDOWN LIMITED),04/10/2021,941.16
Bath and North East Somerset Council,81022960,PB3,Payments to Other Establishments,P26,Economic Development & Resources,ROSEATE VILLA (EIDERDOWN LIMITED),04/10/2021,1010.75
Bath and North East Somerset Council,10979695,LW9,Other Expenses,P05,Neighbourhood Services,TRADE FURNISHING SOLUTIONS LTD,04/10/2021,2983.2
Bath and North East Somerset Council,81023113,LE1,Education Payment (independent school),P29,"Children & Young People, Communities & Culture",ACORN EDUCATION TRUST,04/10/2021,3390
Bath and North East Somerset Council,10980364,3F7,External Fees,P23,"Housing, Planning & Economic Development",METHOD CONSULTING LLP,04/10/2021,3500
Bath and North East Somerset Council,10979846,LN5,Data Lines,P26,Economic Development & Resources,THE NETWORKING PEOPLE (TNP) LTD,04/10/2021,3516.03
Bath and North East Somerset Council,10980323,LM2,Foster Carer Allowances,P29,"Children & Young People, Communities & Culture",FIVE RIVERS CHILD CARE LTD,04/10/2021,3597.86
Bath and North East Somerset Council,10980199,LA4,Equipment Hire/Rent,P29,"Children & Young People, Communities & Culture",ARCHERS MARQUEES,04/10/2021,3616
Bath and North East Somerset Council,10980201,HA2,Servicing,P26,Economic Development & Resources,FACULTATIEVE TECHNOLOGIES LTD,04/10/2021,3656.4
Bath and North East Somerset Council,10980230,HE1,General Maintenance,P28,Adults & Council House Building,N K S CONTRACTS LTD,04/10/2021,3754.92
Bath and North East Somerset Council,10980251,LM2,Foster Carer Allowances,P29,"Children & Young People, Communities & Culture",FOSTERPLUS LTD,04/10/2021,3771.3
Bath and North East Somerset Council,10978660,3F7,External Fees,P23,"Housing, Planning & Economic Development",BAM CONSTRUCTION LIMITED,04/10/2021,3887.44
Bath and North East Somerset Council,10978315,3F7,External Fees,P23,"Housing, Planning & Economic Development",CAPITA SYMONDS,04/10/2021,4133.11
Bath and North East Somerset Council,10980397,3F7,External Fees,P22,Climate Emergency & Neighbourhood Services,AECOM LIMITED,04/10/2021,4205
Bath and North East Somerset Council,10980188,HK1,Highway Maintenance,P05,Neighbourhood Services,WDM LIMITED,04/10/2021,4704.78
Bath and North East Somerset Council,10980328,LM3,Residential Care,P29,"Children & Young People, Communities & Culture",TREVI,04/10/2021,4928.57
Bath and North East Somerset Council,10980304,LJ4,Contracts,P29,"Children & Young People, Communities & Culture",WECIL LTD,04/10/2021,4939.44
Bath and North East Somerset Council,10980334,3C4,Building Works,P21,Childrens Services,ADT FIRE & SECURITY PLC,04/10/2021,5000
Bath and North East Somerset Council,10980310,LM2,Foster Carer Allowances,P29,"Children & Young People, Communities & Culture",FOSTERING MATTERS LTD,04/10/2021,5040
Bath and North East Somerset Council,10980202,3C4,Building Works,P21,Childrens Services,ADT FIRE & SECURITY PLC,04/10/2021,5887
Bath and North East Somerset Council,10978666,3F7,External Fees,P23,"Housing, Planning & Economic Development",MACE LIMITED,04/10/2021,6000
Bath and North East Somerset Council,10977931,3F7,External Fees,P23,"Housing, Planning & Economic Development",GARDINER & THEOBALD LLP,04/10/2021,7500
Bath and North East Somerset Council,10980407,3F7,External Fees,P19,Resources and Deputy Leader,OVE ARUP & PARTNERS,04/10/2021,7800
Bath and North East Somerset Council,10979974,LM1,Volunt Homes Placements Top/Up,P29,"Children & Young People, Communities & Culture",LEARNING PARTNERSHIP WEST LIMITED,04/10/2021,9240
Bath and North East Somerset Council,10980254,LM1,Volunt Homes Placements Top/Up,P29,"Children & Young People, Communities & Culture",FIRST THOUGHT CARE SERVICES,04/10/2021,9240
Bath and North East Somerset Council,10979816,3C4,Building Works,P25,Transport Services,ADT FIRE & SECURITY PLC,04/10/2021,10000
Bath and North East Somerset Council,10980303,3E5,IT Hardware,P19,Resources and Deputy Leader,STONE COMPUTERS LTD,04/10/2021,12599
Bath and North East Somerset Council,10980354,3E5,IT Hardware,P19,Resources and Deputy Leader,STONE COMPUTERS LTD,04/10/2021,12599
Bath and North East Somerset Council,10980337,LJ4,Contracts,P29,"Children & Young People, Communities & Culture",OFF THE RECORD (B&NES),04/10/2021,15500
Bath and North East Somerset Council,10980398,LJ4,Contracts,P28,Adults & Council House Building,SIRONA CARE SERVICES LTD,04/10/2021,17937.5
Bath and North East Somerset Council,10980253,LM1,Volunt Homes Placements Top/Up,P29,"Children & Young People, Communities & Culture",CAMBIAN CHILDCARE LIMITED,04/10/2021,19928.66
Bath and North East Somerset Council,10980307,LM1,Volunt Homes Placements Top/Up,P29,"Children & Young People, Communities & Culture",ABILITY SUPPORTED LIVING LIMITED,04/10/2021,22476.97
Bath and North East Somerset Council,10980386,LJ4,Contracts,P29,"Children & Young People, Communities & Culture",OFF THE RECORD (B&NES),04/10/2021,23059.25
Bath and North East Somerset Council,10980218,LJ1,Consultants Fees,P30,Planning,WSP UK LTD,04/10/2021,25000
Bath and North East Somerset Council,81023115,LK1,Fees,P29,"Children & Young People, Communities & Culture",CITY OF BATH COLLEGE,04/10/2021,30000
Bath and North East Somerset Council,10980291,LM2,Foster Carer Allowances,P29,"Children & Young People, Communities & Culture",KEYS PCE LIMITED,04/10/2021,33535.71
Bath and North East Somerset Council,10980247,LJ1,Consultants Fees,P26,Economic Development & Resources,DELOITTE LLP,04/10/2021,49874
Bath and North East Somerset Council,10980306,LJ4,Contracts,P29,"Children & Young People, Communities & Culture",RICHMOND EVENT MANAGEMENT LTD,04/10/2021,78263.77
Bath and North East Somerset Council,10980169,LV2,Contributions to Organisations,P26,Economic Development & Resources,SOUTH GLOUCESTERSHIRE COUNCIL,04/10/2021,79339
Bath and North East Somerset Council,10980405,DB1,Agency Staff,P26,Economic Development & Resources,MATRIX SCM,04/10/2021,80477.26
Bath and North East Somerset Council,10980308,LJ4,Contracts,P29,"Children & Young People, Communities & Culture",RICHMOND EVENT MANAGEMENT LTD,04/10/2021,87795.95
Bath and North East Somerset Council,10980069,HK2,Street Lighting Maintenance,P05,Neighbourhood Services,VOLKERHIGHWAYS LIMITED,04/10/2021,121153.62
Bath and North East Somerset Council,10979784,3C4,Building Works,P25,Transport Services,DYER & BUTLER LTD,04/10/2021,144850.95
Bath and North East Somerset Council,10976588,3F7,External Fees,P23,"Housing, Planning & Economic Development",WALES AND WEST UTILITIES LTD,04/10/2021,162498.36
Bath and North East Somerset Council,10980369,PB4,Payments to Private Contractors,P05,Neighbourhood Services,SOUTH GLOUCESTERSHIRE COUNCIL,04/10/2021,224587.67
Bath and North East Somerset Council,81023155,LL5,Adoption Allowances,P29,"Children & Young People, Communities & Culture",REDACTED,06/10/2021,286
Bath and North East Somerset Council,81023155,LL5,Adoption Allowances,P29,"Children & Young People, Communities & Culture",REDACTED,06/10/2021,325.78
Bath and North East Somerset Council,10980600,LN4,Mobile Phones,P26,Economic Development & Resources,EE LIMITED,06/10/2021,18.96
Bath and North East Somerset Council,10980421,HN2,Gas,P28,Adults & Council House Building,SOUTHERN ELECTRIC,06/10/2021,37.22
Bath and North East Somerset Council,10980662,LF1,Printing/Design,P26,Economic Development & Resources,ZENITH MEDIA,06/10/2021,68
Bath and North East Somerset Council,10980383,3G1,Grants/Advances,P23,"Housing, Planning & Economic Development",AMENZ CONSTRUCTION L,06/10/2021,1527
Bath and North East Somerset Council,10980358,LF1,Printing/Design,P28,Adults & Council House Building,WHITEHALL PRINTING CO (AVON) LTD,06/10/2021,80
Bath and North East Somerset Council,10980248,3G1,Grants/Advances,P23,"Housing, Planning & Economic Development",AQUA SHOWERS,06/10/2021,3790
Bath and North East Somerset Council,10980344,3G1,Grants/Advances,P23,"Housing, Planning & Economic Development",ARMOUR INSTALLATIONS,06/10/2021,3890
Bath and North East Somerset Council,10980394,LW9,Other Expenses,P29,"Children & Young People, Communities & Culture",B&NES COUNCIL -  OFFICE SERVICES,06/10/2021,99
Bath and North East Somerset Council,10980394,LW9,Other Expenses,P29,"Children & Young People, Communities & Culture",B&NES COUNCIL -  OFFICE SERVICES,06/10/2021,10397.2
Bath and North East Somerset Council,10980358,LF1,Printing/Design,P26,Economic Development & Resources,WHITEHALL PRINTING CO (AVON) LTD,06/10/2021,159
Bath and North East Somerset Council,10980282,LC1,Provisions,P28,Adults & Council House Building,R D JOHNS LTD,06/10/2021,171.32
Bath and North East Somerset Council,10980358,LF1,Printing/Design,P29,"Children & Young People, Communities & Culture",WHITEHALL PRINTING CO (AVON) LTD,06/10/2021,253
Bath and North East Somerset Council,10980642,LJ4,Contracts,P29,"Children & Young People, Communities & Culture",Bath and North East Somerset Third Sector Group CIO,06/10/2021,57000
Bath and North East Somerset Council,81023120,LK4,Nursery/Childcare Vouchers,P29,"Children & Young People, Communities & Culture",CATERPILLARS DAY NURSERY,06/10/2021,4220
Bath and North East Somerset Council,81023125,LK4,Nursery/Childcare Vouchers,P29,"Children & Young People, Communities & Culture",COUNTRY GARDEN DAY NURSERY,06/10/2021,810
Bath and North East Somerset Council,81023227,PG4,Support Grants,P26,Economic Development & Resources,COVID 19 BUSINESS GRANT,06/10/2021,500
Bath and North East Somerset Council,81023228,PG4,Support Grants,P26,Economic Development & Resources,COVID 19 BUSINESS GRANT,06/10/2021,500
Bath and North East Somerset Council,81023229,PG4,Support Grants,P26,Economic Development & Resources,COVID 19 BUSINESS GRANT,06/10/2021,500
Bath and North East Somerset Council,81023230,PG4,Support Grants,P26,Economic Development & Resources,COVID 19 BUSINESS GRANT,06/10/2021,500
Bath and North East Somerset Council,81023231,PG4,Support Grants,P26,Economic Development & Resources,COVID 19 BUSINESS GRANT,06/10/2021,500
Bath and North East Somerset Council,81023232,PG4,Support Grants,P26,Economic Development & Resources,COVID 19 BUSINESS GRANT,06/10/2021,500
Bath and North East Somerset Council,81023233,PG4,Support Grants,P26,Economic Development & Resources,COVID 19 BUSINESS GRANT,06/10/2021,500
Bath and North East Somerset Council,10980483,3E5,IT Hardware,P19,Resources and Deputy Leader,BECHTLE DIRECT LTD,06/10/2021,422.96
Bath and North East Somerset Council,10980502,HA1,Responsive Maintenance,P26,Economic Development & Resources,MANNINGS FACILITIES MANAGEMENT LTD,06/10/2021,427.51
Bath and North East Somerset Council,10980500,HA1,Responsive Maintenance,P26,Economic Development & Resources,MANNINGS FACILITIES MANAGEMENT LTD,06/10/2021,429.52
Bath and North East Somerset Council,10980511,KA1,Repairs & Maintenance,P05,Neighbourhood Services,IMPACT FORK TRUCKS LIMITED,06/10/2021,432.8
Bath and North East Somerset Council,10980446,DB1,Agency Staff,P28,Adults & Council House Building,MAYFAIR STAFFING LTD,06/10/2021,433.57
Bath and North East Somerset Council,10980520,HA1,Responsive Maintenance,P26,Economic Development & Resources,MANNINGS FACILITIES MANAGEMENT LTD,06/10/2021,438.27
Bath and North East Somerset Council,10980471,HA1,Responsive Maintenance,P26,Economic Development & Resources,MANNINGS FACILITIES MANAGEMENT LTD,06/10/2021,450.92
Bath and North East Somerset Council,10980616,DB1,Agency Staff,P28,Adults & Council House Building,MAYFAIR STAFFING LTD,06/10/2021,455.49
Bath and North East Somerset Council,10980458,EA1,Training,P26,Economic Development & Resources,BLAKE TRAINING,06/10/2021,465
Bath and North East Somerset Council,10980426,LP1,Hardware Purchase,P26,Economic Development & Resources,IDOX SOFTWARE LTD,06/10/2021,475
Bath and North East Somerset Council,10979852,HA1,Responsive Maintenance,P26,Economic Development & Resources,REXON DAY CONSULTING LIMITED,06/10/2021,481.14
Bath and North East Somerset Council,10980666,EC9,Other Employee Expenses,P26,Economic Development & Resources,CORDELL HEALTH LTD,06/10/2021,497.9
Bath and North East Somerset Council,10980542,LP5,Software Support,P26,Economic Development & Resources,METRIC GROUP LIMITED,06/10/2021,499.5
Bath and North East Somerset Council,10980591,LH3,Publicity,P26,Economic Development & Resources,BATH SPA UNIVERSITY,06/10/2021,500
Bath and North East Somerset Council,10980448,DB1,Agency Staff,P28,Adults & Council House Building,MAYFAIR STAFFING LTD,06/10/2021,510.16
Bath and North East Somerset Council,10980469,HA1,Responsive Maintenance,P26,Economic Development & Resources,MANNINGS FACILITIES MANAGEMENT LTD,06/10/2021,516.72
Bath and North East Somerset Council,10980668,LA1,Equipment Purchase (Non Medical),P29,"Children & Young People, Communities & Culture",CONNEVANS LIMITED,06/10/2021,520
Bath and North East Somerset Council,81023261,PG1,Rent Allowances,P26,Economic Development & Resources,CURO,06/10/2021,507.3
Bath and North East Somerset Council,81023259,PG1,Rent Allowances,P26,Economic Development & Resources,CURO,06/10/2021,976.92
Bath and North East Somerset Council,81023257,PG1,Rent Allowances,P26,Economic Development & Resources,CURO,06/10/2021,1006.76
Bath and North East Somerset Council,81023245,PG1,Rent Allowances,P26,Economic Development & Resources,CURO,06/10/2021,1095.92
Bath and North East Somerset Council,81023258,PG1,Rent Allowances,P26,Economic Development & Resources,CURO,06/10/2021,1183.77
Bath and North East Somerset Council,81023262,PG1,Rent Allowances,P26,Economic Development & Resources,CURO,06/10/2021,2755.81
Bath and North East Somerset Council,10980503,HA1,Responsive Maintenance,P26,Economic Development & Resources,MANNINGS FACILITIES MANAGEMENT LTD,06/10/2021,555.9
Bath and North East Somerset Council,10980501,HA1,Responsive Maintenance,P26,Economic Development & Resources,MANNINGS FACILITIES MANAGEMENT LTD,06/10/2021,567.33
Bath and North East Somerset Council,81023131,KE3,Transport & Travel,P29,"Children & Young People, Communities & Culture",REDACTED,06/10/2021,121.9
Bath and North East Somerset Council,81023131,LM2,Foster Carer Allowances,P29,"Children & Young People, Communities & Culture",REDACTED,06/10/2021,154.22
Bath and North East Somerset Council,81023131,LM2,Foster Carer Allowances,P29,"Children & Young People, Communities & Culture",REDACTED,06/10/2021,154.22
Bath and North East Somerset Council,81023131,LM2,Foster Carer Allowances,P29,"Children & Young People, Communities & Culture",REDACTED,06/10/2021,312.56
Bath and North East Somerset Council,10978638,LH2,Advertising,P26,Economic Development & Resources,SOMER VALLEY FM COMMUNITY RADIO LTD,06/10/2021,571.25
Bath and North East Somerset Council,81023131,LM2,Foster Carer Allowances,P29,"Children & Young People, Communities & Culture",REDACTED,06/10/2021,312.56
Bath and North East Somerset Council,10980279,DB1,Agency Staff,P28,Adults & Council House Building,NEWCROSS HEALTHCARE SOLUTIONS LTD,06/10/2021,571.91
Bath and North East Somerset Council,10980529,KA1,Repairs & Maintenance,P05,Neighbourhood Services,IMPACT FORK TRUCKS LIMITED,06/10/2021,580
Bath and North East Somerset Council,10980618,DB1,Agency Staff,P28,Adults & Council House Building,MAYFAIR STAFFING LTD,06/10/2021,586.66
Bath and North East Somerset Council,10980672,LP1,Hardware Purchase,P28,Adults & Council House Building,HYPERTEC LTD,06/10/2021,590
Bath and North East Somerset Council,10980563,LJ4,Contracts,P05,Neighbourhood Services,AEBI SCHMIDT UK LIMITED,06/10/2021,606.8
Bath and North East Somerset Council,81023126,LK4,Nursery/Childcare Vouchers,P29,"Children & Young People, Communities & Culture",LITTLE STAR NURSERY,06/10/2021,610
Bath and North East Somerset Council,10980493,DB1,Agency Staff,P28,Adults & Council House Building,MAYFAIR STAFFING LTD,06/10/2021,610.35
Bath and North East Somerset Council,10980190,DB1,Agency Staff,P26,Economic Development & Resources,HAYS SPECIALIST RECRUITMENT LTD,06/10/2021,616.18
Bath and North East Somerset Council,81023123,LK4,Nursery/Childcare Vouchers,P29,"Children & Young People, Communities & Culture",ALICE PARK NURSERY,06/10/2021,620
Bath and North East Somerset Council,10980485,LA1,Equipment Purchase (Non Medical),P26,Economic Development & Resources,BATH CONTRACT FLOORING LTD,06/10/2021,625
Bath and North East Somerset Council,10980534,LA3,Equipment Maintenance (Non Medical),P05,Neighbourhood Services,CK INTERNATIONAL LTD,06/10/2021,650
Bath and North East Somerset Council,10980451,DB1,Agency Staff,P28,Adults & Council House Building,MAYFAIR STAFFING LTD,06/10/2021,657.72
Bath and North East Somerset Council,10980587,LJ4,Contracts,P30,Planning,WORCESTERSHIRE COUNTY COUNCIL,06/10/2021,675
Bath and North East Somerset Council,10980490,DB1,Agency Staff,P28,Adults & Council House Building,NEWCROSS HEALTHCARE SOLUTIONS LTD,06/10/2021,699.64
Bath and North East Somerset Council,10980484,LA1,Equipment Purchase (Non Medical),P26,Economic Development & Resources,BATH CONTRACT FLOORING LTD,06/10/2021,712.5
Bath and North East Somerset Council,81023212,LL5,Adoption Allowances,P29,"Children & Young People, Communities & Culture",REDACTED,06/10/2021,209.98
Bath and North East Somerset Council,10980516,LK1,Fees,P27,Climate & Sustainable Travel,WESSEX WATER SERVICES LIMITED,06/10/2021,736.58
Bath and North East Somerset Council,81023212,LL5,Adoption Allowances,P29,"Children & Young People, Communities & Culture",REDACTED,06/10/2021,209.98
Bath and North East Somerset Council,81023212,LL5,Adoption Allowances,P29,"Children & Young People, Communities & Culture",REDACTED,06/10/2021,234.86
Bath and North East Somerset Council,10980512,KB1,Hire of Vehicles,P05,Neighbourhood Services,ROBERTS (BATH) LTD,06/10/2021,750
Bath and North East Somerset Council,10980513,KB1,Hire of Vehicles,P05,Neighbourhood Services,ROBERTS (BATH) LTD,06/10/2021,750
Bath and North East Somerset Council,10980288,LJ1,Consultants Fees,P26,Economic Development & Resources,C TOBIN,06/10/2021,750
Bath and North East Somerset Council,10980539,KB1,Hire of Vehicles,P05,Neighbourhood Services,SFS LIMITED T/A CTS,06/10/2021,750.12
Bath and North East Somerset Council,81023184,KE3,Transport & Travel,P29,"Children & Young People, Communities & Culture",REDACTED,06/10/2021,29.7
Bath and North East Somerset Council,81023184,LM2,Foster Carer Allowances,P29,"Children & Young People, Communities & Culture",REDACTED,06/10/2021,854
Bath and North East Somerset Council,10980421,HN2,Gas,P28,Adults & Council House Building,SOUTHERN ELECTRIC,06/10/2021,763.96
Bath and North East Somerset Council,10980521,LN9,IT Security,P26,Economic Development & Resources,THE NETWORKING PEOPLE (TNP) LTD,06/10/2021,767.46
Bath and North East Somerset Council,10980662,LF1,Printing/Design,P26,Economic Development & Resources,ZENITH MEDIA,06/10/2021,788
Bath and North East Somerset Council,81023116,LK4,Nursery/Childcare Vouchers,P29,"Children & Young People, Communities & Culture",FIRST STEPS NURSERY,06/10/2021,1685
Bath and North East Somerset Council,10980531,KA1,Repairs & Maintenance,P05,Neighbourhood Services,HOLT JCB LTD,06/10/2021,807.57
Bath and North East Somerset Council,10980550,KA1,Repairs & Maintenance,P05,Neighbourhood Services,TRUCTYRE FLEET MANAGEMENT LTD,06/10/2021,835.94
Bath and North East Somerset Council,81023177,LL5,Adoption Allowances,P29,"Children & Young People, Communities & Culture",REDACTED,06/10/2021,261.8
Bath and North East Somerset Council,81023177,LL5,Adoption Allowances,P29,"Children & Young People, Communities & Culture",REDACTED,06/10/2021,286.78
Bath and North East Somerset Council,81023177,LL5,Adoption Allowances,P29,"Children & Young People, Communities & Culture",REDACTED,06/10/2021,300.88
Bath and North East Somerset Council,10980525,DB1,Agency Staff,P26,Economic Development & Resources,RS SECURITY LTD,06/10/2021,843
Bath and North East Somerset Council,10980547,PB4,Payments to Private Contractors,P05,Neighbourhood Services,ENVIRONMENTAL CONCERN LTD,06/10/2021,850
Bath and North East Somerset Council,10980548,PB4,Payments to Private Contractors,P05,Neighbourhood Services,ENVIRONMENTAL CONCERN LTD,06/10/2021,850
Bath and North East Somerset Council,10980551,PB4,Payments to Private Contractors,P05,Neighbourhood Services,ENVIRONMENTAL CONCERN LTD,06/10/2021,850
Bath and North East Somerset Council,10980282,LC1,Provisions,P28,Adults & Council House Building,R D JOHNS LTD,06/10/2021,865.82
Bath and North East Somerset Council,10980561,LK1,Fees,P26,Economic Development & Resources,HELEN M LINDSAY,06/10/2021,875.5
Bath and North East Somerset Council,10980567,HK1,Highway Maintenance,P27,Climate & Sustainable Travel,SEVERNSIDE TRANSPORTATION DATA COLLECTION,06/10/2021,900
Bath and North East Somerset Council,81023118,LK4,Nursery/Childcare Vouchers,P29,"Children & Young People, Communities & Culture",HIDDEN GARDEN DAY NURSERY/REDACTED,06/10/2021,1040
Bath and North East Somerset Council,10980461,HA1,Responsive Maintenance,P26,Economic Development & Resources,MANNINGS FACILITIES MANAGEMENT LTD,06/10/2021,947.18
Bath and North East Somerset Council,10980467,3C4,Building Works,P19,Resources and Deputy Leader,MANNINGS FACILITIES MANAGEMENT LTD,06/10/2021,947.32
Bath and North East Somerset Council,10980459,LX1,Educational Activity,P29,"Children & Young People, Communities & Culture",MSNSP - NORTON HILL,06/10/2021,1000
Bath and North East Somerset Council,10980643,3E6,IT Software,P19,Resources and Deputy Leader,HOLWEST LTD T/A DKA,06/10/2021,1000
Bath and North East Somerset Council,81023216,LM2,Foster Carer Allowances,P29,"Children & Young People, Communities & Culture",REDACTED,06/10/2021,669.77
Bath and North East Somerset Council,81023216,LM2,Foster Carer Allowances,P29,"Children & Young People, Communities & Culture",REDACTED,06/10/2021,669.77
Bath and North East Somerset Council,81023198,LM2,Foster Carer Allowances,P29,"Children & Young People, Communities & Culture",REDACTED,06/10/2021,312.56
Bath and North East Somerset Council,81023198,LM2,Foster Carer Allowances,P29,"Children & Young People, Communities & Culture",REDACTED,06/10/2021,351.64
Bath and North East Somerset Council,10980519,LA1,Equipment Purchase (Non Medical),P29,"Children & Young People, Communities & Culture",CONNEVANS LIMITED,06/10/2021,1040
Bath and North East Somerset Council,81023187,LL9,Special Guardianship,P29,"Children & Young People, Communities & Culture",REDACTED,06/10/2021,102.56
Bath and North East Somerset Council,81023187,LL9,Special Guardianship,P29,"Children & Young People, Communities & Culture",REDACTED,06/10/2021,102.56
Bath and North East Somerset Council,81023187,LL9,Special Guardianship,P29,"Children & Young People, Communities & Culture",REDACTED,06/10/2021,191.31
Bath and North East Somerset Council,81023187,LL9,Special Guardianship,P29,"Children & Young People, Communities & Culture",REDACTED,06/10/2021,191.31
Bath and North East Somerset Council,10980528,KB1,Hire of Vehicles,P05,Neighbourhood Services,SFS LIMITED T/A CTS,06/10/2021,1071.6
Bath and North East Somerset Council,10980530,KA1,Repairs & Maintenance,P05,Neighbourhood Services,HOLT JCB LTD,06/10/2021,1074.73
Bath and North East Somerset Council,81023207,LM2,Foster Carer Allowances,P29,"Children & Young People, Communities & Culture",REDACTED,06/10/2021,312.56
Bath and North East Somerset Council,81023207,LM2,Foster Carer Allowances,P29,"Children & Young People, Communities & Culture",REDACTED,06/10/2021,351.64
Bath and North East Somerset Council,81023207,LM2,Foster Carer Allowances,P29,"Children & Young People, Communities & Culture",REDACTED,06/10/2021,351.64
Bath and North East Somerset Council,81023122,LK4,Nursery/Childcare Vouchers,P29,"Children & Young People, Communities & Culture",SUNFLOWERS NURSERY LTD,06/10/2021,1110
Bath and North East Somerset Council,10980599,LH5,Marketing,P29,"Children & Young People, Communities & Culture",STEERS MCGILLAN EVES DESIGN LTD,06/10/2021,1125
Bath and North East Somerset Council,10980514,LJ4,Contracts,P05,Neighbourhood Services,ROBERTS (BATH) LTD,06/10/2021,1163.31
Bath and North East Somerset Council,10980460,LK1,Fees,P29,"Children & Young People, Communities & Culture",THE HUNTERCOMBE YOUNG PEOPLE LTD,06/10/2021,1225
Bath and North East Somerset Council,81023205,LL9,Special Guardianship,P29,"Children & Young People, Communities & Culture",REDACTED,06/10/2021,727.02
Bath and North East Somerset Council,10980505,LV9,Compensation Settlements,P28,Adults & Council House Building,REDACTED,06/10/2021,3000
Bath and North East Somerset Council,81023162,LM4,Respite Care,P29,"Children & Young People, Communities & Culture",REDACTED,06/10/2021,110.16
Bath and North East Somerset Council,81023162,LM4,Respite Care,P29,"Children & Young People, Communities & Culture",REDACTED,06/10/2021,110.16
Bath and North East Somerset Council,81023162,LM4,Respite Care,P29,"Children & Young People, Communities & Culture",REDACTED,06/10/2021,110.16
Bath and North East Somerset Council,81023162,LM2,Foster Carer Allowances,P29,"Children & Young People, Communities & Culture",REDACTED,06/10/2021,154.22
Bath and North East Somerset Council,81023162,LM4,Respite Care,P29,"Children & Young People, Communities & Culture",REDACTED,06/10/2021,183.6
Bath and North East Somerset Council,81023162,LM4,Respite Care,P29,"Children & Young People, Communities & Culture",REDACTED,06/10/2021,251.17
Bath and North East Somerset Council,81023162,LM4,Respite Care,P29,"Children & Young People, Communities & Culture",REDACTED,06/10/2021,315.79
Bath and North East Somerset Council,81023162,LM2,Foster Carer Allowances,P29,"Children & Young People, Communities & Culture",REDACTED,06/10/2021,442.1
Bath and North East Somerset Council,81023119,LK4,Nursery/Childcare Vouchers,P29,"Children & Young People, Communities & Culture",MIDFORD ROAD NURSERY,06/10/2021,2060
Bath and North East Somerset Council,10980499,HA1,Responsive Maintenance,P26,Economic Development & Resources,MANNINGS FACILITIES MANAGEMENT LTD,06/10/2021,1430.04
Bath and North East Somerset Council,81023199,LM1,Volunt Homes Placements Top/Up,P29,"Children & Young People, Communities & Culture",REDACTED,06/10/2021,50
Bath and North East Somerset Council,81023199,LM2,Foster Carer Allowances,P29,"Children & Young People, Communities & Culture",REDACTED,06/10/2021,79.57
Bath and North East Somerset Council,81023199,LL6,Needs & Services,P29,"Children & Young People, Communities & Culture",REDACTED,06/10/2021,129.57
Bath and North East Somerset Council,81023199,LM2,Foster Carer Allowances,P29,"Children & Young People, Communities & Culture",REDACTED,06/10/2021,351.64
Bath and North East Somerset Council,81023237,PG1,Rent Allowances,P26,Economic Development & Resources,REDACTED,06/10/2021,1200
Bath and North East Somerset Council,10980663,LK1,Fees,P29,"Children & Young People, Communities & Culture",YOUTH CONNECT SOUTH WEST,06/10/2021,1452.26
Bath and North East Somerset Council,81023153,LM2,Foster Carer Allowances,P29,"Children & Young People, Communities & Culture",REDACTED,06/10/2021,154.22
Bath and North East Somerset Council,81023153,LM2,Foster Carer Allowances,P29,"Children & Young People, Communities & Culture",REDACTED,06/10/2021,154.22
Bath and North East Somerset Council,81023153,LM2,Foster Carer Allowances,P29,"Children & Young People, Communities & Culture",REDACTED,06/10/2021,156.28
Bath and North East Somerset Council,81023153,LM2,Foster Carer Allowances,P29,"Children & Young People, Communities & Culture",REDACTED,06/10/2021,312.56
Bath and North East Somerset Council,81023153,LM2,Foster Carer Allowances,P29,"Children & Young People, Communities & Culture",REDACTED,06/10/2021,312.56
Bath and North East Somerset Council,81023153,LL9,Special Guardianship,P29,"Children & Young People, Communities & Culture",REDACTED,06/10/2021,466.78
Bath and North East Somerset Council,81023200,LL9,Special Guardianship,P29,"Children & Young People, Communities & Culture",REDACTED,06/10/2021,269.84
Bath and North East Somerset Council,81023200,LL9,Special Guardianship,P29,"Children & Young People, Communities & Culture",REDACTED,06/10/2021,269.84
Bath and North East Somerset Council,81023200,LL9,Special Guardianship,P29,"Children & Young People, Communities & Culture",REDACTED,06/10/2021,269.84
Bath and North East Somerset Council,10980557,KB1,Hire of Vehicles,P05,Neighbourhood Services,SMITH'S GLOUCESTER LTD,06/10/2021,1500
Bath and North East Somerset Council,10980656,LM2,Foster Carer Allowances,P29,"Children & Young People, Communities & Culture",DIDS LTD,06/10/2021,1508.04
Bath and North East Somerset Council,81023152,LL3,Supported Living,P28,Adults & Council House Building,REDACTED,06/10/2021,95
Bath and North East Somerset Council,81023152,LL3,Supported Living,P29,"Children & Young People, Communities & Culture",REDACTED,06/10/2021,95
Bath and North East Somerset Council,81023152,LL3,Supported Living,P29,"Children & Young People, Communities & Culture",REDACTED,06/10/2021,347.14
Bath and North East Somerset Council,81023152,LL3,Supported Living,P29,"Children & Young People, Communities & Culture",REDACTED,06/10/2021,547.71
Bath and North East Somerset Council,81023170,LL7,Residence Orders/CAO's,P29,"Children & Young People, Communities & Culture",REDACTED,06/10/2021,284.78
Bath and North East Somerset Council,81023170,LL7,Residence Orders/CAO's,P29,"Children & Young People, Communities & Culture",REDACTED,06/10/2021,284.78
Bath and North East Somerset Council,81023165,LM2,Foster Carer Allowances,P29,"Children & Young People, Communities & Culture",REDACTED,06/10/2021,77.11
Bath and North East Somerset Council,81023165,LM2,Foster Carer Allowances,P29,"Children & Young People, Communities & Culture",REDACTED,06/10/2021,77.11
Bath and North East Somerset Council,81023165,LM2,Foster Carer Allowances,P29,"Children & Young People, Communities & Culture",REDACTED,06/10/2021,77.11
Bath and North East Somerset Council,81023165,LM2,Foster Carer Allowances,P29,"Children & Young People, Communities & Culture",REDACTED,06/10/2021,128.52
Bath and North East Somerset Council,81023165,LM2,Foster Carer Allowances,P29,"Children & Young People, Communities & Culture",REDACTED,06/10/2021,128.52
Bath and North East Somerset Council,81023165,LM2,Foster Carer Allowances,P29,"Children & Young People, Communities & Culture",REDACTED,06/10/2021,128.52
Bath and North East Somerset Council,10980297,LL6,Needs & Services,P29,"Children & Young People, Communities & Culture",NEIL GIBSON,06/10/2021,1550
Bath and North East Somerset Council,81023165,LM2,Foster Carer Allowances,P29,"Children & Young People, Communities & Culture",REDACTED,06/10/2021,221.05
Bath and North East Somerset Council,81023165,LM2,Foster Carer Allowances,P29,"Children & Young People, Communities & Culture",REDACTED,06/10/2021,221.05
Bath and North East Somerset Council,81023165,LM2,Foster Carer Allowances,P29,"Children & Young People, Communities & Culture",REDACTED,06/10/2021,221.05
Bath and North East Somerset Council,81023156,LM2,Foster Carer Allowances,P29,"Children & Young People, Communities & Culture",REDACTED,06/10/2021,154.22
Bath and North East Somerset Council,81023156,LM2,Foster Carer Allowances,P29,"Children & Young People, Communities & Culture",REDACTED,06/10/2021,154.22
Bath and North East Somerset Council,81023156,LM2,Foster Carer Allowances,P29,"Children & Young People, Communities & Culture",REDACTED,06/10/2021,154.22
Bath and North East Somerset Council,81023156,LM2,Foster Carer Allowances,P29,"Children & Young People, Communities & Culture",REDACTED,06/10/2021,351.64
Bath and North East Somerset Council,81023156,LM2,Foster Carer Allowances,P29,"Children & Young People, Communities & Culture",REDACTED,06/10/2021,442.1
Bath and North East Somerset Council,10980639,LN9,IT Security,P26,Economic Development & Resources,VODAFONE LTD FORMERLY CABLE & WIRELESS,06/10/2021,1636.95
Bath and North East Somerset Council,81023178,LL9,Special Guardianship,P29,"Children & Young People, Communities & Culture",REDACTED,06/10/2021,351.64
Bath and North East Somerset Council,81023178,LL9,Special Guardianship,P29,"Children & Young People, Communities & Culture",REDACTED,06/10/2021,351.64
Bath and North East Somerset Council,81023168,KE3,Transport & Travel,P29,"Children & Young People, Communities & Culture",REDACTED,06/10/2021,75.6
Bath and North East Somerset Council,81023168,LM2,Foster Carer Allowances,P29,"Children & Young People, Communities & Culture",REDACTED,06/10/2021,154.22
Bath and North East Somerset Council,81023168,LM2,Foster Carer Allowances,P29,"Children & Young People, Communities & Culture",REDACTED,06/10/2021,154.22
Bath and North East Somerset Council,81023168,LM2,Foster Carer Allowances,P29,"Children & Young People, Communities & Culture",REDACTED,06/10/2021,312.56
Bath and North East Somerset Council,81023204,LM2,Foster Carer Allowances,P29,"Children & Young People, Communities & Culture",REDACTED,06/10/2021,312.56
Bath and North East Somerset Council,81023204,LM2,Foster Carer Allowances,P29,"Children & Young People, Communities & Culture",REDACTED,06/10/2021,351.64
Bath and North East Somerset Council,81023234,PG1,Rent Allowances,P26,Economic Development & Resources,REDACTED,06/10/2021,2025
Bath and North East Somerset Council,81023175,LM2,Foster Carer Allowances,P29,"Children & Young People, Communities & Culture",REDACTED,06/10/2021,154.22
Bath and North East Somerset Council,81023175,LM2,Foster Carer Allowances,P29,"Children & Young People, Communities & Culture",REDACTED,06/10/2021,257.04
Bath and North East Somerset Council,81023175,LM2,Foster Carer Allowances,P29,"Children & Young People, Communities & Culture",REDACTED,06/10/2021,536.7
Bath and North East Somerset Council,81023134,LL9,Special Guardianship,P29,"Children & Young People, Communities & Culture",REDACTED,06/10/2021,301.58
Bath and North East Somerset Council,81023134,LL9,Special Guardianship,P29,"Children & Young People, Communities & Culture",REDACTED,06/10/2021,381.86
Bath and North East Somerset Council,10979937,3F7,External Fees,P23,"Housing, Planning & Economic Development",BURO HAPPOLD LTD,06/10/2021,1880
Bath and North East Somerset Council,10980568,HK1,Highway Maintenance,P05,Neighbourhood Services,REACH PUBLISHING SERVICES LTD,06/10/2021,1881.6
Bath and North East Somerset Council,10980569,HK1,Highway Maintenance,P05,Neighbourhood Services,REACH PUBLISHING SERVICES LTD,06/10/2021,1881.6
Bath and North East Somerset Council,10980425,3G1,Grants/Advances,P23,"Housing, Planning & Economic Development",DOLPHIN LIFTS (WESTERN) LTD,06/10/2021,1935
Bath and North East Somerset Council,10980431,LK1,Fees,P26,Economic Development & Resources,HOLWEST LTD T/A DKA,06/10/2021,2000
Bath and North East Somerset Council,10980130,LL6,Needs & Services,P29,"Children & Young People, Communities & Culture",FIRST THOUGHT CARE SERVICES,06/10/2021,2130
Bath and North East Somerset Council,10980457,LJ1,Consultants Fees,P26,Economic Development & Resources,MRS R A LIPPIATT,06/10/2021,2142
Bath and North East Somerset Council,10980510,LN9,IT Security,P26,Economic Development & Resources,SEC-1 LTD,06/10/2021,2160.62
Bath and North East Somerset Council,81023117,LK4,Nursery/Childcare Vouchers,P29,"Children & Young People, Communities & Culture",ORCHARD LEA NURSERY LTD [KEYNSHAM],06/10/2021,900
Bath and North East Somerset Council,10980434,PB4,Payments to Private Contractors,P05,Neighbourhood Services,BRISTOL WASTE COMPANY LTD,06/10/2021,2487.84
Bath and North East Somerset Council,10980600,LN4,Mobile Phones,P26,Economic Development & Resources,EE LIMITED,06/10/2021,2646.93
Bath and North East Somerset Council,10980629,PB4,Payments to Private Contractors,P05,Neighbourhood Services,R M PENNY (PLANT HIRE & DEMOLITION) LTD,06/10/2021,2698.1
Bath and North East Somerset Council,81023127,LK4,Nursery/Childcare Vouchers,P29,"Children & Young People, Communities & Culture",COMBE DOWN NURSERY,06/10/2021,2810
Bath and North East Somerset Council,10980487,LA1,Equipment Purchase (Non Medical),P26,Economic Development & Resources,RAINBOW NETWORKS LTD T/A PROTEL COMMUNICATIONS,06/10/2021,2893.95
Bath and North East Somerset Council,81023129,LK4,Nursery/Childcare Vouchers,P29,"Children & Young People, Communities & Culture",FREE RANGERS FOREST SCHOOLS LTD,06/10/2021,2900
Bath and North East Somerset Council,10980245,LJ2,Legal Fees,P30,Planning,DANIEL STEDMAN JONES,06/10/2021,3000
Bath and North East Somerset Council,81023186,LL9,Special Guardianship,P29,"Children & Young People, Communities & Culture",REDACTED,06/10/2021,219.02
Bath and North East Somerset Council,81023186,LL9,Special Guardianship,P29,"Children & Young People, Communities & Culture",REDACTED,06/10/2021,295.18
Bath and North East Somerset Council,81023143,LM2,Foster Carer Allowances,P29,"Children & Young People, Communities & Culture",REDACTED,06/10/2021,154.22
Bath and North East Somerset Council,81023143,LM2,Foster Carer Allowances,P29,"Children & Young People, Communities & Culture",REDACTED,06/10/2021,536.7
Bath and North East Somerset Council,10980650,LM2,Foster Carer Allowances,P29,"Children & Young People, Communities & Culture",BY THE BRIDGE LIMITED,06/10/2021,3300.26
Bath and North East Somerset Council,10980651,LM2,Foster Carer Allowances,P29,"Children & Young People, Communities & Culture",BY THE BRIDGE LIMITED,06/10/2021,3300.26
Bath and North East Somerset Council,10980652,LM2,Foster Carer Allowances,P29,"Children & Young People, Communities & Culture",BY THE BRIDGE LIMITED,06/10/2021,3300.26
Bath and North East Somerset Council,10980647,LM2,Foster Carer Allowances,P29,"Children & Young People, Communities & Culture",BY THE BRIDGE LIMITED,06/10/2021,3302.74
Bath and North East Somerset Council,10980653,LM2,Foster Carer Allowances,P29,"Children & Young People, Communities & Culture",PARALLEL PARENTS,06/10/2021,3498.3
Bath and North East Somerset Council,10980441,DB1,Agency Staff,P28,Adults & Council House Building,NEWCROSS HEALTHCARE SOLUTIONS LTD,06/10/2021,3542.74
Bath and North East Somerset Council,10980489,HK1,Highway Maintenance,P25,Transport Services,DYNNIQ UK LTD,06/10/2021,3618.65
Bath and North East Somerset Council,10980635,PA3,Payments to Health Authorities,P28,Adults & Council House Building,"NHS BANES, SWINDON AND WILTSHIRE CCG",06/10/2021,3949.09
Bath and North East Somerset Council,10980427,LJ4,Contracts,P29,"Children & Young People, Communities & Culture",BATH AREA PLAY PROJECT,06/10/2021,4123.5
Bath and North East Somerset Council,10980636,PA3,Payments to Health Authorities,P28,Adults & Council House Building,"NHS BANES, SWINDON AND WILTSHIRE CCG",06/10/2021,4282.49
Bath and North East Somerset Council,10980637,LK1,Fees,P29,"Children & Young People, Communities & Culture","NHS BANES, SWINDON AND WILTSHIRE CCG",06/10/2021,5508.24
Bath and North East Somerset Council,10980575,3N7,Misc. Costs,P23,"Housing, Planning & Economic Development",AECOM LIMITED,06/10/2021,5599
Bath and North East Somerset Council,10980667,LJ4,Contracts,P29,"Children & Young People, Communities & Culture",S.W.A.L.L.O.W. LTD,06/10/2021,5624
Bath and North East Somerset Council,10980634,LK1,Fees,P29,"Children & Young People, Communities & Culture","NHS BANES, SWINDON AND WILTSHIRE CCG",06/10/2021,5801.34
Bath and North East Somerset Council,81023132,KE3,Transport & Travel,P29,"Children & Young People, Communities & Culture",REDACTED,06/10/2021,78.6
Bath and North East Somerset Council,81023132,LM2,Foster Carer Allowances,P29,"Children & Young People, Communities & Culture",REDACTED,06/10/2021,154.22
Bath and North East Somerset Council,81023132,LM2,Foster Carer Allowances,P29,"Children & Young People, Communities & Culture",REDACTED,06/10/2021,312.56
Bath and North East Somerset Council,10980440,DB1,Agency Staff,P28,Adults & Council House Building,NEWCROSS HEALTHCARE SOLUTIONS LTD,06/10/2021,5841.59
Bath and North East Somerset Council,10980468,LH1,Liability Insurance,Z99,Outside Revenue Accounts,CRAWFORD & COMPANY,06/10/2021,6363.8
Bath and North East Somerset Council,10980648,LM2,Foster Carer Allowances,P29,"Children & Young People, Communities & Culture",CAPSTONE FOSTER CARE (SOUTH WEST)  LTD,06/10/2021,6975
Bath and North East Somerset Council,10980326,3G1,Grants/Advances,P23,"Housing, Planning & Economic Development",H SEAMAN & SON,06/10/2021,6984
Bath and North East Somerset Council,10980630,LJ4,Contracts,P28,Adults & Council House Building,TARGETT BUSINESS TECHNOLOGY LIMITED,06/10/2021,7400
Bath and North East Somerset Council,10980504,3C4,Building Works,P19,Resources and Deputy Leader,HORDERS,06/10/2021,7445
Bath and North East Somerset Council,10980655,LM2,Foster Carer Allowances,P29,"Children & Young People, Communities & Culture",DIDS LTD,06/10/2021,7540.2
Bath and North East Somerset Council,10980661,LP5,Software Support,P26,Economic Development & Resources,CIVICA UK LTD,06/10/2021,7615.61
Bath and North East Somerset Council,10980452,DB3,Temporary Staff,P29,"Children & Young People, Communities & Culture",UNIVERSITY OF BRISTOL,06/10/2021,7975
Bath and North East Somerset Council,10980666,EC9,Other Employee Expenses,P26,Economic Development & Resources,CORDELL HEALTH LTD,06/10/2021,8178.66
Bath and North East Somerset Council,10980478,LH1,Liability Insurance,Z99,Outside Revenue Accounts,CRAWFORD & COMPANY,06/10/2021,8500
Bath and North East Somerset Council,81023191,LM2,Foster Carer Allowances,P29,"Children & Young People, Communities & Culture",REDACTED,06/10/2021,351.64
Bath and North East Somerset Council,10980401,LH1,Liability Insurance,Z99,Outside Revenue Accounts,CRAWFORD & COMPANY,06/10/2021,8793
Bath and North East Somerset Council,81023191,LM2,Foster Carer Allowances,P29,"Children & Young People, Communities & Culture",REDACTED,06/10/2021,442.1
Bath and North East Somerset Council,10980544,LK1,Fees,P29,"Children & Young People, Communities & Culture",CABOT LEARNING FEDERATION,06/10/2021,9282
Bath and North East Somerset Council,10980631,LL3,Supported Living,P28,Adults & Council House Building,POHWER,06/10/2021,12932.75
Bath and North East Somerset Council,10980482,LJ1,Consultants Fees,P26,Economic Development & Resources,INTERACTION ASSOCIATES LTD,06/10/2021,14006.25
Bath and North East Somerset Council,10980564,PB4,Payments to Private Contractors,P05,Neighbourhood Services,R M PENNY (PLANT HIRE & DEMOLITION) LTD,06/10/2021,17036.56
Bath and North East Somerset Council,10980559,PB4,Payments to Private Contractors,P05,Neighbourhood Services,R M PENNY (PLANT HIRE & DEMOLITION) LTD,06/10/2021,18502.02
Bath and North East Somerset Council,10980658,LM2,Foster Carer Allowances,P29,"Children & Young People, Communities & Culture",ENVOLVE CHILD CARE LIMITED,06/10/2021,18821.43
Bath and North East Somerset Council,10980496,LE1,Education Payment (independent school),P29,"Children & Young People, Communities & Culture",AURORA ASD LTD,06/10/2021,19838.37
Bath and North East Somerset Council,10980315,3V1,Vehicle Purchase,P22,Climate Emergency & Neighbourhood Services,MTS NATONWIDE LTD,06/10/2021,22644.77
Bath and North East Somerset Council,10980316,3V1,Vehicle Purchase,P22,Climate Emergency & Neighbourhood Services,MTS NATONWIDE LTD,06/10/2021,22644.77
Bath and North East Somerset Council,10980654,LM1,Volunt Homes Placements Top/Up,P29,"Children & Young People, Communities & Culture",MEDGEN HEALTHCARE RECRUITMENT,06/10/2021,22725.49
Bath and North East Somerset Council,10980495,LE1,Education Payment (independent school),P29,"Children & Young People, Communities & Culture",AURORA ASD LTD,06/10/2021,23985.68
Bath and North East Somerset Council,10980660,LM2,Foster Carer Allowances,P29,"Children & Young People, Communities & Culture",PREMIER CARE MANAGEMENT LTD,06/10/2021,25472
Bath and North East Somerset Council,10980657,LM2,Foster Carer Allowances,P29,"Children & Young People, Communities & Culture",DORSET EMERGENCY PLACEMENT SERIVCES,06/10/2021,25885
Bath and North East Somerset Council,10980607,3N7,Misc. Costs,P24,Community Services,AIVAF LTD,06/10/2021,25974.6
Bath and North East Somerset Council,10980481,LJ4,Contracts,P25,Transport Services,CHIPSIDE LIMITED,06/10/2021,33494.15
Bath and North East Somerset Council,10980479,LN9,IT Security,P26,Economic Development & Resources,INSIGHT DIRECT [UK] LTD,06/10/2021,36500
Bath and North East Somerset Council,10980436,LK1,Fees,P29,"Children & Young People, Communities & Culture",SOUTH GLOUCESTERSHIRE COUNCIL,06/10/2021,62000
Bath and North East Somerset Council,81023347,PG1,Rent Allowances,P26,Economic Development & Resources,ADVANCE HOUSING SUPPORT,07/10/2021,2267.56
Bath and North East Somerset Council,81023272,LM8,Home Care,P28,Adults & Council House Building,AMBER HOMECARE LTD,07/10/2021,404.96
Bath and North East Somerset Council,81023272,LM8,Home Care,P28,Adults & Council House Building,AMBER HOMECARE LTD,07/10/2021,559.08
Bath and North East Somerset Council,81023272,LM8,Home Care,P28,Adults & Council House Building,AMBER HOMECARE LTD,07/10/2021,907.06
Bath and North East Somerset Council,81023272,LM8,Home Care,P28,Adults & Council House Building,AMBER HOMECARE LTD,07/10/2021,966.16
Bath and North East Somerset Council,81023272,LM8,Home Care,P28,Adults & Council House Building,AMBER HOMECARE LTD,07/10/2021,1135.4
Bath and North East Somerset Council,81023272,LM8,Home Care,P28,Adults & Council House Building,AMBER HOMECARE LTD,07/10/2021,2036.37
Bath and North East Somerset Council,81023272,LM8,Home Care,P28,Adults & Council House Building,AMBER HOMECARE LTD,07/10/2021,2380.08
Bath and North East Somerset Council,81023324,PG1,Rent Allowances,P26,Economic Development & Resources,ANCHOR HANOVER GROUP,07/10/2021,1099.8
Bath and North East Somerset Council,81023349,PG1,Rent Allowances,P26,Economic Development & Resources,ASTER COMMUNITIES,07/10/2021,12094.96
Bath and North East Somerset Council,81023370,PG1,Rent Allowances,P26,Economic Development & Resources,BATH & DISTRICT LIFE CARE,07/10/2021,3953.08
Bath and North East Somerset Council,81023289,LM8,Home Care,P28,Adults & Council House Building,CARE AND RESPITE ENGLAND LTD,07/10/2021,711.2
Bath and North East Somerset Council,81023289,LM8,Home Care,P28,Adults & Council House Building,CARE AND RESPITE ENGLAND LTD,07/10/2021,1234.44
Bath and North East Somerset Council,81023289,LM8,Home Care,P28,Adults & Council House Building,CARE AND RESPITE ENGLAND LTD,07/10/2021,1295.4
Bath and North East Somerset Council,81023289,LM8,Home Care,P28,Adults & Council House Building,CARE AND RESPITE ENGLAND LTD,07/10/2021,1955.8
Bath and North East Somerset Council,81023289,LM8,Home Care,P28,Adults & Council House Building,CARE AND RESPITE ENGLAND LTD,07/10/2021,2242.2
Bath and North East Somerset Council,81023289,LM8,Home Care,P28,Adults & Council House Building,CARE AND RESPITE ENGLAND LTD,07/10/2021,2311.4
Bath and North East Somerset Council,81023289,LM8,Home Care,P28,Adults & Council House Building,CARE AND RESPITE ENGLAND LTD,07/10/2021,4399.28
Bath and North East Somerset Council,81023292,LM8,Home Care,P28,Adults & Council House Building,CARE UNITE LTD (HOME INSTEAD CARE BRISTOL EAST),07/10/2021,10983.9
Bath and North East Somerset Council,81023335,PG1,Rent Allowances,P26,Economic Development & Resources,CENTRIX PROPERTIES LTD,07/10/2021,750
Bath and North East Somerset Council,81023278,LM6,Nursing Care,P28,Adults & Council House Building,CHERRY GARDEN PROPERTIES LTD,07/10/2021,117.86
Bath and North East Somerset Council,81023278,LM6,Nursing Care,P28,Adults & Council House Building,CHERRY GARDEN PROPERTIES LTD,07/10/2021,825
Bath and North East Somerset Council,81023373,PG4,Support Grants,P26,Economic Development & Resources,COVID 19 BUSINESS GRANT,07/10/2021,500
Bath and North East Somerset Council,81023374,PG4,Support Grants,P26,Economic Development & Resources,COVID 19 BUSINESS GRANT,07/10/2021,500
Bath and North East Somerset Council,81023375,PG4,Support Grants,P26,Economic Development & Resources,COVID 19 BUSINESS GRANT,07/10/2021,500
Bath and North East Somerset Council,81023376,PG4,Support Grants,P26,Economic Development & Resources,COVID 19 BUSINESS GRANT,07/10/2021,500
Bath and North East Somerset Council,81023377,PG4,Support Grants,P26,Economic Development & Resources,COVID 19 BUSINESS GRANT,07/10/2021,500
Bath and North East Somerset Council,10980713,LJ4,Contracts,P28,Adults & Council House Building,TEC SERVICES ASSOCIATION CIC,07/10/2021,420
Bath and North East Somerset Council,10980736,HA3,Planned Maintenance,P26,Economic Development & Resources,VALIANT CONTRACT SERVICES LTD,07/10/2021,465
Bath and North East Somerset Council,81023372,PG1,Rent Allowances,P26,Economic Development & Resources,CURO,07/10/2021,6924.67
Bath and North East Somerset Council,81023371,PG1,Rent Allowances,P26,Economic Development & Resources,CURO,07/10/2021,35991.55
Bath and North East Somerset Council,10980731,LM4,Respite Care,P29,"Children & Young People, Communities & Culture",THORNBURY NURSING SERVICES,07/10/2021,563.74
Bath and North East Somerset Council,81023290,LL3,Supported Living,P28,Adults & Council House Building,DIMENSIONS PERSONALISED SUPPORT LTD,07/10/2021,0.04
Bath and North East Somerset Council,81023290,LL3,Supported Living,P28,Adults & Council House Building,DIMENSIONS PERSONALISED SUPPORT LTD,07/10/2021,129.24
Bath and North East Somerset Council,81023290,LL3,Supported Living,P28,Adults & Council House Building,DIMENSIONS PERSONALISED SUPPORT LTD,07/10/2021,495.32
Bath and North East Somerset Council,10980784,LJ4,Contracts,P25,Transport Services,ALLIED PUBLICITY SERVICES (MANCHESTER) LIMITED,07/10/2021,611.6
Bath and North East Somerset Council,81023290,LL3,Supported Living,P28,Adults & Council House Building,DIMENSIONS PERSONALISED SUPPORT LTD,07/10/2021,1132.6
Bath and North East Somerset Council,10980765,KB1,Hire of Vehicles,P05,Neighbourhood Services,DAWSON RENTALS SWEEPERS,07/10/2021,620.83
Bath and North East Somerset Council,10980769,KB1,Hire of Vehicles,P05,Neighbourhood Services,DAWSON RENTALS SWEEPERS,07/10/2021,620.83
Bath and North East Somerset Council,10980694,LJ4,Contracts,P05,Neighbourhood Services,AUTOMOTIVE PARTS DISTRIBUTION,07/10/2021,637.34
Bath and North East Somerset Council,10980740,LK1,Fees,P29,"Children & Young People, Communities & Culture",FOSSE WAY SCHOOL,07/10/2021,705.49
Bath and North East Somerset Council,81023273,LM6,Nursing Care,P28,Adults & Council House Building,NEWCROSS HEALTHCARE SOLUTIONS LTD,07/10/2021,719.58
Bath and North East Somerset Council,81023277,LM8,Home Care,P28,Adults & Council House Building,BLUEBIRD CARE (BATH),07/10/2021,722.01
Bath and North East Somerset Council,81023273,LM6,Nursing Care,P28,Adults & Council House Building,NEWCROSS HEALTHCARE SOLUTIONS LTD,07/10/2021,729.72
Bath and North East Somerset Council,81023273,LM6,Nursing Care,P28,Adults & Council House Building,NEWCROSS HEALTHCARE SOLUTIONS LTD,07/10/2021,729.72
Bath and North East Somerset Council,81023273,LM6,Nursing Care,P28,Adults & Council House Building,NEWCROSS HEALTHCARE SOLUTIONS LTD,07/10/2021,729.72
Bath and North East Somerset Council,81023273,LM6,Nursing Care,P28,Adults & Council House Building,NEWCROSS HEALTHCARE SOLUTIONS LTD,07/10/2021,729.72
Bath and North East Somerset Council,81023296,LM3,Residential Care,P28,Adults & Council House Building,FREEWAYS TRUST LTD,07/10/2021,756.04
Bath and North East Somerset Council,81023354,PG1,Rent Allowances,P26,Economic Development & Resources,GEORGIAN CITY PROPERTIES,07/10/2021,667.4
Bath and North East Somerset Council,10980686,LJ4,Contracts,P05,Neighbourhood Services,I C FLEET SERVICES LTD,07/10/2021,850
Bath and North East Somerset Council,10980797,KA1,Repairs & Maintenance,P05,Neighbourhood Services,TRUCTYRE FLEET MANAGEMENT LTD,07/10/2021,862.08
Bath and North East Somerset Council,10978172,HE5,Security of Premises,P29,"Children & Young People, Communities & Culture",SAFE AND SOUND UK LIMITED,07/10/2021,867
Bath and North East Somerset Council,81023273,LM6,Nursing Care,P28,Adults & Council House Building,NEWCROSS HEALTHCARE SOLUTIONS LTD,07/10/2021,891.88
Bath and North East Somerset Council,81023280,LL3,Supported Living,P28,Adults & Council House Building,HF TRUST LTD,07/10/2021,3539.68
Bath and North East Somerset Council,81023315,PG1,Rent Allowances,P26,Economic Development & Resources,HML PROPERTY MANAGEMENT,07/10/2021,738.48
Bath and North East Somerset Council,81023270,LL3,Supported Living,P28,Adults & Council House Building,HOME FARM TRUST,07/10/2021,3221.12
Bath and North East Somerset Council,81023270,LL3,Supported Living,P28,Adults & Council House Building,HOME FARM TRUST,07/10/2021,4617.28
Bath and North East Somerset Council,81023270,LL3,Supported Living,P28,Adults & Council House Building,HOME FARM TRUST,07/10/2021,7344.84
Bath and North East Somerset Council,81023379,KE2,Payment to Parents/Students,P29,"Children & Young People, Communities & Culture",REDACTED,07/10/2021,658.67
Bath and North East Somerset Council,10980693,LJ4,Contracts,P05,Neighbourhood Services,MOTUS COMMERCIALS LTD,07/10/2021,931.68
Bath and North East Somerset Council,10980759,LM4,Respite Care,P29,"Children & Young People, Communities & Culture",THORNBURY NURSING SERVICES,07/10/2021,934.01
Bath and North East Somerset Council,10980755,LF1,Printing/Design,P26,Economic Development & Resources,BATH CARNIVAL C.I.C.,07/10/2021,1000
Bath and North East Somerset Council,81023283,LL3,Supported Living,P28,Adults & Council House Building,KEYSTONES MENTAL HEALTH SERVICES,07/10/2021,1272.78
Bath and North East Somerset Council,81023283,LL3,Supported Living,P28,Adults & Council House Building,KEYSTONES MENTAL HEALTH SERVICES,07/10/2021,1334.4
Bath and North East Somerset Council,81023266,LM8,Home Care,P28,Adults & Council House Building,KUMARI HOMECARE SERVICE,07/10/2021,200.99
Bath and North East Somerset Council,81023266,LM8,Home Care,P28,Adults & Council House Building,KUMARI HOMECARE SERVICE,07/10/2021,223.3
Bath and North East Somerset Council,81023266,LM8,Home Care,P28,Adults & Council House Building,KUMARI HOMECARE SERVICE,07/10/2021,312.62
Bath and North East Somerset Council,81023266,LM8,Home Care,P28,Adults & Council House Building,KUMARI HOMECARE SERVICE,07/10/2021,750.4
Bath and North East Somerset Council,81023266,LM8,Home Care,P28,Adults & Council House Building,KUMARI HOMECARE SERVICE,07/10/2021,991.6
Bath and North East Somerset Council,81023266,LM8,Home Care,P28,Adults & Council House Building,KUMARI HOMECARE SERVICE,07/10/2021,999.97
Bath and North East Somerset Council,81023266,LM8,Home Care,P28,Adults & Council House Building,KUMARI HOMECARE SERVICE,07/10/2021,1437.85
Bath and North East Somerset Council,81023266,LM8,Home Care,P28,Adults & Council House Building,KUMARI HOMECARE SERVICE,07/10/2021,1791.17
Bath and North East Somerset Council,81023266,LM8,Home Care,P28,Adults & Council House Building,KUMARI HOMECARE SERVICE,07/10/2021,2873.12
Bath and North East Somerset Council,81023266,LM8,Home Care,P28,Adults & Council House Building,KUMARI HOMECARE SERVICE,07/10/2021,3366.55
Bath and North East Somerset Council,81023266,LM8,Home Care,P28,Adults & Council House Building,KUMARI HOMECARE SERVICE,07/10/2021,3511.59
Bath and North East Somerset Council,81023266,LM8,Home Care,P28,Adults & Council House Building,KUMARI HOMECARE SERVICE,07/10/2021,3927.27
Bath and North East Somerset Council,81023266,LM8,Home Care,P28,Adults & Council House Building,KUMARI HOMECARE SERVICE,07/10/2021,4214.83
Bath and North East Somerset Council,81023266,LM8,Home Care,P28,Adults & Council House Building,KUMARI HOMECARE SERVICE,07/10/2021,4374.17
Bath and North East Somerset Council,81023266,LM8,Home Care,P28,Adults & Council House Building,KUMARI HOMECARE SERVICE,07/10/2021,4978.44
Bath and North East Somerset Council,10980732,LM4,Respite Care,P29,"Children & Young People, Communities & Culture",THORNBURY NURSING SERVICES,07/10/2021,1063.43
Bath and North East Somerset Council,10980772,KA2,Running Costs,P05,Neighbourhood Services,GREEN MACHINES SWEEPERS UK LTD,07/10/2021,1122.6
Bath and North East Somerset Council,10980645,HK1,Highway Maintenance,P05,Neighbourhood Services,SAKNEL HIGHWAYS STRUCTURES CONTRACTOR,07/10/2021,1170
Bath and North East Somerset Council,81023273,LM6,Nursing Care,P28,Adults & Council House Building,NEWCROSS HEALTHCARE SOLUTIONS LTD,07/10/2021,1185.8
Bath and North East Somerset Council,81023285,LL3,Supported Living,P28,Adults & Council House Building,ALWAYS PRECIOUS LTD,07/10/2021,1275
Bath and North East Somerset Council,81023285,LL3,Supported Living,P28,Adults & Council House Building,ALWAYS PRECIOUS LTD,07/10/2021,1290
Bath and North East Somerset Council,81023323,PG1,Rent Allowances,P26,Economic Development & Resources,LIVEWEST HOMES LIMITED,07/10/2021,7503.25
Bath and North East Somerset Council,81023333,PG1,Rent Allowances,P26,Economic Development & Resources,LIVEWEST HOMES LIMITED,07/10/2021,14624.6
Bath and North East Somerset Council,81023314,PG1,Rent Allowances,P26,Economic Development & Resources,LIVEWEST HOMES LIMITED,07/10/2021,15126.94
Bath and North East Somerset Council,81023316,PG1,Rent Allowances,P26,Economic Development & Resources,LIVEWEST HOMES LIMITED,07/10/2021,56803.85
Bath and North East Somerset Council,81023358,PG1,Rent Allowances,P26,Economic Development & Resources,MERCY IN ACTION,07/10/2021,4576.41
Bath and North East Somerset Council,81023276,LM8,Home Care,P28,Adults & Council House Building,MHA CARE GROUP AT WALCOT COURT,07/10/2021,1057.93
Bath and North East Somerset Council,81023276,LM8,Home Care,P28,Adults & Council House Building,MHA CARE GROUP AT WALCOT COURT,07/10/2021,1697.18
Bath and North East Somerset Council,81023276,LM8,Home Care,P28,Adults & Council House Building,MHA CARE GROUP AT WALCOT COURT,07/10/2021,1818.6
Bath and North East Somerset Council,81023276,LM8,Home Care,P28,Adults & Council House Building,MHA CARE GROUP AT WALCOT COURT,07/10/2021,2818.83
Bath and North East Somerset Council,81023276,LM8,Home Care,P28,Adults & Council House Building,MHA CARE GROUP AT WALCOT COURT,07/10/2021,2818.83
Bath and North East Somerset Council,81023288,LM8,Home Care,P28,Adults & Council House Building,MIDSHIRES CARE LTD T/A HELPING HANDS,07/10/2021,642.6
Bath and North East Somerset Council,81023288,LM8,Home Care,P28,Adults & Council House Building,MIDSHIRES CARE LTD T/A HELPING HANDS,07/10/2021,1774.8
Bath and North East Somerset Council,81023288,LM8,Home Care,P28,Adults & Council House Building,MIDSHIRES CARE LTD T/A HELPING HANDS,07/10/2021,1926.28
Bath and North East Somerset Council,10980546,LK1,Fees,P29,"Children & Young People, Communities & Culture",REDACTED,07/10/2021,1505
Bath and North East Somerset Council,10980723,KB1,Hire of Vehicles,P05,Neighbourhood Services,SMITH'S GLOUCESTER LTD,07/10/2021,1502.06
Bath and North East Somerset Council,81023340,PG1,Rent Allowances,P26,Economic Development & Resources,REDACTED,07/10/2021,619.12
Bath and North East Somerset Council,81023307,PG1,Rent Allowances,P26,Economic Development & Resources,REDACTED,07/10/2021,616.08
Bath and North East Somerset Council,81023346,PG1,Rent Allowances,P26,Economic Development & Resources,REDACTED,07/10/2021,507.68
Bath and North East Somerset Council,81023327,PG1,Rent Allowances,P26,Economic Development & Resources,REDACTED,07/10/2021,553.84
Bath and North East Somerset Council,81023343,PG1,Rent Allowances,P26,Economic Development & Resources,REDACTED,07/10/2021,574.14
Bath and North East Somerset Council,81023325,PG1,Rent Allowances,P26,Economic Development & Resources,REDACTED,07/10/2021,558.48
Bath and North East Somerset Council,81023353,PG1,Rent Allowances,P26,Economic Development & Resources,REDACTED,07/10/2021,507.68
Bath and North East Somerset Council,81023355,PG1,Rent Allowances,P26,Economic Development & Resources,REDACTED,07/10/2021,738.48
Bath and North East Somerset Council,81023330,PG1,Rent Allowances,P26,Economic Development & Resources,REDACTED,07/10/2021,530.76
Bath and North East Somerset Council,81023348,PG1,Rent Allowances,P26,Economic Development & Resources,REDACTED,07/10/2021,623.08
Bath and North East Somerset Council,81023337,PG1,Rent Allowances,P26,Economic Development & Resources,REDACTED,07/10/2021,667.4
Bath and North East Somerset Council,81023302,PG1,Rent Allowances,P26,Economic Development & Resources,REDACTED,07/10/2021,1444.3
Bath and North East Somerset Council,81023329,PG1,Rent Allowances,P26,Economic Development & Resources,REDACTED,07/10/2021,547.16
Bath and North East Somerset Council,81023338,PG1,Rent Allowances,P26,Economic Development & Resources,REDACTED,07/10/2021,780
Bath and North East Somerset Council,10980714,LK1,Fees,P29,"Children & Young People, Communities & Culture",MIAG LTD,07/10/2021,1560
Bath and North East Somerset Council,81023285,LL3,Supported Living,P28,Adults & Council House Building,ALWAYS PRECIOUS LTD,07/10/2021,1567.5
Bath and North East Somerset Council,81023331,PG1,Rent Allowances,P26,Economic Development & Resources,REDACTED,07/10/2021,590.76
Bath and North East Somerset Council,81023285,LL3,Supported Living,P28,Adults & Council House Building,ALWAYS PRECIOUS LTD,07/10/2021,1590
Bath and North East Somerset Council,81023285,LL3,Supported Living,P28,Adults & Council House Building,ALWAYS PRECIOUS LTD,07/10/2021,1605
Bath and North East Somerset Council,81023285,LL3,Supported Living,P28,Adults & Council House Building,ALWAYS PRECIOUS LTD,07/10/2021,1612.5
Bath and North East Somerset Council,81023344,PG1,Rent Allowances,P26,Economic Development & Resources,REDACTED,07/10/2021,535.4
Bath and North East Somerset Council,81023352,PG1,Rent Allowances,P26,Economic Development & Resources,REDACTED,07/10/2021,923.04
Bath and North East Somerset Council,81023342,PG1,Rent Allowances,P26,Economic Development & Resources,REDACTED,07/10/2021,920
Bath and North East Somerset Council,81023291,LM8,Home Care,P28,Adults & Council House Building,REDACTED,07/10/2021,115
Bath and North East Somerset Council,81023291,LM8,Home Care,P28,Adults & Council House Building,REDACTED,07/10/2021,525
Bath and North East Somerset Council,81023345,PG1,Rent Allowances,P26,Economic Development & Resources,REDACTED,07/10/2021,650.12
Bath and North East Somerset Council,81023366,PG1,Rent Allowances,P26,Economic Development & Resources,REDACTED,07/10/2021,520
Bath and North East Somerset Council,81023287,LM8,Home Care,P28,Adults & Council House Building,MY WILLOWS - SOMERSET CARE AT HOME LTD,07/10/2021,302.4
Bath and North East Somerset Council,81023287,LM8,Home Care,P28,Adults & Council House Building,MY WILLOWS - SOMERSET CARE AT HOME LTD,07/10/2021,1646.4
Bath and North East Somerset Council,81023287,LM8,Home Care,P28,Adults & Council House Building,MY WILLOWS - SOMERSET CARE AT HOME LTD,07/10/2021,1747.2
Bath and North East Somerset Council,10980691,LF5,Postages,P26,Economic Development & Resources,QUADIENT FINANCE UK LIMITED,07/10/2021,1826.01
Bath and North East Somerset Council,81023356,PG1,Rent Allowances,P26,Economic Development & Resources,NSAH (ALLIANCE HOMES) LIMITED,07/10/2021,3154.36
Bath and North East Somerset Council,10980768,HE5,Security of Premises,P29,"Children & Young People, Communities & Culture",SAFE AND SOUND UK LIMITED,07/10/2021,2155
Bath and North East Somerset Council,10980770,HE5,Security of Premises,P29,"Children & Young People, Communities & Culture",SAFE AND SOUND UK LIMITED,07/10/2021,2160
Bath and North East Somerset Council,81023341,PG1,Rent Allowances,P26,Economic Development & Resources,P.E.O.P.L.E.,07/10/2021,1236.8
Bath and North East Somerset Council,10980724,LM4,Respite Care,P29,"Children & Young People, Communities & Culture",ALWAYS PRECIOUS LTD,07/10/2021,2565
Bath and North East Somerset Council,81023359,PG1,Rent Allowances,P26,Economic Development & Resources,RESIDE HOUSING ASSOCIATION,07/10/2021,1804.88
Bath and North East Somerset Council,81023320,PG1,Rent Allowances,P26,Economic Development & Resources,SANCTUARY HOUSING SERVICES LIMIT,07/10/2021,1441.96
Bath and North East Somerset Council,10980773,KB1,Hire of Vehicles,P05,Neighbourhood Services,ENDURANCE VEHICLE SOLUTIONS LIMITED,07/10/2021,3000
Bath and North East Somerset Council,10980775,KB1,Hire of Vehicles,P05,Neighbourhood Services,ENDURANCE VEHICLE SOLUTIONS LIMITED,07/10/2021,3000
Bath and North East Somerset Council,81023357,PG1,Rent Allowances,P26,Economic Development & Resources,SELWOOD HOUSING SOCIETY LIMITED,07/10/2021,6859.74
Bath and North East Somerset Council,10980722,LM4,Respite Care,P29,"Children & Young People, Communities & Culture",ALWAYS PRECIOUS LTD,07/10/2021,3157.5
Bath and North East Somerset Council,10980721,LM4,Respite Care,P29,"Children & Young People, Communities & Culture",ALWAYS PRECIOUS LTD,07/10/2021,3217.5
Bath and North East Somerset Council,10980785,LM2,Foster Carer Allowances,P29,"Children & Young People, Communities & Culture",NATIONAL FOSTERING AGENCY,07/10/2021,3222
Bath and North East Somerset Council,10980767,LM2,Foster Carer Allowances,P29,"Children & Young People, Communities & Culture",NATIONAL FOSTERING AGENCY,07/10/2021,3321.6
Bath and North East Somerset Council,10980746,LJ4,Contracts,P25,Transport Services,VIRGIN CARE SERVICES LTD,07/10/2021,3333.33
Bath and North East Somerset Council,10980791,LJ4,Contracts,P25,Transport Services,VIRGIN CARE SERVICES LTD,07/10/2021,3333.33
Bath and North East Somerset Council,10980720,LM2,Foster Carer Allowances,P29,"Children & Young People, Communities & Culture",FOSTER CARE ASSOCIATES LTD,07/10/2021,3360
Bath and North East Somerset Council,10980753,LM2,Foster Carer Allowances,P29,"Children & Young People, Communities & Culture",FOSTER CARE ASSOCIATES LTD,07/10/2021,3360
Bath and North East Somerset Council,10980757,LM2,Foster Carer Allowances,P29,"Children & Young People, Communities & Culture",CAPSTONE FOSTER CARE (SOUTH WEST)  LTD,07/10/2021,3415.8
Bath and North East Somerset Council,81023317,PG1,Rent Allowances,P26,Economic Development & Resources,ST JOHNS FOUNDATION,07/10/2021,2052.04
Bath and North East Somerset Council,10980754,LM2,Foster Carer Allowances,P29,"Children & Young People, Communities & Culture",FOSTER CARE ASSOCIATES LTD,07/10/2021,3510
Bath and North East Somerset Council,10980758,LM2,Foster Carer Allowances,P29,"Children & Young People, Communities & Culture",FOSTER CARE ASSOCIATES LTD,07/10/2021,3510
Bath and North East Somerset Council,10980705,LK1,Fees,P29,"Children & Young People, Communities & Culture",MIAG LTD,07/10/2021,3510
Bath and North East Somerset Council,10980730,LA1,Equipment Purchase (Non Medical),P29,"Children & Young People, Communities & Culture",JENX LIMITED,07/10/2021,3534
Bath and North East Somerset Council,10980715,LK1,Fees,P29,"Children & Young People, Communities & Culture",MIAG LTD,07/10/2021,3575
Bath and North East Somerset Council,10980518,HA3,Planned Maintenance,P30,Planning,CHG SOUTHWEST LTD,07/10/2021,3740
Bath and North East Somerset Council,10980365,3G1,Grants/Advances,P23,"Housing, Planning & Economic Development",PRW GROUP LTD,07/10/2021,3744
Bath and North East Somerset Council,10980690,LP5,Software Support,P26,Economic Development & Resources,KAINOS SOFTWARE LIMITED,07/10/2021,3750
Bath and North East Somerset Council,10980795,LJ4,Contracts,P25,Transport Services,BRISTOL CITY COUNCIL,07/10/2021,3941.02
Bath and North East Somerset Council,10980645,HK1,Highway Maintenance,P05,Neighbourhood Services,SAKNEL HIGHWAYS STRUCTURES CONTRACTOR,07/10/2021,3986.3
Bath and North East Somerset Council,81023297,LM3,Residential Care,P28,Adults & Council House Building,SUNNYMEDE LTD,07/10/2021,1836.09
Bath and North East Somerset Council,10980716,LP5,Software Support,P26,Economic Development & Resources,JC APPLICATIONS DEVELOPMENT,07/10/2021,4282
Bath and North East Somerset Council,10980719,LJ1,Consultants Fees,P26,Economic Development & Resources,MARKETING MEANS UK LTD,07/10/2021,4327
Bath and North East Somerset Council,10980418,3G1,Grants/Advances,P23,"Housing, Planning & Economic Development",TD & RD RYALL,07/10/2021,4862.1
Bath and North East Somerset Council,81023268,LL3,Supported Living,P28,Adults & Council House Building,SWALLOW LTD,07/10/2021,302.08
Bath and North East Somerset Council,81023268,LL3,Supported Living,P28,Adults & Council House Building,SWALLOW LTD,07/10/2021,302.08
Bath and North East Somerset Council,81023268,LL3,Supported Living,P28,Adults & Council House Building,SWALLOW LTD,07/10/2021,302.08
Bath and North East Somerset Council,81023268,LL3,Supported Living,P28,Adults & Council House Building,SWALLOW LTD,07/10/2021,453.12
Bath and North East Somerset Council,81023268,LL3,Supported Living,P28,Adults & Council House Building,SWALLOW LTD,07/10/2021,453.12
Bath and North East Somerset Council,81023268,LL3,Supported Living,P28,Adults & Council House Building,SWALLOW LTD,07/10/2021,528.64
Bath and North East Somerset Council,81023268,LL3,Supported Living,P28,Adults & Council House Building,SWALLOW LTD,07/10/2021,528.64
Bath and North East Somerset Council,81023268,LL3,Supported Living,P28,Adults & Council House Building,SWALLOW LTD,07/10/2021,566.4
Bath and North East Somerset Council,81023268,LL3,Supported Living,P28,Adults & Council House Building,SWALLOW LTD,07/10/2021,604.16
Bath and North East Somerset Council,81023268,LL3,Supported Living,P28,Adults & Council House Building,SWALLOW LTD,07/10/2021,604.16
Bath and North East Somerset Council,81023268,LL3,Supported Living,P28,Adults & Council House Building,SWALLOW LTD,07/10/2021,792.96
Bath and North East Somerset Council,81023268,LL3,Supported Living,P28,Adults & Council House Building,SWALLOW LTD,07/10/2021,906.24
Bath and North East Somerset Council,81023268,LL3,Supported Living,P28,Adults & Council House Building,SWALLOW LTD,07/10/2021,1057.28
Bath and North East Somerset Council,81023268,LL3,Supported Living,P28,Adults & Council House Building,SWALLOW LTD,07/10/2021,1208.32
Bath and North East Somerset Council,81023268,LL3,Supported Living,P28,Adults & Council House Building,SWALLOW LTD,07/10/2021,1208.32
Bath and North East Somerset Council,81023268,LL3,Supported Living,P28,Adults & Council House Building,SWALLOW LTD,07/10/2021,1661.44
Bath and North East Somerset Council,81023350,PG1,Rent Allowances,P26,Economic Development & Resources,REDACTED,07/10/2021,1973.56
Bath and North East Somerset Council,81023328,PG1,Rent Allowances,P26,Economic Development & Resources,THE BATH PROPERTY SHOP,07/10/2021,526.16
Bath and North East Somerset Council,81023319,PG1,Rent Allowances,P26,Economic Development & Resources,THE GUINNESS PARTNERSHIP,07/10/2021,1079.93
Bath and North East Somerset Council,81023318,PG1,Rent Allowances,P26,Economic Development & Resources,THE GUINNESS PARTNERSHIP,07/10/2021,2221.1
Bath and North East Somerset Council,10980756,LM1,Volunt Homes Placements Top/Up,P29,"Children & Young People, Communities & Culture",CAPSTONE FOSTER CARE (SOUTH WEST)  LTD,07/10/2021,6503.1
Bath and North East Somerset Council,81023336,PG1,Rent Allowances,P26,Economic Development & Resources,TRUSTEASE PROPERTY MANAGEMENT LI,07/10/2021,733.84
Bath and North East Somerset Council,81023360,PG1,Rent Allowances,P26,Economic Development & Resources,UNITED RESPONSE,07/10/2021,1055.36
Bath and North East Somerset Council,10980760,LM2,Foster Carer Allowances,P29,"Children & Young People, Communities & Culture",FOSTER CARE ASSOCIATES LTD,07/10/2021,8121.3
Bath and North East Somerset Council,10980771,KA3,Fuel,P05,Neighbourhood Services,ALLSTAR BUSINESS SOLUTIONS LTD,07/10/2021,8254.99
Bath and North East Somerset Council,10980796,LM1,Volunt Homes Placements Top/Up,P29,"Children & Young People, Communities & Culture",FIRST THOUGHT CARE SERVICES,07/10/2021,9240
Bath and North East Somerset Council,10980706,3N7,Misc. Costs,P25,Transport Services,ENERGY SAVING TRUST ENTERPRISES LTD,07/10/2021,11850
Bath and North East Somerset Council,81023273,LM6,Nursing Care,P28,Adults & Council House Building,NEWCROSS HEALTHCARE SOLUTIONS LTD,07/10/2021,22001.7
Bath and North East Somerset Council,10980707,HA1,Responsive Maintenance,P26,Economic Development & Resources,LCB CONSTRUCTION LIMITED,07/10/2021,26760.49
Bath and North East Somerset Council,10980764,LM1,Volunt Homes Placements Top/Up,P29,"Children & Young People, Communities & Culture",POSITIF CARE LTD,07/10/2021,35428.35
Bath and North East Somerset Council,10980517,LK1,Fees,P29,"Children & Young People, Communities & Culture",CITY OF BATH COLLEGE,07/10/2021,57000
Bath and North East Somerset Council,81023896,LL8,Individualised Budget,P28,Adults & Council House Building,REDACTED,11/10/2021,5547.18
Bath and North East Somerset Council,10980847,LC3,Drugs & Medical Supplies,P28,Adults & Council House Building,NHS SUPPLY CHAIN,11/10/2021,6.25
Bath and North East Somerset Council,81023391,LA7,Purchases for Resale,P26,Economic Development & Resources,KURT & CAROLINE JACKSON LTD,11/10/2021,24
Bath and North East Somerset Council,81023664,LM6,Nursing Care,P28,Adults & Council House Building,ACCOMPLISH GROUP SUPPORT LIMITED,11/10/2021,7055.86
Bath and North East Somerset Council,81023420,LA7,Purchases for Resale,P26,Economic Development & Resources,MACMILLAN DISTRIBUTION LTD,11/10/2021,33.3
Bath and North East Somerset Council,81024180,LL3,Supported Living,P28,Adults & Council House Building,ST MUNGO'S COMMUNITY HOUSING ASSOCIATION LTD,11/10/2021,42
Bath and North East Somerset Council,81024180,LL3,Supported Living,P28,Adults & Council House Building,ST MUNGO'S COMMUNITY HOUSING ASSOCIATION LTD,11/10/2021,42
Bath and North East Somerset Council,81024180,LL3,Supported Living,P28,Adults & Council House Building,ST MUNGO'S COMMUNITY HOUSING ASSOCIATION LTD,11/10/2021,42
Bath and North East Somerset Council,81023649,LL8,Individualised Budget,P28,Adults & Council House Building,REDACTED,11/10/2021,1847.56
Bath and North East Somerset Council,81023855,LL8,Individualised Budget,P28,Adults & Council House Building,REDACTED,11/10/2021,2969
Bath and North East Somerset Council,81024063,LM3,Residential Care,P28,Adults & Council House Building,ALEXANDRA HOMES (BRISTOL) LTD,11/10/2021,1873.92
Bath and North East Somerset Council,81024063,LM3,Residential Care,P28,Adults & Council House Building,ALEXANDRA HOMES (BRISTOL) LTD,11/10/2021,1873.92
Bath and North East Somerset Council,81024063,LM3,Residential Care,P28,Adults & Council House Building,ALEXANDRA HOMES (BRISTOL) LTD,11/10/2021,1873.92
Bath and North East Somerset Council,81024063,LM3,Residential Care,P28,Adults & Council House Building,ALEXANDRA HOMES (BRISTOL) LTD,11/10/2021,1873.92
Bath and North East Somerset Council,81024182,LL3,Supported Living,P28,Adults & Council House Building,VIRGIN CARE SERVICES LTD,11/10/2021,63.96
Bath and North East Somerset Council,10980846,LC3,Drugs & Medical Supplies,P28,Adults & Council House Building,NHS SUPPLY CHAIN,11/10/2021,64.88
Bath and North East Somerset Council,81023733,LL8,Individualised Budget,P28,Adults & Council House Building,REDACTED,11/10/2021,587.96
Bath and North East Somerset Council,10980847,LC3,Drugs & Medical Supplies,P28,Adults & Council House Building,NHS SUPPLY CHAIN,11/10/2021,71.26
Bath and North East Somerset Council,81024004,LL8,Individualised Budget,P28,Adults & Council House Building,REDACTED,11/10/2021,1178.1
Bath and North East Somerset Council,10980847,LC3,Drugs & Medical Supplies,P28,Adults & Council House Building,NHS SUPPLY CHAIN,11/10/2021,75.48
Bath and North East Somerset Council,81023923,LL8,Individualised Budget,P28,Adults & Council House Building,REDACTED,11/10/2021,703.5
Bath and North East Somerset Council,81023695,LL8,Individualised Budget,P28,Adults & Council House Building,REDACTED,11/10/2021,881.64
Bath and North East Somerset Council,81023400,LA7,Purchases for Resale,P26,Economic Development & Resources,MARY GOLDBERG,11/10/2021,82
Bath and North East Somerset Council,81023821,LL8,Individualised Budget,P29,"Children & Young People, Communities & Culture",REDACTED,11/10/2021,583.78
Bath and North East Somerset Council,81024180,LL3,Supported Living,P28,Adults & Council House Building,ST MUNGO'S COMMUNITY HOUSING ASSOCIATION LTD,11/10/2021,84
Bath and North East Somerset Council,81024122,LM6,Nursing Care,P28,Adults & Council House Building,ARBOUR WALK NURSING HOME,11/10/2021,467
Bath and North East Somerset Council,81024122,LM6,Nursing Care,P28,Adults & Council House Building,ARBOUR WALK NURSING HOME,11/10/2021,1533
Bath and North East Somerset Council,81024122,LM6,Nursing Care,P28,Adults & Council House Building,ARBOUR WALK NURSING HOME,11/10/2021,1814.8
Bath and North East Somerset Council,81024178,LL3,Supported Living,P28,Adults & Council House Building,ARCH CARE SERVICES,11/10/2021,74.92
Bath and North East Somerset Council,81024178,LL3,Supported Living,P28,Adults & Council House Building,ARCH CARE SERVICES,11/10/2021,74.92
Bath and North East Somerset Council,10980847,LC3,Drugs & Medical Supplies,P28,Adults & Council House Building,NHS SUPPLY CHAIN,11/10/2021,94.59
Bath and North East Somerset Council,81024178,LL3,Supported Living,P28,Adults & Council House Building,ARCH CARE SERVICES,11/10/2021,112.38
Bath and North East Somerset Council,81024178,LL3,Supported Living,P28,Adults & Council House Building,ARCH CARE SERVICES,11/10/2021,149.84
Bath and North East Somerset Council,81024178,LL3,Supported Living,P28,Adults & Council House Building,ARCH CARE SERVICES,11/10/2021,149.84
Bath and North East Somerset Council,81024178,LL3,Supported Living,P28,Adults & Council House Building,ARCH CARE SERVICES,11/10/2021,149.84
Bath and North East Somerset Council,81024178,LL3,Supported Living,P28,Adults & Council House Building,ARCH CARE SERVICES,11/10/2021,187.3
Bath and North East Somerset Council,81024178,LL3,Supported Living,P28,Adults & Council House Building,ARCH CARE SERVICES,11/10/2021,187.3
Bath and North East Somerset Council,81024178,LL3,Supported Living,P28,Adults & Council House Building,ARCH CARE SERVICES,11/10/2021,187.3
Bath and North East Somerset Council,81024178,LL3,Supported Living,P28,Adults & Council House Building,ARCH CARE SERVICES,11/10/2021,187.3
Bath and North East Somerset Council,81024178,LL3,Supported Living,P28,Adults & Council House Building,ARCH CARE SERVICES,11/10/2021,224.76
Bath and North East Somerset Council,81024178,LL3,Supported Living,P28,Adults & Council House Building,ARCH CARE SERVICES,11/10/2021,262.22
Bath and North East Somerset Council,81024178,LL3,Supported Living,P28,Adults & Council House Building,ARCH CARE SERVICES,11/10/2021,262.22
Bath and North East Somerset Council,81024178,LL3,Supported Living,P28,Adults & Council House Building,ARCH CARE SERVICES,11/10/2021,262.22
Bath and North East Somerset Council,81024178,LL3,Supported Living,P28,Adults & Council House Building,ARCH CARE SERVICES,11/10/2021,280.95
Bath and North East Somerset Council,81024178,LL3,Supported Living,P28,Adults & Council House Building,ARCH CARE SERVICES,11/10/2021,299.68
Bath and North East Somerset Council,81024178,LL3,Supported Living,P28,Adults & Council House Building,ARCH CARE SERVICES,11/10/2021,337.14
Bath and North East Somerset Council,81024178,LL3,Supported Living,P28,Adults & Council House Building,ARCH CARE SERVICES,11/10/2021,374.6
Bath and North East Somerset Council,81024178,LL3,Supported Living,P28,Adults & Council House Building,ARCH CARE SERVICES,11/10/2021,412.06
Bath and North East Somerset Council,81024178,LL3,Supported Living,P28,Adults & Council House Building,ARCH CARE SERVICES,11/10/2021,462.56
Bath and North East Somerset Council,81024178,LL3,Supported Living,P28,Adults & Council House Building,ARCH CARE SERVICES,11/10/2021,561.9
Bath and North East Somerset Council,81024178,LL3,Supported Living,P28,Adults & Council House Building,ARCH CARE SERVICES,11/10/2021,581.46
Bath and North East Somerset Council,81024178,LL3,Supported Living,P28,Adults & Council House Building,ARCH CARE SERVICES,11/10/2021,969.1
Bath and North East Somerset Council,81024178,LL3,Supported Living,P28,Adults & Council House Building,ARCH CARE SERVICES,11/10/2021,969.1
Bath and North East Somerset Council,81024178,LL3,Supported Living,P28,Adults & Council House Building,ARCH CARE SERVICES,11/10/2021,969.1
Bath and North East Somerset Council,81024192,LL3,Supported Living,P28,Adults & Council House Building,ARCH CARE SERVICES LTD,11/10/2021,1315.21
Bath and North East Somerset Council,81024158,LM3,Residential Care,P28,Adults & Council House Building,ARTI CARE HOMES (SOUTHWEST) LTD,11/10/2021,709.14
Bath and North East Somerset Council,81024180,LL3,Supported Living,P28,Adults & Council House Building,ST MUNGO'S COMMUNITY HOUSING ASSOCIATION LTD,11/10/2021,126
Bath and North East Somerset Council,81024182,LL3,Supported Living,P28,Adults & Council House Building,VIRGIN CARE SERVICES LTD,11/10/2021,126.6
Bath and North East Somerset Council,81024158,LM3,Residential Care,P28,Adults & Council House Building,ARTI CARE HOMES (SOUTHWEST) LTD,11/10/2021,709.16
Bath and North East Somerset Council,81024158,LM3,Residential Care,P28,Adults & Council House Building,ARTI CARE HOMES (SOUTHWEST) LTD,11/10/2021,1367.22
Bath and North East Somerset Council,81024158,LM3,Residential Care,P28,Adults & Council House Building,ARTI CARE HOMES (SOUTHWEST) LTD,11/10/2021,1400
Bath and North East Somerset Council,81024158,LM3,Residential Care,P28,Adults & Council House Building,ARTI CARE HOMES (SOUTHWEST) LTD,11/10/2021,1418.3
Bath and North East Somerset Council,81024158,LM3,Residential Care,P28,Adults & Council House Building,ARTI CARE HOMES (SOUTHWEST) LTD,11/10/2021,1418.3
Bath and North East Somerset Council,81024158,LM3,Residential Care,P28,Adults & Council House Building,ARTI CARE HOMES (SOUTHWEST) LTD,11/10/2021,1418.3
Bath and North East Somerset Council,81024158,LM3,Residential Care,P28,Adults & Council House Building,ARTI CARE HOMES (SOUTHWEST) LTD,11/10/2021,1418.3
Bath and North East Somerset Council,81024158,LM3,Residential Care,P28,Adults & Council House Building,ARTI CARE HOMES (SOUTHWEST) LTD,11/10/2021,1418.3
Bath and North East Somerset Council,81024158,LM3,Residential Care,P28,Adults & Council House Building,ARTI CARE HOMES (SOUTHWEST) LTD,11/10/2021,1418.3
Bath and North East Somerset Council,81024158,LM3,Residential Care,P28,Adults & Council House Building,ARTI CARE HOMES (SOUTHWEST) LTD,11/10/2021,1540
Bath and North East Somerset Council,81024158,LM3,Residential Care,P28,Adults & Council House Building,ARTI CARE HOMES (SOUTHWEST) LTD,11/10/2021,1550
Bath and North East Somerset Council,81024163,XD3,Client Contributions,P28,Adults & Council House Building,ST MONICAS GENERAL ACCOUNT,11/10/2021,131.41
Bath and North East Somerset Council,81024146,LM3,Residential Care,P28,Adults & Council House Building,ARTI SERVICES LTD T/A THE MANOR FARM HOUSE,11/10/2021,750
Bath and North East Somerset Council,81024146,LM3,Residential Care,P28,Adults & Council House Building,ARTI SERVICES LTD T/A THE MANOR FARM HOUSE,11/10/2021,750
Bath and North East Somerset Council,81023422,LA7,Purchases for Resale,P26,Economic Development & Resources,THE MASTER HERBALIST LIMITED,11/10/2021,138
Bath and North East Somerset Council,81024146,LM3,Residential Care,P28,Adults & Council House Building,ARTI SERVICES LTD T/A THE MANOR FARM HOUSE,11/10/2021,1367.22
Bath and North East Somerset Council,10980847,LC3,Drugs & Medical Supplies,P28,Adults & Council House Building,NHS SUPPLY CHAIN,11/10/2021,143.72
Bath and North East Somerset Council,81024146,LM3,Residential Care,P28,Adults & Council House Building,ARTI SERVICES LTD T/A THE MANOR FARM HOUSE,11/10/2021,1418.3
Bath and North East Somerset Council,81024146,LM3,Residential Care,P28,Adults & Council House Building,ARTI SERVICES LTD T/A THE MANOR FARM HOUSE,11/10/2021,1418.3
Bath and North East Somerset Council,81024146,LM3,Residential Care,P28,Adults & Council House Building,ARTI SERVICES LTD T/A THE MANOR FARM HOUSE,11/10/2021,1540
Bath and North East Somerset Council,81024146,LM3,Residential Care,P28,Adults & Council House Building,ARTI SERVICES LTD T/A THE MANOR FARM HOUSE,11/10/2021,1540
Bath and North East Somerset Council,81024146,LM3,Residential Care,P28,Adults & Council House Building,ARTI SERVICES LTD T/A THE MANOR FARM HOUSE,11/10/2021,1540
Bath and North East Somerset Council,81024146,LM3,Residential Care,P28,Adults & Council House Building,ARTI SERVICES LTD T/A THE MANOR FARM HOUSE,11/10/2021,1540
Bath and North East Somerset Council,81024146,LM3,Residential Care,P28,Adults & Council House Building,ARTI SERVICES LTD T/A THE MANOR FARM HOUSE,11/10/2021,1540
Bath and North East Somerset Council,81024146,LM3,Residential Care,P28,Adults & Council House Building,ARTI SERVICES LTD T/A THE MANOR FARM HOUSE,11/10/2021,1777.56
Bath and North East Somerset Council,81024146,LM3,Residential Care,P28,Adults & Council House Building,ARTI SERVICES LTD T/A THE MANOR FARM HOUSE,11/10/2021,1870
Bath and North East Somerset Council,81024057,LM3,Residential Care,P28,Adults & Council House Building,AUTISM SPECIALISED CARE HOMES LTD,11/10/2021,2773.3
Bath and North East Somerset Council,81023734,LL8,Individualised Budget,P28,Adults & Council House Building,REDACTED,11/10/2021,1430.76
Bath and North East Somerset Council,81024156,XD3,Client Contributions,P28,Adults & Council House Building,BARCHESTER HEALTH CARE,11/10/2021,23.55
Bath and North East Somerset Council,81024019,LM6,Nursing Care,P28,Adults & Council House Building,BARCHESTER HEALTH CARE,11/10/2021,26.8
Bath and North East Somerset Council,81024156,LM6,Nursing Care,P28,Adults & Council House Building,BARCHESTER HEALTH CARE,11/10/2021,105.71
Bath and North East Somerset Council,81024019,LM6,Nursing Care,P28,Adults & Council House Building,BARCHESTER HEALTH CARE,11/10/2021,375.2
Bath and North East Somerset Council,81024019,LM6,Nursing Care,P28,Adults & Council House Building,BARCHESTER HEALTH CARE,11/10/2021,375.2
Bath and North East Somerset Council,81024019,LM6,Nursing Care,P28,Adults & Council House Building,BARCHESTER HEALTH CARE,11/10/2021,375.2
Bath and North East Somerset Council,81024019,LM6,Nursing Care,P28,Adults & Council House Building,BARCHESTER HEALTH CARE,11/10/2021,375.2
Bath and North East Somerset Council,81024019,LM6,Nursing Care,P28,Adults & Council House Building,BARCHESTER HEALTH CARE,11/10/2021,375.2
Bath and North East Somerset Council,81024019,LM6,Nursing Care,P28,Adults & Council House Building,BARCHESTER HEALTH CARE,11/10/2021,375.2
Bath and North East Somerset Council,81024019,LM6,Nursing Care,P28,Adults & Council House Building,BARCHESTER HEALTH CARE,11/10/2021,375.2
Bath and North East Somerset Council,81024019,LM6,Nursing Care,P28,Adults & Council House Building,BARCHESTER HEALTH CARE,11/10/2021,375.2
Bath and North East Somerset Council,81024019,LM6,Nursing Care,P28,Adults & Council House Building,BARCHESTER HEALTH CARE,11/10/2021,375.2
Bath and North East Somerset Council,81024019,LM6,Nursing Care,P28,Adults & Council House Building,BARCHESTER HEALTH CARE,11/10/2021,375.2
Bath and North East Somerset Council,81024019,LM6,Nursing Care,P28,Adults & Council House Building,BARCHESTER HEALTH CARE,11/10/2021,375.2
Bath and North East Somerset Council,81024019,LM6,Nursing Care,P28,Adults & Council House Building,BARCHESTER HEALTH CARE,11/10/2021,375.2
Bath and North East Somerset Council,81024019,LM6,Nursing Care,P28,Adults & Council House Building,BARCHESTER HEALTH CARE,11/10/2021,375.2
Bath and North East Somerset Council,81024019,LM6,Nursing Care,P28,Adults & Council House Building,BARCHESTER HEALTH CARE,11/10/2021,375.2
Bath and North East Somerset Council,81024019,LM6,Nursing Care,P28,Adults & Council House Building,BARCHESTER HEALTH CARE,11/10/2021,375.2
Bath and North East Somerset Council,81024019,LM6,Nursing Care,P28,Adults & Council House Building,BARCHESTER HEALTH CARE,11/10/2021,375.2
Bath and North East Somerset Council,81024019,LM6,Nursing Care,P28,Adults & Council House Building,BARCHESTER HEALTH CARE,11/10/2021,375.2
Bath and North East Somerset Council,81024019,LM6,Nursing Care,P28,Adults & Council House Building,BARCHESTER HEALTH CARE,11/10/2021,375.2
Bath and North East Somerset Council,81024019,LM6,Nursing Care,P28,Adults & Council House Building,BARCHESTER HEALTH CARE,11/10/2021,375.2
Bath and North East Somerset Council,81024019,LM6,Nursing Care,P28,Adults & Council House Building,BARCHESTER HEALTH CARE,11/10/2021,375.2
Bath and North East Somerset Council,81024156,LM3,Residential Care,P28,Adults & Council House Building,BARCHESTER HEALTH CARE,11/10/2021,538.29
Bath and North East Somerset Council,81023671,LM6,Nursing Care,P28,Adults & Council House Building,BARCHESTER HEALTH CARE,11/10/2021,705
Bath and North East Somerset Council,81024156,LM6,Nursing Care,P28,Adults & Council House Building,BARCHESTER HEALTH CARE,11/10/2021,739.1
Bath and North East Somerset Council,81024156,LM6,Nursing Care,P28,Adults & Council House Building,BARCHESTER HEALTH CARE,11/10/2021,1424.8
Bath and North East Somerset Council,81024156,LM6,Nursing Care,P28,Adults & Council House Building,BARCHESTER HEALTH CARE,11/10/2021,1432.16
Bath and North East Somerset Council,81024156,LM6,Nursing Care,P28,Adults & Council House Building,BARCHESTER HEALTH CARE,11/10/2021,1489.9
Bath and North East Somerset Council,81024156,LM3,Residential Care,P28,Adults & Council House Building,BARCHESTER HEALTH CARE,11/10/2021,1540
Bath and North East Somerset Council,81024156,LM6,Nursing Care,P28,Adults & Council House Building,BARCHESTER HEALTH CARE,11/10/2021,1628.4
Bath and North East Somerset Council,81024156,LM6,Nursing Care,P28,Adults & Council House Building,BARCHESTER HEALTH CARE,11/10/2021,1654.88
Bath and North East Somerset Council,81024156,LM6,Nursing Care,P28,Adults & Council House Building,BARCHESTER HEALTH CARE,11/10/2021,1669.68
Bath and North East Somerset Council,81024156,LM3,Residential Care,P28,Adults & Council House Building,BARCHESTER HEALTH CARE,11/10/2021,1700
Bath and North East Somerset Council,81024156,LM6,Nursing Care,P28,Adults & Council House Building,BARCHESTER HEALTH CARE,11/10/2021,1724.58
Bath and North East Somerset Council,81024156,LM6,Nursing Care,P28,Adults & Council House Building,BARCHESTER HEALTH CARE,11/10/2021,2125.56
Bath and North East Somerset Council,81023671,LM6,Nursing Care,P28,Adults & Council House Building,BARCHESTER HEALTH CARE,11/10/2021,2193.34
Bath and North East Somerset Council,81024156,LM6,Nursing Care,P28,Adults & Council House Building,BARCHESTER HEALTH CARE,11/10/2021,2378.4
Bath and North East Somerset Council,81024156,LM3,Residential Care,P28,Adults & Council House Building,BARCHESTER HEALTH CARE,11/10/2021,2511.99
Bath and North East Somerset Council,81024156,LM6,Nursing Care,P28,Adults & Council House Building,BARCHESTER HEALTH CARE,11/10/2021,2512.01
Bath and North East Somerset Council,81024156,LM3,Residential Care,P28,Adults & Council House Building,BARCHESTER HEALTH CARE,11/10/2021,2835.88
Bath and North East Somerset Council,81024156,LM6,Nursing Care,P28,Adults & Council House Building,BARCHESTER HEALTH CARE,11/10/2021,2886
Bath and North East Somerset Council,81024156,LM6,Nursing Care,P28,Adults & Council House Building,BARCHESTER HEALTH CARE,11/10/2021,2960
Bath and North East Somerset Council,81024156,LM6,Nursing Care,P28,Adults & Council House Building,BARCHESTER HEALTH CARE,11/10/2021,15969.14
Bath and North East Somerset Council,81024012,LM6,Nursing Care,P28,Adults & Council House Building,BARCHESTER HEALTHCARE HOMES LTD,11/10/2021,375.2
Bath and North East Somerset Council,81024012,LM6,Nursing Care,P28,Adults & Council House Building,BARCHESTER HEALTHCARE HOMES LTD,11/10/2021,375.2
Bath and North East Somerset Council,81024012,LM6,Nursing Care,P28,Adults & Council House Building,BARCHESTER HEALTHCARE HOMES LTD,11/10/2021,375.2
Bath and North East Somerset Council,10981022,EA1,Training,P26,Economic Development & Resources,DH PEOPLE PLUS LTD,11/10/2021,157.5
Bath and North East Somerset Council,81024012,LM6,Nursing Care,P28,Adults & Council House Building,BARCHESTER HEALTHCARE HOMES LTD,11/10/2021,375.2
Bath and North East Somerset Council,81024012,LM6,Nursing Care,P28,Adults & Council House Building,BARCHESTER HEALTHCARE HOMES LTD,11/10/2021,375.2
Bath and North East Somerset Council,81024012,LM6,Nursing Care,P28,Adults & Council House Building,BARCHESTER HEALTHCARE HOMES LTD,11/10/2021,375.2
Bath and North East Somerset Council,81024012,LM6,Nursing Care,P28,Adults & Council House Building,BARCHESTER HEALTHCARE HOMES LTD,11/10/2021,375.2
Bath and North East Somerset Council,81024012,LM6,Nursing Care,P28,Adults & Council House Building,BARCHESTER HEALTHCARE HOMES LTD,11/10/2021,375.2
Bath and North East Somerset Council,81024012,LM6,Nursing Care,P28,Adults & Council House Building,BARCHESTER HEALTHCARE HOMES LTD,11/10/2021,375.2
Bath and North East Somerset Council,81024012,LM6,Nursing Care,P28,Adults & Council House Building,BARCHESTER HEALTHCARE HOMES LTD,11/10/2021,375.2
Bath and North East Somerset Council,81024012,LM6,Nursing Care,P28,Adults & Council House Building,BARCHESTER HEALTHCARE HOMES LTD,11/10/2021,375.2
Bath and North East Somerset Council,81024012,LM6,Nursing Care,P28,Adults & Council House Building,BARCHESTER HEALTHCARE HOMES LTD,11/10/2021,375.2
Bath and North East Somerset Council,81024012,LM6,Nursing Care,P28,Adults & Council House Building,BARCHESTER HEALTHCARE HOMES LTD,11/10/2021,375.2
Bath and North East Somerset Council,81024180,LL3,Supported Living,P28,Adults & Council House Building,ST MUNGO'S COMMUNITY HOUSING ASSOCIATION LTD,11/10/2021,168
Bath and North East Somerset Council,81024180,LL3,Supported Living,P28,Adults & Council House Building,ST MUNGO'S COMMUNITY HOUSING ASSOCIATION LTD,11/10/2021,168
Bath and North East Somerset Council,81024012,LM6,Nursing Care,P28,Adults & Council House Building,BARCHESTER HEALTHCARE HOMES LTD,11/10/2021,375.2
Bath and North East Somerset Council,81024012,LM6,Nursing Care,P28,Adults & Council House Building,BARCHESTER HEALTHCARE HOMES LTD,11/10/2021,375.2
Bath and North East Somerset Council,81024012,LM6,Nursing Care,P28,Adults & Council House Building,BARCHESTER HEALTHCARE HOMES LTD,11/10/2021,375.2
Bath and North East Somerset Council,81024012,LM6,Nursing Care,P28,Adults & Council House Building,BARCHESTER HEALTHCARE HOMES LTD,11/10/2021,375.2
Bath and North East Somerset Council,81024012,LM6,Nursing Care,P28,Adults & Council House Building,BARCHESTER HEALTHCARE HOMES LTD,11/10/2021,375.2
Bath and North East Somerset Council,81024012,LM6,Nursing Care,P28,Adults & Council House Building,BARCHESTER HEALTHCARE HOMES LTD,11/10/2021,375.2
Bath and North East Somerset Council,81024012,LM6,Nursing Care,P28,Adults & Council House Building,BARCHESTER HEALTHCARE HOMES LTD,11/10/2021,375.2
Bath and North East Somerset Council,81024012,LM6,Nursing Care,P28,Adults & Council House Building,BARCHESTER HEALTHCARE HOMES LTD,11/10/2021,375.2
Bath and North East Somerset Council,81024012,LM6,Nursing Care,P28,Adults & Council House Building,BARCHESTER HEALTHCARE HOMES LTD,11/10/2021,375.2
Bath and North East Somerset Council,81024012,LM6,Nursing Care,P28,Adults & Council House Building,BARCHESTER HEALTHCARE HOMES LTD,11/10/2021,375.2
Bath and North East Somerset Council,81024137,LM3,Residential Care,P28,Adults & Council House Building,BARCHESTER HEALTHCARE HOMES LTD,11/10/2021,1080.76
Bath and North East Somerset Council,81024137,LM6,Nursing Care,P28,Adults & Council House Building,BARCHESTER HEALTHCARE HOMES LTD,11/10/2021,1344.3
Bath and North East Somerset Council,81024137,LM6,Nursing Care,P28,Adults & Council House Building,BARCHESTER HEALTHCARE HOMES LTD,11/10/2021,1344.3
Bath and North East Somerset Council,81024137,LM6,Nursing Care,P28,Adults & Council House Building,BARCHESTER HEALTHCARE HOMES LTD,11/10/2021,1344.3
Bath and North East Somerset Council,81024137,LM6,Nursing Care,P28,Adults & Council House Building,BARCHESTER HEALTHCARE HOMES LTD,11/10/2021,1344.3
Bath and North East Somerset Council,81024137,LM6,Nursing Care,P28,Adults & Council House Building,BARCHESTER HEALTHCARE HOMES LTD,11/10/2021,1344.3
Bath and North East Somerset Council,81024137,LM6,Nursing Care,P28,Adults & Council House Building,BARCHESTER HEALTHCARE HOMES LTD,11/10/2021,1344.3
Bath and North East Somerset Council,81024137,LM6,Nursing Care,P28,Adults & Council House Building,BARCHESTER HEALTHCARE HOMES LTD,11/10/2021,1344.3
Bath and North East Somerset Council,81024137,LM3,Residential Care,P28,Adults & Council House Building,BARCHESTER HEALTHCARE HOMES LTD,11/10/2021,1367.22
Bath and North East Somerset Council,81024137,LM6,Nursing Care,P28,Adults & Council House Building,BARCHESTER HEALTHCARE HOMES LTD,11/10/2021,1415.54
Bath and North East Somerset Council,81024137,LM6,Nursing Care,P28,Adults & Council House Building,BARCHESTER HEALTHCARE HOMES LTD,11/10/2021,1432.16
Bath and North East Somerset Council,81024137,LM6,Nursing Care,P28,Adults & Council House Building,BARCHESTER HEALTHCARE HOMES LTD,11/10/2021,1596.4
Bath and North East Somerset Council,81024137,LM3,Residential Care,P28,Adults & Council House Building,BARCHESTER HEALTHCARE HOMES LTD,11/10/2021,1700
Bath and North East Somerset Council,81024137,LM6,Nursing Care,P28,Adults & Council House Building,BARCHESTER HEALTHCARE HOMES LTD,11/10/2021,1832.16
Bath and North East Somerset Council,81023663,LM6,Nursing Care,P28,Adults & Council House Building,BARCHESTER HEALTHCARE HOMES LTD,11/10/2021,1900
Bath and North East Somerset Council,81024137,LM6,Nursing Care,P28,Adults & Council House Building,BARCHESTER HEALTHCARE HOMES LTD,11/10/2021,1900
Bath and North East Somerset Council,81024182,LL3,Supported Living,P28,Adults & Council House Building,VIRGIN CARE SERVICES LTD,11/10/2021,180
Bath and North East Somerset Council,81024137,LM6,Nursing Care,P28,Adults & Council House Building,BARCHESTER HEALTHCARE HOMES LTD,11/10/2021,1900
Bath and North East Somerset Council,81024137,LM6,Nursing Care,P28,Adults & Council House Building,BARCHESTER HEALTHCARE HOMES LTD,11/10/2021,1900
Bath and North East Somerset Council,81024137,LM6,Nursing Care,P28,Adults & Council House Building,BARCHESTER HEALTHCARE HOMES LTD,11/10/2021,1900
Bath and North East Somerset Council,81024137,LM6,Nursing Care,P28,Adults & Council House Building,BARCHESTER HEALTHCARE HOMES LTD,11/10/2021,1900
Bath and North East Somerset Council,81024137,LM6,Nursing Care,P28,Adults & Council House Building,BARCHESTER HEALTHCARE HOMES LTD,11/10/2021,1989.9
Bath and North East Somerset Council,81023663,LM6,Nursing Care,P28,Adults & Council House Building,BARCHESTER HEALTHCARE HOMES LTD,11/10/2021,2160
Bath and North East Somerset Council,81024182,LL3,Supported Living,P28,Adults & Council House Building,VIRGIN CARE SERVICES LTD,11/10/2021,191.88
Bath and North East Somerset Council,81024182,LL3,Supported Living,P28,Adults & Council House Building,VIRGIN CARE SERVICES LTD,11/10/2021,191.88
Bath and North East Somerset Council,81023663,LM6,Nursing Care,P28,Adults & Council House Building,BARCHESTER HEALTHCARE HOMES LTD,11/10/2021,2200
Bath and North East Somerset Council,81023663,LM6,Nursing Care,P28,Adults & Council House Building,BARCHESTER HEALTHCARE HOMES LTD,11/10/2021,2200
Bath and North East Somerset Council,81024137,LM6,Nursing Care,P28,Adults & Council House Building,BARCHESTER HEALTHCARE HOMES LTD,11/10/2021,2307.14
Bath and North East Somerset Council,81023663,LM6,Nursing Care,P28,Adults & Council House Building,BARCHESTER HEALTHCARE HOMES LTD,11/10/2021,2373.5
Bath and North East Somerset Council,81024137,LM6,Nursing Care,P28,Adults & Council House Building,BARCHESTER HEALTHCARE HOMES LTD,11/10/2021,2578.57
Bath and North East Somerset Council,81024137,LM6,Nursing Care,P28,Adults & Council House Building,BARCHESTER HEALTHCARE HOMES LTD,11/10/2021,2578.57
Bath and North East Somerset Council,81024012,LM6,Nursing Care,P28,Adults & Council House Building,BARCHESTER HEALTHCARE HOMES LTD,11/10/2021,3189.2
Bath and North East Somerset Council,10980846,LC3,Drugs & Medical Supplies,P28,Adults & Council House Building,NHS SUPPLY CHAIN,11/10/2021,206.38
Bath and North East Somerset Council,81024137,LM6,Nursing Care,P28,Adults & Council House Building,BARCHESTER HEALTHCARE HOMES LTD,11/10/2021,7057.14
Bath and North East Somerset Council,81024137,LM6,Nursing Care,P28,Adults & Council House Building,BARCHESTER HEALTHCARE HOMES LTD,11/10/2021,29411.22
Bath and North East Somerset Council,81023678,LM6,Nursing Care,P28,Adults & Council House Building,BARCHESTER HEALTHCARE HOMES LTD ,11/10/2021,2020
Bath and North East Somerset Council,81024180,LL3,Supported Living,P28,Adults & Council House Building,ST MUNGO'S COMMUNITY HOUSING ASSOCIATION LTD,11/10/2021,210
Bath and North East Somerset Council,81024015,LM6,Nursing Care,P28,Adults & Council House Building,BARKER CHEMICALS LTD T/A ST TERESA'S NH,11/10/2021,375.2
Bath and North East Somerset Council,81024015,LM6,Nursing Care,P28,Adults & Council House Building,BARKER CHEMICALS LTD T/A ST TERESA'S NH,11/10/2021,375.2
Bath and North East Somerset Council,81024015,LM6,Nursing Care,P28,Adults & Council House Building,BARKER CHEMICALS LTD T/A ST TERESA'S NH,11/10/2021,375.2
Bath and North East Somerset Council,81024015,LM6,Nursing Care,P28,Adults & Council House Building,BARKER CHEMICALS LTD T/A ST TERESA'S NH,11/10/2021,375.2
Bath and North East Somerset Council,81024015,LM6,Nursing Care,P28,Adults & Council House Building,BARKER CHEMICALS LTD T/A ST TERESA'S NH,11/10/2021,375.2
Bath and North East Somerset Council,81024015,LM6,Nursing Care,P28,Adults & Council House Building,BARKER CHEMICALS LTD T/A ST TERESA'S NH,11/10/2021,375.2
Bath and North East Somerset Council,81024015,LM6,Nursing Care,P28,Adults & Council House Building,BARKER CHEMICALS LTD T/A ST TERESA'S NH,11/10/2021,375.2
Bath and North East Somerset Council,81024015,LM6,Nursing Care,P28,Adults & Council House Building,BARKER CHEMICALS LTD T/A ST TERESA'S NH,11/10/2021,375.2
Bath and North East Somerset Council,81024015,LM6,Nursing Care,P28,Adults & Council House Building,BARKER CHEMICALS LTD T/A ST TERESA'S NH,11/10/2021,375.2
Bath and North East Somerset Council,81024015,LM6,Nursing Care,P28,Adults & Council House Building,BARKER CHEMICALS LTD T/A ST TERESA'S NH,11/10/2021,375.2
Bath and North East Somerset Council,81024015,LM6,Nursing Care,P28,Adults & Council House Building,BARKER CHEMICALS LTD T/A ST TERESA'S NH,11/10/2021,375.2
Bath and North East Somerset Council,81024015,LM6,Nursing Care,P28,Adults & Council House Building,BARKER CHEMICALS LTD T/A ST TERESA'S NH,11/10/2021,375.2
Bath and North East Somerset Council,81024015,LM6,Nursing Care,P28,Adults & Council House Building,BARKER CHEMICALS LTD T/A ST TERESA'S NH,11/10/2021,375.2
Bath and North East Somerset Council,81024015,LM6,Nursing Care,P28,Adults & Council House Building,BARKER CHEMICALS LTD T/A ST TERESA'S NH,11/10/2021,375.2
Bath and North East Somerset Council,81024015,LM6,Nursing Care,P28,Adults & Council House Building,BARKER CHEMICALS LTD T/A ST TERESA'S NH,11/10/2021,375.2
Bath and North East Somerset Council,81024015,LM6,Nursing Care,P28,Adults & Council House Building,BARKER CHEMICALS LTD T/A ST TERESA'S NH,11/10/2021,375.2
Bath and North East Somerset Council,81024015,LM6,Nursing Care,P28,Adults & Council House Building,BARKER CHEMICALS LTD T/A ST TERESA'S NH,11/10/2021,375.2
Bath and North East Somerset Council,81024015,LM6,Nursing Care,P28,Adults & Council House Building,BARKER CHEMICALS LTD T/A ST TERESA'S NH,11/10/2021,375.2
Bath and North East Somerset Council,81024015,LM6,Nursing Care,P28,Adults & Council House Building,BARKER CHEMICALS LTD T/A ST TERESA'S NH,11/10/2021,375.2
Bath and North East Somerset Council,81024015,LM6,Nursing Care,P28,Adults & Council House Building,BARKER CHEMICALS LTD T/A ST TERESA'S NH,11/10/2021,375.2
Bath and North East Somerset Council,81024015,LM6,Nursing Care,P28,Adults & Council House Building,BARKER CHEMICALS LTD T/A ST TERESA'S NH,11/10/2021,375.2
Bath and North East Somerset Council,81024015,LM6,Nursing Care,P28,Adults & Council House Building,BARKER CHEMICALS LTD T/A ST TERESA'S NH,11/10/2021,375.2
Bath and North East Somerset Council,81024015,LM6,Nursing Care,P28,Adults & Council House Building,BARKER CHEMICALS LTD T/A ST TERESA'S NH,11/10/2021,375.2
Bath and North East Somerset Council,81024015,LM6,Nursing Care,P28,Adults & Council House Building,BARKER CHEMICALS LTD T/A ST TERESA'S NH,11/10/2021,375.2
Bath and North East Somerset Council,81024015,LM6,Nursing Care,P28,Adults & Council House Building,BARKER CHEMICALS LTD T/A ST TERESA'S NH,11/10/2021,375.2
Bath and North East Somerset Council,81024015,LM6,Nursing Care,P28,Adults & Council House Building,BARKER CHEMICALS LTD T/A ST TERESA'S NH,11/10/2021,375.2
Bath and North East Somerset Council,81024015,LM6,Nursing Care,P28,Adults & Council House Building,BARKER CHEMICALS LTD T/A ST TERESA'S NH,11/10/2021,375.2
Bath and North East Somerset Council,81024182,LL3,Supported Living,P28,Adults & Council House Building,VIRGIN CARE SERVICES LTD,11/10/2021,227.88
Bath and North East Somerset Council,81024180,LL3,Supported Living,P28,Adults & Council House Building,ST MUNGO'S COMMUNITY HOUSING ASSOCIATION LTD,11/10/2021,231
Bath and North East Somerset Council,10980837,LP1,Hardware Purchase,P26,Economic Development & Resources,DIGITAL ID,11/10/2021,233
Bath and North East Somerset Council,10980837,LP1,Hardware Purchase,P26,Economic Development & Resources,DIGITAL ID,11/10/2021,233
Bath and North East Somerset Council,10980837,LP1,Hardware Purchase,P26,Economic Development & Resources,DIGITAL ID,11/10/2021,233
Bath and North East Somerset Council,10980846,LC3,Drugs & Medical Supplies,P28,Adults & Council House Building,NHS SUPPLY CHAIN,11/10/2021,251.37
Bath and North East Somerset Council,81024180,LL3,Supported Living,P28,Adults & Council House Building,ST MUNGO'S COMMUNITY HOUSING ASSOCIATION LTD,11/10/2021,252
Bath and North East Somerset Council,81024180,LL3,Supported Living,P28,Adults & Council House Building,ST MUNGO'S COMMUNITY HOUSING ASSOCIATION LTD,11/10/2021,252
Bath and North East Somerset Council,81023397,LA7,Purchases for Resale,P26,Economic Development & Resources,WESTAIR REPRODUCTIONS LIMITED,11/10/2021,252.8
Bath and North East Somerset Council,81024182,LL3,Supported Living,P28,Adults & Council House Building,VIRGIN CARE SERVICES LTD,11/10/2021,255.84
Bath and North East Somerset Council,81024015,LM6,Nursing Care,P28,Adults & Council House Building,BARKER CHEMICALS LTD T/A ST TERESA'S NH,11/10/2021,482.4
Bath and North East Somerset Council,81024148,LM6,Nursing Care,P28,Adults & Council House Building,BARKER CHEMICALS LTD T/A ST TERESA'S NH,11/10/2021,570
Bath and North East Somerset Council,81024148,LM6,Nursing Care,P28,Adults & Council House Building,BARKER CHEMICALS LTD T/A ST TERESA'S NH,11/10/2021,727.84
Bath and North East Somerset Council,81024148,LM6,Nursing Care,P28,Adults & Council House Building,BARKER CHEMICALS LTD T/A ST TERESA'S NH,11/10/2021,727.84
Bath and North East Somerset Council,81024148,LM6,Nursing Care,P28,Adults & Council House Building,BARKER CHEMICALS LTD T/A ST TERESA'S NH,11/10/2021,875
Bath and North East Somerset Council,81024148,LM6,Nursing Care,P28,Adults & Council House Building,BARKER CHEMICALS LTD T/A ST TERESA'S NH,11/10/2021,875
Bath and North East Somerset Council,81024148,LM6,Nursing Care,P28,Adults & Council House Building,BARKER CHEMICALS LTD T/A ST TERESA'S NH,11/10/2021,1250
Bath and North East Somerset Council,81024148,LM6,Nursing Care,P28,Adults & Council House Building,BARKER CHEMICALS LTD T/A ST TERESA'S NH,11/10/2021,1330
Bath and North East Somerset Council,81024148,LM6,Nursing Care,P28,Adults & Council House Building,BARKER CHEMICALS LTD T/A ST TERESA'S NH,11/10/2021,1394.4
Bath and North East Somerset Council,81024148,LM6,Nursing Care,P28,Adults & Council House Building,BARKER CHEMICALS LTD T/A ST TERESA'S NH,11/10/2021,1415.54
Bath and North East Somerset Council,81024148,LM6,Nursing Care,P28,Adults & Council House Building,BARKER CHEMICALS LTD T/A ST TERESA'S NH,11/10/2021,1415.54
Bath and North East Somerset Council,81024148,LM6,Nursing Care,P28,Adults & Council House Building,BARKER CHEMICALS LTD T/A ST TERESA'S NH,11/10/2021,1428.4
Bath and North East Somerset Council,81024148,LM6,Nursing Care,P28,Adults & Council House Building,BARKER CHEMICALS LTD T/A ST TERESA'S NH,11/10/2021,1432.16
Bath and North East Somerset Council,81024148,LM6,Nursing Care,P28,Adults & Council House Building,BARKER CHEMICALS LTD T/A ST TERESA'S NH,11/10/2021,1458.88
Bath and North East Somerset Council,81024148,LM6,Nursing Care,P28,Adults & Council House Building,BARKER CHEMICALS LTD T/A ST TERESA'S NH,11/10/2021,1466.36
Bath and North East Somerset Council,81024148,LM6,Nursing Care,P28,Adults & Council House Building,BARKER CHEMICALS LTD T/A ST TERESA'S NH,11/10/2021,1468.4
Bath and North East Somerset Council,81024148,LM6,Nursing Care,P28,Adults & Council House Building,BARKER CHEMICALS LTD T/A ST TERESA'S NH,11/10/2021,1470.22
Bath and North East Somerset Council,81024148,LM6,Nursing Care,P28,Adults & Council House Building,BARKER CHEMICALS LTD T/A ST TERESA'S NH,11/10/2021,1524.8
Bath and North East Somerset Council,81024148,LM6,Nursing Care,P28,Adults & Council House Building,BARKER CHEMICALS LTD T/A ST TERESA'S NH,11/10/2021,1524.8
Bath and North East Somerset Council,81024148,LM6,Nursing Care,P28,Adults & Council House Building,BARKER CHEMICALS LTD T/A ST TERESA'S NH,11/10/2021,1532.16
Bath and North East Somerset Council,81024148,LM6,Nursing Care,P28,Adults & Council House Building,BARKER CHEMICALS LTD T/A ST TERESA'S NH,11/10/2021,1532.16
Bath and North East Somerset Council,81024148,LM3,Residential Care,P28,Adults & Council House Building,BARKER CHEMICALS LTD T/A ST TERESA'S NH,11/10/2021,1540
Bath and North East Somerset Council,81024148,LM6,Nursing Care,P28,Adults & Council House Building,BARKER CHEMICALS LTD T/A ST TERESA'S NH,11/10/2021,1548.16
Bath and North East Somerset Council,81024148,LM6,Nursing Care,P28,Adults & Council House Building,BARKER CHEMICALS LTD T/A ST TERESA'S NH,11/10/2021,1564.88
Bath and North East Somerset Council,81024148,LM6,Nursing Care,P28,Adults & Council House Building,BARKER CHEMICALS LTD T/A ST TERESA'S NH,11/10/2021,1566
Bath and North East Somerset Council,81024148,LM6,Nursing Care,P28,Adults & Council House Building,BARKER CHEMICALS LTD T/A ST TERESA'S NH,11/10/2021,1602.16
Bath and North East Somerset Council,81024148,LM6,Nursing Care,P28,Adults & Council House Building,BARKER CHEMICALS LTD T/A ST TERESA'S NH,11/10/2021,1602.16
Bath and North East Somerset Council,81024148,LM6,Nursing Care,P28,Adults & Council House Building,BARKER CHEMICALS LTD T/A ST TERESA'S NH,11/10/2021,1628.16
Bath and North East Somerset Council,81024148,LM6,Nursing Care,P28,Adults & Council House Building,BARKER CHEMICALS LTD T/A ST TERESA'S NH,11/10/2021,1730.86
Bath and North East Somerset Council,81024024,LM6,Nursing Care,P28,Adults & Council House Building,BARKER CHEMICALS LTD T/A ST TERESA'S NH,11/10/2021,1750
Bath and North East Somerset Council,81024148,LM6,Nursing Care,P28,Adults & Council House Building,BARKER CHEMICALS LTD T/A ST TERESA'S NH,11/10/2021,1750
Bath and North East Somerset Council,81024148,LM6,Nursing Care,P28,Adults & Council House Building,BARKER CHEMICALS LTD T/A ST TERESA'S NH,11/10/2021,1750
Bath and North East Somerset Council,81024148,LM6,Nursing Care,P28,Adults & Council House Building,BARKER CHEMICALS LTD T/A ST TERESA'S NH,11/10/2021,1750
Bath and North East Somerset Council,81024148,LM6,Nursing Care,P28,Adults & Council House Building,BARKER CHEMICALS LTD T/A ST TERESA'S NH,11/10/2021,1750
Bath and North East Somerset Council,81024148,LM6,Nursing Care,P28,Adults & Council House Building,BARKER CHEMICALS LTD T/A ST TERESA'S NH,11/10/2021,1750
Bath and North East Somerset Council,81024148,LM6,Nursing Care,P28,Adults & Council House Building,BARKER CHEMICALS LTD T/A ST TERESA'S NH,11/10/2021,1750
Bath and North East Somerset Council,81024148,LM6,Nursing Care,P28,Adults & Council House Building,BARKER CHEMICALS LTD T/A ST TERESA'S NH,11/10/2021,1778.88
Bath and North East Somerset Council,81024148,LM3,Residential Care,P28,Adults & Council House Building,BARKER CHEMICALS LTD T/A ST TERESA'S NH,11/10/2021,1800
Bath and North East Somerset Council,81024148,LM6,Nursing Care,P28,Adults & Council House Building,BARKER CHEMICALS LTD T/A ST TERESA'S NH,11/10/2021,1835.02
Bath and North East Somerset Council,81024148,LM6,Nursing Care,P28,Adults & Council House Building,BARKER CHEMICALS LTD T/A ST TERESA'S NH,11/10/2021,1900
Bath and North East Somerset Council,81023667,LM6,Nursing Care,P28,Adults & Council House Building,BARKER CHEMICALS LTD T/A ST TERESA'S NH,11/10/2021,1920
Bath and North East Somerset Council,81024015,LM6,Nursing Care,P28,Adults & Council House Building,BARKER CHEMICALS LTD T/A ST TERESA'S NH,11/10/2021,2036.8
Bath and North East Somerset Council,81023667,LM6,Nursing Care,P28,Adults & Council House Building,BARKER CHEMICALS LTD T/A ST TERESA'S NH,11/10/2021,2106.86
Bath and North East Somerset Council,81024148,LM6,Nursing Care,P28,Adults & Council House Building,BARKER CHEMICALS LTD T/A ST TERESA'S NH,11/10/2021,2125
Bath and North East Somerset Council,81024148,LM6,Nursing Care,P28,Adults & Council House Building,BARKER CHEMICALS LTD T/A ST TERESA'S NH,11/10/2021,2200
Bath and North East Somerset Council,81024148,LM3,Residential Care,P28,Adults & Council House Building,BARKER CHEMICALS LTD T/A ST TERESA'S NH,11/10/2021,2200
Bath and North East Somerset Council,81024148,LM6,Nursing Care,P28,Adults & Council House Building,BARKER CHEMICALS LTD T/A ST TERESA'S NH,11/10/2021,2625
Bath and North East Somerset Council,81023391,LA7,Purchases for Resale,P26,Economic Development & Resources,KURT & CAROLINE JACKSON LTD,11/10/2021,289.2
Bath and North East Somerset Council,81024141,LM3,Residential Care,P28,Adults & Council House Building,BATH MIND,11/10/2021,874.56
Bath and North East Somerset Council,81024141,LM3,Residential Care,P28,Adults & Council House Building,BATH MIND,11/10/2021,874.56
Bath and North East Somerset Council,81024141,LM3,Residential Care,P28,Adults & Council House Building,BATH MIND,11/10/2021,874.56
Bath and North East Somerset Council,81024141,LM3,Residential Care,P28,Adults & Council House Building,BATH MIND,11/10/2021,874.56
Bath and North East Somerset Council,81024141,LM3,Residential Care,P28,Adults & Council House Building,BATH MIND,11/10/2021,874.56
Bath and North East Somerset Council,81024141,LM3,Residential Care,P28,Adults & Council House Building,BATH MIND,11/10/2021,874.56
Bath and North East Somerset Council,81024141,LM3,Residential Care,P28,Adults & Council House Building,BATH MIND,11/10/2021,883.3
Bath and North East Somerset Council,81024141,LM3,Residential Care,P28,Adults & Council House Building,BATH MIND,11/10/2021,883.3
Bath and North East Somerset Council,81024141,LM3,Residential Care,P28,Adults & Council House Building,BATH MIND,11/10/2021,1749.12
Bath and North East Somerset Council,81024141,LM3,Residential Care,P28,Adults & Council House Building,BATH MIND,11/10/2021,1749.12
Bath and North East Somerset Council,81024141,LM3,Residential Care,P28,Adults & Council House Building,BATH MIND,11/10/2021,1749.12
Bath and North East Somerset Council,81024182,LL3,Supported Living,P28,Adults & Council House Building,VIRGIN CARE SERVICES LTD,11/10/2021,316.5
Bath and North East Somerset Council,81024182,LL3,Supported Living,P28,Adults & Council House Building,VIRGIN CARE SERVICES LTD,11/10/2021,319.8
Bath and North East Somerset Council,81024029,LM8,Home Care,P28,Adults & Council House Building,REDACTED,11/10/2021,9900
Bath and North East Somerset Council,81024140,LM3,Residential Care,P28,Adults & Council House Building,BCVS HOMES,11/10/2021,1367.22
Bath and North East Somerset Council,81024140,LM3,Residential Care,P28,Adults & Council House Building,BCVS HOMES,11/10/2021,1367.22
Bath and North East Somerset Council,81024140,LM3,Residential Care,P28,Adults & Council House Building,BCVS HOMES,11/10/2021,1367.22
Bath and North East Somerset Council,81024182,LL3,Supported Living,P28,Adults & Council House Building,VIRGIN CARE SERVICES LTD,11/10/2021,341.12
Bath and North East Somerset Council,81024182,LL3,Supported Living,P28,Adults & Council House Building,VIRGIN CARE SERVICES LTD,11/10/2021,341.12
Bath and North East Somerset Council,81024140,LM3,Residential Care,P28,Adults & Council House Building,BCVS HOMES,11/10/2021,1418.3
Bath and North East Somerset Council,81024160,LM3,Residential Care,P28,Adults & Council House Building,BEDBOROUGH HOUSE,11/10/2021,6234.24
Bath and North East Somerset Council,81024160,LM3,Residential Care,P28,Adults & Council House Building,BEDBOROUGH HOUSE,11/10/2021,7099.44
Bath and North East Somerset Council,81024064,LM3,Residential Care,P28,Adults & Council House Building,BELMONT VILLA RESIDENTIAL NURSING HOME LTD,11/10/2021,1500
Bath and North East Somerset Council,81023454,LK1,Fees,P29,"Children & Young People, Communities & Culture",REDACTED,11/10/2021,1323
Bath and North East Somerset Council,81024052,LM3,Residential Care,P28,Adults & Council House Building,BRADBURY HOUSE LTD,11/10/2021,2256.34
Bath and North East Somerset Council,81024052,LM3,Residential Care,P28,Adults & Council House Building,BRADBURY HOUSE LTD,11/10/2021,2256.36
Bath and North East Somerset Council,81024052,LM3,Residential Care,P28,Adults & Council House Building,BRADBURY HOUSE LTD,11/10/2021,2364.68
Bath and North East Somerset Council,81024052,LM3,Residential Care,P28,Adults & Council House Building,BRADBURY HOUSE LTD,11/10/2021,2641.48
Bath and North East Somerset Council,81024052,LM3,Residential Care,P28,Adults & Council House Building,BRADBURY HOUSE LTD,11/10/2021,2856.22
Bath and North East Somerset Council,81024052,LM3,Residential Care,P28,Adults & Council House Building,BRADBURY HOUSE LTD,11/10/2021,3122.62
Bath and North East Somerset Council,81024052,LM3,Residential Care,P28,Adults & Council House Building,BRADBURY HOUSE LTD,11/10/2021,3152.16
Bath and North East Somerset Council,81024052,LM3,Residential Care,P28,Adults & Council House Building,BRADBURY HOUSE LTD,11/10/2021,4061.6
Bath and North East Somerset Council,81024052,LM3,Residential Care,P28,Adults & Council House Building,BRADBURY HOUSE LTD,11/10/2021,4347.74
Bath and North East Somerset Council,81024052,LM3,Residential Care,P28,Adults & Council House Building,BRADBURY HOUSE LTD,11/10/2021,5164.3
Bath and North East Somerset Council,81024052,LM3,Residential Care,P28,Adults & Council House Building,BRADBURY HOUSE LTD,11/10/2021,5264.62
Bath and North East Somerset Council,81024052,LM3,Residential Care,P28,Adults & Council House Building,BRADBURY HOUSE LTD,11/10/2021,5969.02
Bath and North East Somerset Council,81024052,LM3,Residential Care,P28,Adults & Council House Building,BRADBURY HOUSE LTD,11/10/2021,6748.3
Bath and North East Somerset Council,81024052,LM3,Residential Care,P28,Adults & Council House Building,BRADBURY HOUSE LTD,11/10/2021,8093.06
Bath and North East Somerset Council,81024006,LM6,Nursing Care,P28,Adults & Council House Building,BRIDGE CARE LTD,11/10/2021,375.2
Bath and North East Somerset Council,81024006,LM6,Nursing Care,P28,Adults & Council House Building,BRIDGE CARE LTD,11/10/2021,375.2
Bath and North East Somerset Council,81024006,LM6,Nursing Care,P28,Adults & Council House Building,BRIDGE CARE LTD,11/10/2021,375.2
Bath and North East Somerset Council,81024006,LM6,Nursing Care,P28,Adults & Council House Building,BRIDGE CARE LTD,11/10/2021,375.2
Bath and North East Somerset Council,81024006,LM6,Nursing Care,P28,Adults & Council House Building,BRIDGE CARE LTD,11/10/2021,375.2
Bath and North East Somerset Council,81024006,LM6,Nursing Care,P28,Adults & Council House Building,BRIDGE CARE LTD,11/10/2021,375.2
Bath and North East Somerset Council,81024006,LM6,Nursing Care,P28,Adults & Council House Building,BRIDGE CARE LTD,11/10/2021,375.2
Bath and North East Somerset Council,81024006,LM6,Nursing Care,P28,Adults & Council House Building,BRIDGE CARE LTD,11/10/2021,375.2
Bath and North East Somerset Council,81024006,LM6,Nursing Care,P28,Adults & Council House Building,BRIDGE CARE LTD,11/10/2021,375.2
Bath and North East Somerset Council,81024006,LM6,Nursing Care,P28,Adults & Council House Building,BRIDGE CARE LTD,11/10/2021,375.2
Bath and North East Somerset Council,81024006,LM6,Nursing Care,P28,Adults & Council House Building,BRIDGE CARE LTD,11/10/2021,375.2
Bath and North East Somerset Council,81024006,LM6,Nursing Care,P28,Adults & Council House Building,BRIDGE CARE LTD,11/10/2021,375.2
Bath and North East Somerset Council,81024176,LM9,Day Care,P28,Adults & Council House Building,UNITED RESPONSE,11/10/2021,366.88
Bath and North East Somerset Council,81024006,LM6,Nursing Care,P28,Adults & Council House Building,BRIDGE CARE LTD,11/10/2021,375.2
Bath and North East Somerset Council,81024006,LM6,Nursing Care,P28,Adults & Council House Building,BRIDGE CARE LTD,11/10/2021,375.2
Bath and North East Somerset Council,81024006,LM6,Nursing Care,P28,Adults & Council House Building,BRIDGE CARE LTD,11/10/2021,375.2
Bath and North East Somerset Council,81024182,LL3,Supported Living,P28,Adults & Council House Building,VIRGIN CARE SERVICES LTD,11/10/2021,373.1
Bath and North East Somerset Council,81024131,LM6,Nursing Care,P28,Adults & Council House Building,BRIDGE CARE LTD,11/10/2021,1344.3
Bath and North East Somerset Council,81024131,LM6,Nursing Care,P28,Adults & Council House Building,BRIDGE CARE LTD,11/10/2021,1344.3
Bath and North East Somerset Council,81024131,LM6,Nursing Care,P28,Adults & Council House Building,BRIDGE CARE LTD,11/10/2021,1344.3
Bath and North East Somerset Council,81024131,LM6,Nursing Care,P28,Adults & Council House Building,BRIDGE CARE LTD,11/10/2021,1412.4
Bath and North East Somerset Council,81024131,LM3,Residential Care,P28,Adults & Council House Building,BRIDGE CARE LTD,11/10/2021,1500
Bath and North East Somerset Council,81024131,LM3,Residential Care,P28,Adults & Council House Building,BRIDGE CARE LTD,11/10/2021,1500
Bath and North East Somerset Council,81024131,LM6,Nursing Care,P28,Adults & Council House Building,BRIDGE CARE LTD,11/10/2021,1532.16
Bath and North East Somerset Council,81024131,LM6,Nursing Care,P28,Adults & Council House Building,BRIDGE CARE LTD,11/10/2021,1533.24
Bath and North East Somerset Council,81024131,LM3,Residential Care,P28,Adults & Council House Building,BRIDGE CARE LTD,11/10/2021,1599.58
Bath and North East Somerset Council,81024131,LM3,Residential Care,P28,Adults & Council House Building,BRIDGE CARE LTD,11/10/2021,1600
Bath and North East Somerset Council,81024131,LM3,Residential Care,P28,Adults & Council House Building,BRIDGE CARE LTD,11/10/2021,1624.2
Bath and North East Somerset Council,81024131,LM6,Nursing Care,P28,Adults & Council House Building,BRIDGE CARE LTD,11/10/2021,1700
Bath and North East Somerset Council,81024131,LM3,Residential Care,P28,Adults & Council House Building,BRIDGE CARE LTD,11/10/2021,1800
Bath and North East Somerset Council,81024131,LM6,Nursing Care,P28,Adults & Council House Building,BRIDGE CARE LTD,11/10/2021,1832.16
Bath and North East Somerset Council,81024131,LM6,Nursing Care,P28,Adults & Council House Building,BRIDGE CARE LTD,11/10/2021,1832.16
Bath and North East Somerset Council,81024006,LM6,Nursing Care,P28,Adults & Council House Building,BRIDGE CARE LTD,11/10/2021,3323.2
Bath and North East Somerset Council,81024037,LM6,Nursing Care,P28,Adults & Council House Building,BRIGHTBOW LODGE,11/10/2021,1433.94
Bath and North East Somerset Council,81024037,LM6,Nursing Care,P28,Adults & Council House Building,BRIGHTBOW LODGE,11/10/2021,2006.98
Bath and North East Somerset Council,81024092,LM3,Residential Care,P28,Adults & Council House Building,BROUGHTON LODGE CARE HOME LTD,11/10/2021,1097.58
Bath and North East Somerset Council,81024084,LM6,Nursing Care,P28,Adults & Council House Building,BRUNEL CARE HOME,11/10/2021,578.72
Bath and North East Somerset Council,81024084,LM6,Nursing Care,P28,Adults & Council House Building,BRUNEL CARE HOME,11/10/2021,578.74
Bath and North East Somerset Council,81024010,LM6,Nursing Care,P28,Adults & Council House Building,BYBROOK HOUSE,11/10/2021,375.2
Bath and North East Somerset Council,81024010,LM6,Nursing Care,P28,Adults & Council House Building,BYBROOK HOUSE,11/10/2021,375.2
Bath and North East Somerset Council,81024010,LM6,Nursing Care,P28,Adults & Council House Building,BYBROOK HOUSE,11/10/2021,375.2
Bath and North East Somerset Council,81024010,LM6,Nursing Care,P28,Adults & Council House Building,BYBROOK HOUSE,11/10/2021,375.2
Bath and North East Somerset Council,81024010,LM6,Nursing Care,P28,Adults & Council House Building,BYBROOK HOUSE,11/10/2021,375.2
Bath and North East Somerset Council,81024040,LM6,Nursing Care,P28,Adults & Council House Building,BYBROOK HOUSE,11/10/2021,1500
Bath and North East Somerset Council,81024010,LM6,Nursing Care,P28,Adults & Council House Building,BYBROOK HOUSE,11/10/2021,3644.8
Bath and North East Somerset Council,81024040,LM6,Nursing Care,P28,Adults & Council House Building,BYBROOK HOUSE,11/10/2021,10419.2
Bath and North East Somerset Council,81024106,LM3,Residential Care,P28,Adults & Council House Building,REDACTED T/A WESTCLIFF HOUSE,11/10/2021,362.88
Bath and North East Somerset Council,81024106,LM3,Residential Care,P28,Adults & Council House Building,REDACTED T/A WESTCLIFF HOUSE,11/10/2021,847.1
Bath and North East Somerset Council,81024055,LM3,Residential Care,P28,Adults & Council House Building,C.H.O.I.C.E LTD,11/10/2021,4861.24
Bath and North East Somerset Council,81024069,LM3,Residential Care,P28,Adults & Council House Building,CAMPHILL DEVON COMMUNITY LTD,11/10/2021,2586.48
Bath and North East Somerset Council,81024016,LM6,Nursing Care,P28,Adults & Council House Building,CARE FIRST CARE HOMES LTD,11/10/2021,375.2
Bath and North East Somerset Council,81024016,LM6,Nursing Care,P28,Adults & Council House Building,CARE FIRST CARE HOMES LTD,11/10/2021,375.2
Bath and North East Somerset Council,81024016,LM6,Nursing Care,P28,Adults & Council House Building,CARE FIRST CARE HOMES LTD,11/10/2021,375.2
Bath and North East Somerset Council,81024016,LM6,Nursing Care,P28,Adults & Council House Building,CARE FIRST CARE HOMES LTD,11/10/2021,375.2
Bath and North East Somerset Council,81024016,LM6,Nursing Care,P28,Adults & Council House Building,CARE FIRST CARE HOMES LTD,11/10/2021,375.2
Bath and North East Somerset Council,81024016,LM6,Nursing Care,P28,Adults & Council House Building,CARE FIRST CARE HOMES LTD,11/10/2021,375.2
Bath and North East Somerset Council,81024016,LM6,Nursing Care,P28,Adults & Council House Building,CARE FIRST CARE HOMES LTD,11/10/2021,375.2
Bath and North East Somerset Council,81024151,LM3,Residential Care,P28,Adults & Council House Building,CARE FIRST CARE HOMES LTD,11/10/2021,1504.06
Bath and North East Somerset Council,81024151,LM3,Residential Care,P28,Adults & Council House Building,CARE FIRST CARE HOMES LTD,11/10/2021,1711.28
Bath and North East Somerset Council,81024151,XD3,Client Contributions,P28,Adults & Council House Building,CARE FIRST CARE HOMES LTD,11/10/2021,2061.73
Bath and North East Somerset Council,81024151,LM6,Nursing Care,P28,Adults & Council House Building,CARE FIRST CARE HOMES LTD,11/10/2021,3099.56
Bath and North East Somerset Council,81024151,LM6,Nursing Care,P28,Adults & Council House Building,CARE FIRST CARE HOMES LTD,11/10/2021,5257.14
Bath and North East Somerset Council,81024099,LM3,Residential Care,P28,Adults & Council House Building,CARE MANAGEMENT GROUP LTD,11/10/2021,6341.54
Bath and North East Somerset Council,81023673,LM6,Nursing Care,P28,Adults & Council House Building,CAS BEHAVIOURAL HEALTH LTD,11/10/2021,5245.94
Bath and North East Somerset Council,81023673,LM6,Nursing Care,P28,Adults & Council House Building,CAS BEHAVIOURAL HEALTH LTD,11/10/2021,5768
Bath and North East Somerset Council,81023673,LM6,Nursing Care,P28,Adults & Council House Building,CAS BEHAVIOURAL HEALTH LTD,11/10/2021,5827.28
Bath and North East Somerset Council,81023673,LM6,Nursing Care,P28,Adults & Council House Building,CAS BEHAVIOURAL HEALTH LTD,11/10/2021,6043.16
Bath and North East Somerset Council,81023462,LK1,Fees,P29,"Children & Young People, Communities & Culture",CATERPILLARS DAY NURSERY,11/10/2021,5575.5
Bath and North East Somerset Council,81023668,LM6,Nursing Care,P28,Adults & Council House Building,CEDAR CARE HOMES LTD,11/10/2021,157.15
Bath and North East Somerset Council,81024152,LM6,Nursing Care,P28,Adults & Council House Building,CEDAR CARE HOMES LTD,11/10/2021,375
Bath and North East Somerset Council,81024014,LM6,Nursing Care,P28,Adults & Council House Building,CEDAR CARE HOMES LTD,11/10/2021,375.2
Bath and North East Somerset Council,81024014,LM6,Nursing Care,P28,Adults & Council House Building,CEDAR CARE HOMES LTD,11/10/2021,375.2
Bath and North East Somerset Council,81024014,LM6,Nursing Care,P28,Adults & Council House Building,CEDAR CARE HOMES LTD,11/10/2021,375.2
Bath and North East Somerset Council,81024014,LM6,Nursing Care,P28,Adults & Council House Building,CEDAR CARE HOMES LTD,11/10/2021,375.2
Bath and North East Somerset Council,81024014,LM6,Nursing Care,P28,Adults & Council House Building,CEDAR CARE HOMES LTD,11/10/2021,375.2
Bath and North East Somerset Council,81024014,LM6,Nursing Care,P28,Adults & Council House Building,CEDAR CARE HOMES LTD,11/10/2021,375.2
Bath and North East Somerset Council,81024014,LM6,Nursing Care,P28,Adults & Council House Building,CEDAR CARE HOMES LTD,11/10/2021,375.2
Bath and North East Somerset Council,81024014,LM6,Nursing Care,P28,Adults & Council House Building,CEDAR CARE HOMES LTD,11/10/2021,375.2
Bath and North East Somerset Council,81024014,LM6,Nursing Care,P28,Adults & Council House Building,CEDAR CARE HOMES LTD,11/10/2021,375.2
Bath and North East Somerset Council,81024014,LM6,Nursing Care,P28,Adults & Council House Building,CEDAR CARE HOMES LTD,11/10/2021,375.2
Bath and North East Somerset Council,81024014,LM6,Nursing Care,P28,Adults & Council House Building,CEDAR CARE HOMES LTD,11/10/2021,375.2
Bath and North East Somerset Council,81024014,LM6,Nursing Care,P28,Adults & Council House Building,CEDAR CARE HOMES LTD,11/10/2021,375.2
Bath and North East Somerset Council,81024014,LM6,Nursing Care,P28,Adults & Council House Building,CEDAR CARE HOMES LTD,11/10/2021,375.2
Bath and North East Somerset Council,81024014,LM6,Nursing Care,P28,Adults & Council House Building,CEDAR CARE HOMES LTD,11/10/2021,375.2
Bath and North East Somerset Council,81024014,LM6,Nursing Care,P28,Adults & Council House Building,CEDAR CARE HOMES LTD,11/10/2021,375.2
Bath and North East Somerset Council,81024014,LM6,Nursing Care,P28,Adults & Council House Building,CEDAR CARE HOMES LTD,11/10/2021,375.2
Bath and North East Somerset Council,81024014,LM6,Nursing Care,P28,Adults & Council House Building,CEDAR CARE HOMES LTD,11/10/2021,375.2
Bath and North East Somerset Council,81024014,LM6,Nursing Care,P28,Adults & Council House Building,CEDAR CARE HOMES LTD,11/10/2021,375.2
Bath and North East Somerset Council,81024014,LM6,Nursing Care,P28,Adults & Council House Building,CEDAR CARE HOMES LTD,11/10/2021,375.2
Bath and North East Somerset Council,81024014,LM6,Nursing Care,P28,Adults & Council House Building,CEDAR CARE HOMES LTD,11/10/2021,375.2
Bath and North East Somerset Council,81024014,LM6,Nursing Care,P28,Adults & Council House Building,CEDAR CARE HOMES LTD,11/10/2021,375.2
Bath and North East Somerset Council,81024014,LM6,Nursing Care,P28,Adults & Council House Building,CEDAR CARE HOMES LTD,11/10/2021,375.2
Bath and North East Somerset Council,81024014,LM6,Nursing Care,P28,Adults & Council House Building,CEDAR CARE HOMES LTD,11/10/2021,375.2
Bath and North East Somerset Council,81024014,LM6,Nursing Care,P28,Adults & Council House Building,CEDAR CARE HOMES LTD,11/10/2021,375.2
Bath and North East Somerset Council,81024014,LM6,Nursing Care,P28,Adults & Council House Building,CEDAR CARE HOMES LTD,11/10/2021,375.2
Bath and North East Somerset Council,81024014,LM6,Nursing Care,P28,Adults & Council House Building,CEDAR CARE HOMES LTD,11/10/2021,375.2
Bath and North East Somerset Council,81024014,LM6,Nursing Care,P28,Adults & Council House Building,CEDAR CARE HOMES LTD,11/10/2021,375.2
Bath and North East Somerset Council,81024014,LM6,Nursing Care,P28,Adults & Council House Building,CEDAR CARE HOMES LTD,11/10/2021,375.2
Bath and North East Somerset Council,81024014,LM6,Nursing Care,P28,Adults & Council House Building,CEDAR CARE HOMES LTD,11/10/2021,375.2
Bath and North East Somerset Council,81024014,LM6,Nursing Care,P28,Adults & Council House Building,CEDAR CARE HOMES LTD,11/10/2021,375.2
Bath and North East Somerset Council,81024017,LM6,Nursing Care,P28,Adults & Council House Building,CEDAR CARE HOMES LTD,11/10/2021,375.2
Bath and North East Somerset Council,81024017,LM6,Nursing Care,P28,Adults & Council House Building,CEDAR CARE HOMES LTD,11/10/2021,375.2
Bath and North East Somerset Council,81024017,LM6,Nursing Care,P28,Adults & Council House Building,CEDAR CARE HOMES LTD,11/10/2021,375.2
Bath and North East Somerset Council,81024017,LM6,Nursing Care,P28,Adults & Council House Building,CEDAR CARE HOMES LTD,11/10/2021,375.2
Bath and North East Somerset Council,81024017,LM6,Nursing Care,P28,Adults & Council House Building,CEDAR CARE HOMES LTD,11/10/2021,375.2
Bath and North East Somerset Council,81024017,LM6,Nursing Care,P28,Adults & Council House Building,CEDAR CARE HOMES LTD,11/10/2021,375.2
Bath and North East Somerset Council,81024017,LM6,Nursing Care,P28,Adults & Council House Building,CEDAR CARE HOMES LTD,11/10/2021,375.2
Bath and North East Somerset Council,81024017,LM6,Nursing Care,P28,Adults & Council House Building,CEDAR CARE HOMES LTD,11/10/2021,375.2
Bath and North East Somerset Council,81024017,LM6,Nursing Care,P28,Adults & Council House Building,CEDAR CARE HOMES LTD,11/10/2021,375.2
Bath and North East Somerset Council,81024017,LM6,Nursing Care,P28,Adults & Council House Building,CEDAR CARE HOMES LTD,11/10/2021,375.2
Bath and North East Somerset Council,81024017,LM6,Nursing Care,P28,Adults & Council House Building,CEDAR CARE HOMES LTD,11/10/2021,375.2
Bath and North East Somerset Council,81024017,LM6,Nursing Care,P28,Adults & Council House Building,CEDAR CARE HOMES LTD,11/10/2021,375.2
Bath and North East Somerset Council,81024017,LM6,Nursing Care,P28,Adults & Council House Building,CEDAR CARE HOMES LTD,11/10/2021,375.2
Bath and North East Somerset Council,81024145,LM6,Nursing Care,P28,Adults & Council House Building,CEDAR CARE HOMES LTD,11/10/2021,424.92
Bath and North East Somerset Council,81024145,LM6,Nursing Care,P28,Adults & Council House Building,CEDAR CARE HOMES LTD,11/10/2021,502.1
Bath and North East Somerset Council,81024145,LM6,Nursing Care,P28,Adults & Council House Building,CEDAR CARE HOMES LTD,11/10/2021,707.76
Bath and North East Somerset Council,81024145,LM6,Nursing Care,P28,Adults & Council House Building,CEDAR CARE HOMES LTD,11/10/2021,707.78
Bath and North East Somerset Council,81024145,LM6,Nursing Care,P28,Adults & Council House Building,CEDAR CARE HOMES LTD,11/10/2021,748.2
Bath and North East Somerset Council,81024145,LM6,Nursing Care,P28,Adults & Council House Building,CEDAR CARE HOMES LTD,11/10/2021,748.2
Bath and North East Somerset Council,81024145,LM6,Nursing Care,P28,Adults & Council House Building,CEDAR CARE HOMES LTD,11/10/2021,762.4
Bath and North East Somerset Council,81024145,LM6,Nursing Care,P28,Adults & Council House Building,CEDAR CARE HOMES LTD,11/10/2021,991.48
Bath and North East Somerset Council,81024145,LM6,Nursing Care,P28,Adults & Council House Building,CEDAR CARE HOMES LTD,11/10/2021,1171.58
Bath and North East Somerset Council,81024145,LM6,Nursing Care,P28,Adults & Council House Building,CEDAR CARE HOMES LTD,11/10/2021,1344.3
Bath and North East Somerset Council,81024164,LM3,Residential Care,P28,Adults & Council House Building,CEDAR CARE HOMES LTD,11/10/2021,1367.22
Bath and North East Somerset Council,81024145,LM6,Nursing Care,P28,Adults & Council House Building,CEDAR CARE HOMES LTD,11/10/2021,1424.8
Bath and North East Somerset Council,81024145,LM6,Nursing Care,P28,Adults & Council House Building,CEDAR CARE HOMES LTD,11/10/2021,1424.8
Bath and North East Somerset Council,81024152,LM6,Nursing Care,P28,Adults & Council House Building,CEDAR CARE HOMES LTD,11/10/2021,1424.8
Bath and North East Somerset Council,81024152,LM6,Nursing Care,P28,Adults & Council House Building,CEDAR CARE HOMES LTD,11/10/2021,1424.8
Bath and North East Somerset Council,81024152,LM6,Nursing Care,P28,Adults & Council House Building,CEDAR CARE HOMES LTD,11/10/2021,1432.16
Bath and North East Somerset Council,81024145,LM6,Nursing Care,P28,Adults & Council House Building,CEDAR CARE HOMES LTD,11/10/2021,1474.8
Bath and North East Somerset Council,81024145,LM6,Nursing Care,P28,Adults & Council House Building,CEDAR CARE HOMES LTD,11/10/2021,1480.26
Bath and North East Somerset Council,81024152,LM6,Nursing Care,P28,Adults & Council House Building,CEDAR CARE HOMES LTD,11/10/2021,1496.4
Bath and North East Somerset Council,81024145,LM6,Nursing Care,P28,Adults & Council House Building,CEDAR CARE HOMES LTD,11/10/2021,1524.8
Bath and North East Somerset Council,81024145,LM6,Nursing Care,P28,Adults & Council House Building,CEDAR CARE HOMES LTD,11/10/2021,1524.8
Bath and North East Somerset Council,81024145,LM6,Nursing Care,P28,Adults & Council House Building,CEDAR CARE HOMES LTD,11/10/2021,1524.8
Bath and North East Somerset Council,81024145,LM3,Residential Care,P28,Adults & Council House Building,CEDAR CARE HOMES LTD,11/10/2021,1540
Bath and North East Somerset Council,81024152,LM3,Residential Care,P28,Adults & Council House Building,CEDAR CARE HOMES LTD,11/10/2021,1540
Bath and North East Somerset Council,81024152,LM3,Residential Care,P28,Adults & Council House Building,CEDAR CARE HOMES LTD,11/10/2021,1540
Bath and North East Somerset Council,81024152,LM3,Residential Care,P28,Adults & Council House Building,CEDAR CARE HOMES LTD,11/10/2021,1540
Bath and North East Somerset Council,81024164,LM3,Residential Care,P28,Adults & Council House Building,CEDAR CARE HOMES LTD,11/10/2021,1540
Bath and North East Somerset Council,81024164,LM3,Residential Care,P28,Adults & Council House Building,CEDAR CARE HOMES LTD,11/10/2021,1540
Bath and North East Somerset Council,81024164,LM3,Residential Care,P28,Adults & Council House Building,CEDAR CARE HOMES LTD,11/10/2021,1540
Bath and North East Somerset Council,81024164,LM3,Residential Care,P28,Adults & Council House Building,CEDAR CARE HOMES LTD,11/10/2021,1540
Bath and North East Somerset Council,81024164,LM3,Residential Care,P28,Adults & Council House Building,CEDAR CARE HOMES LTD,11/10/2021,1540
Bath and North East Somerset Council,81024164,LM3,Residential Care,P28,Adults & Council House Building,CEDAR CARE HOMES LTD,11/10/2021,1540
Bath and North East Somerset Council,81024164,LM3,Residential Care,P28,Adults & Council House Building,CEDAR CARE HOMES LTD,11/10/2021,1540
Bath and North East Somerset Council,81024164,LM3,Residential Care,P28,Adults & Council House Building,CEDAR CARE HOMES LTD,11/10/2021,1540
Bath and North East Somerset Council,81024164,LM3,Residential Care,P28,Adults & Council House Building,CEDAR CARE HOMES LTD,11/10/2021,1540
Bath and North East Somerset Council,81024164,LM3,Residential Care,P28,Adults & Council House Building,CEDAR CARE HOMES LTD,11/10/2021,1540
Bath and North East Somerset Council,81024164,LM3,Residential Care,P28,Adults & Council House Building,CEDAR CARE HOMES LTD,11/10/2021,1540
Bath and North East Somerset Council,81024164,LM3,Residential Care,P28,Adults & Council House Building,CEDAR CARE HOMES LTD,11/10/2021,1540
Bath and North East Somerset Council,81024164,LM3,Residential Care,P28,Adults & Council House Building,CEDAR CARE HOMES LTD,11/10/2021,1540
Bath and North East Somerset Council,81024164,LM3,Residential Care,P28,Adults & Council House Building,CEDAR CARE HOMES LTD,11/10/2021,1540
Bath and North East Somerset Council,81024145,LM6,Nursing Care,P28,Adults & Council House Building,CEDAR CARE HOMES LTD,11/10/2021,1598.88
Bath and North East Somerset Council,81024145,LM3,Residential Care,P28,Adults & Council House Building,CEDAR CARE HOMES LTD,11/10/2021,1600
Bath and North East Somerset Council,81024145,LM6,Nursing Care,P28,Adults & Council House Building,CEDAR CARE HOMES LTD,11/10/2021,1600
Bath and North East Somerset Council,81024164,LM3,Residential Care,P28,Adults & Council House Building,CEDAR CARE HOMES LTD,11/10/2021,1600
Bath and North East Somerset Council,81024017,LM6,Nursing Care,P28,Adults & Council House Building,CEDAR CARE HOMES LTD,11/10/2021,1661.6
Bath and North East Somerset Council,81023668,LM6,Nursing Care,P28,Adults & Council House Building,CEDAR CARE HOMES LTD,11/10/2021,1700
Bath and North East Somerset Council,81023668,LM6,Nursing Care,P28,Adults & Council House Building,CEDAR CARE HOMES LTD,11/10/2021,1700
Bath and North East Somerset Council,81024152,LM3,Residential Care,P28,Adults & Council House Building,CEDAR CARE HOMES LTD,11/10/2021,1728.1
Bath and North East Somerset Council,81024152,LM6,Nursing Care,P28,Adults & Council House Building,CEDAR CARE HOMES LTD,11/10/2021,1750
Bath and North East Somerset Council,81024152,LM6,Nursing Care,P28,Adults & Council House Building,CEDAR CARE HOMES LTD,11/10/2021,1790
Bath and North East Somerset Council,81024014,LM6,Nursing Care,P28,Adults & Council House Building,CEDAR CARE HOMES LTD,11/10/2021,1876
Bath and North East Somerset Council,81024145,LM6,Nursing Care,P28,Adults & Council House Building,CEDAR CARE HOMES LTD,11/10/2021,1946.36
Bath and North East Somerset Council,81023665,LM6,Nursing Care,P28,Adults & Council House Building,CEDAR CARE HOMES LTD,11/10/2021,1969.5
Bath and North East Somerset Council,81023668,LM6,Nursing Care,P28,Adults & Council House Building,CEDAR CARE HOMES LTD,11/10/2021,2070.5
Bath and North East Somerset Council,81023668,LM6,Nursing Care,P28,Adults & Council House Building,CEDAR CARE HOMES LTD,11/10/2021,2088.68
Bath and North East Somerset Council,81024014,LM6,Nursing Care,P28,Adults & Council House Building,CEDAR CARE HOMES LTD,11/10/2021,2170.8
Bath and North East Somerset Council,81023668,LM6,Nursing Care,P28,Adults & Council House Building,CEDAR CARE HOMES LTD,11/10/2021,2200
Bath and North East Somerset Council,81023668,LM6,Nursing Care,P28,Adults & Council House Building,CEDAR CARE HOMES LTD,11/10/2021,2200
Bath and North East Somerset Council,81024017,LM6,Nursing Care,P28,Adults & Council House Building,CEDAR CARE HOMES LTD,11/10/2021,5596.47
Bath and North East Somerset Council,81024009,LM6,Nursing Care,P28,Adults & Council House Building,CEDAR PARK NURSING HOME,11/10/2021,375.2
Bath and North East Somerset Council,81024009,LM6,Nursing Care,P28,Adults & Council House Building,CEDAR PARK NURSING HOME,11/10/2021,375.2
Bath and North East Somerset Council,81024009,LM6,Nursing Care,P28,Adults & Council House Building,CEDAR PARK NURSING HOME,11/10/2021,375.2
Bath and North East Somerset Council,81024009,LM6,Nursing Care,P28,Adults & Council House Building,CEDAR PARK NURSING HOME,11/10/2021,375.2
Bath and North East Somerset Council,81024009,LM6,Nursing Care,P28,Adults & Council House Building,CEDAR PARK NURSING HOME,11/10/2021,375.2
Bath and North East Somerset Council,81024009,LM6,Nursing Care,P28,Adults & Council House Building,CEDAR PARK NURSING HOME,11/10/2021,375.2
Bath and North East Somerset Council,81024009,LM6,Nursing Care,P28,Adults & Council House Building,CEDAR PARK NURSING HOME,11/10/2021,375.2
Bath and North East Somerset Council,81024009,LM6,Nursing Care,P28,Adults & Council House Building,CEDAR PARK NURSING HOME,11/10/2021,375.2
Bath and North East Somerset Council,81024009,LM6,Nursing Care,P28,Adults & Council House Building,CEDAR PARK NURSING HOME,11/10/2021,375.2
Bath and North East Somerset Council,81024135,LM6,Nursing Care,P28,Adults & Council House Building,CEDAR PARK NURSING HOME,11/10/2021,1344.3
Bath and North East Somerset Council,81024135,LM6,Nursing Care,P28,Adults & Council House Building,CEDAR PARK NURSING HOME,11/10/2021,1344.3
Bath and North East Somerset Council,81024135,LM6,Nursing Care,P28,Adults & Council House Building,CEDAR PARK NURSING HOME,11/10/2021,1374.8
Bath and North East Somerset Council,81024135,LM6,Nursing Care,P28,Adults & Council House Building,CEDAR PARK NURSING HOME,11/10/2021,1374.8
Bath and North East Somerset Council,81024135,LM6,Nursing Care,P28,Adults & Council House Building,CEDAR PARK NURSING HOME,11/10/2021,1439.9
Bath and North East Somerset Council,81024135,LM3,Residential Care,P28,Adults & Council House Building,CEDAR PARK NURSING HOME,11/10/2021,1450
Bath and North East Somerset Council,81024135,LM3,Residential Care,P28,Adults & Council House Building,CEDAR PARK NURSING HOME,11/10/2021,1540
Bath and North East Somerset Council,81024135,LM3,Residential Care,P28,Adults & Council House Building,CEDAR PARK NURSING HOME,11/10/2021,1540
Bath and North East Somerset Council,81024135,LM3,Residential Care,P28,Adults & Council House Building,CEDAR PARK NURSING HOME,11/10/2021,1540
Bath and North East Somerset Council,81024135,LM6,Nursing Care,P28,Adults & Council House Building,CEDAR PARK NURSING HOME,11/10/2021,1580.86
Bath and North East Somerset Council,81024135,LM6,Nursing Care,P28,Adults & Council House Building,CEDAR PARK NURSING HOME,11/10/2021,1718.7
Bath and North East Somerset Council,81024135,LM6,Nursing Care,P28,Adults & Council House Building,CEDAR PARK NURSING HOME,11/10/2021,1718.7
Bath and North East Somerset Council,81024135,LM3,Residential Care,P28,Adults & Council House Building,CEDAR PARK NURSING HOME,11/10/2021,1767.7
Bath and North East Somerset Council,81024135,LM6,Nursing Care,P28,Adults & Council House Building,CEDAR PARK NURSING HOME,11/10/2021,1802.16
Bath and North East Somerset Council,81024135,LM6,Nursing Care,P28,Adults & Council House Building,CEDAR PARK NURSING HOME,11/10/2021,2080
Bath and North East Somerset Council,81024135,LM6,Nursing Care,P28,Adults & Council House Building,CEDAR PARK NURSING HOME,11/10/2021,2183.68
Bath and North East Somerset Council,81024135,LM6,Nursing Care,P28,Adults & Council House Building,CEDAR PARK NURSING HOME,11/10/2021,4457.14
Bath and North East Somerset Council,81024073,LM3,Residential Care,P28,Adults & Council House Building,CEPEN LODGE CARE HOME,11/10/2021,1458
Bath and North East Somerset Council,81023764,LL8,Individualised Budget,P29,"Children & Young People, Communities & Culture",REDACTED,11/10/2021,8675.52
Bath and North East Somerset Council,81024018,LM6,Nursing Care,P28,Adults & Council House Building,CHERRY GARDEN PROPERTIES LTD,11/10/2021,375.2
Bath and North East Somerset Council,81024018,LM6,Nursing Care,P28,Adults & Council House Building,CHERRY GARDEN PROPERTIES LTD,11/10/2021,375.2
Bath and North East Somerset Council,81024018,LM6,Nursing Care,P28,Adults & Council House Building,CHERRY GARDEN PROPERTIES LTD,11/10/2021,375.2
Bath and North East Somerset Council,81024018,LM6,Nursing Care,P28,Adults & Council House Building,CHERRY GARDEN PROPERTIES LTD,11/10/2021,375.2
Bath and North East Somerset Council,81024018,LM6,Nursing Care,P28,Adults & Council House Building,CHERRY GARDEN PROPERTIES LTD,11/10/2021,375.2
Bath and North East Somerset Council,81024018,LM6,Nursing Care,P28,Adults & Council House Building,CHERRY GARDEN PROPERTIES LTD,11/10/2021,375.2
Bath and North East Somerset Council,81024018,LM6,Nursing Care,P28,Adults & Council House Building,CHERRY GARDEN PROPERTIES LTD,11/10/2021,375.2
Bath and North East Somerset Council,81024018,LM6,Nursing Care,P28,Adults & Council House Building,CHERRY GARDEN PROPERTIES LTD,11/10/2021,375.2
Bath and North East Somerset Council,81024018,LM6,Nursing Care,P28,Adults & Council House Building,CHERRY GARDEN PROPERTIES LTD,11/10/2021,375.2
Bath and North East Somerset Council,81024018,LM6,Nursing Care,P28,Adults & Council House Building,CHERRY GARDEN PROPERTIES LTD,11/10/2021,375.2
Bath and North East Somerset Council,81024018,LM6,Nursing Care,P28,Adults & Council House Building,CHERRY GARDEN PROPERTIES LTD,11/10/2021,375.2
Bath and North East Somerset Council,81024018,LM6,Nursing Care,P28,Adults & Council House Building,CHERRY GARDEN PROPERTIES LTD,11/10/2021,375.2
Bath and North East Somerset Council,81024018,LM6,Nursing Care,P28,Adults & Council House Building,CHERRY GARDEN PROPERTIES LTD,11/10/2021,375.2
Bath and North East Somerset Council,81024018,LM6,Nursing Care,P28,Adults & Council House Building,CHERRY GARDEN PROPERTIES LTD,11/10/2021,375.2
Bath and North East Somerset Council,81024018,LM6,Nursing Care,P28,Adults & Council House Building,CHERRY GARDEN PROPERTIES LTD,11/10/2021,375.2
Bath and North East Somerset Council,81024018,LM6,Nursing Care,P28,Adults & Council House Building,CHERRY GARDEN PROPERTIES LTD,11/10/2021,375.2
Bath and North East Somerset Council,81024018,LM6,Nursing Care,P28,Adults & Council House Building,CHERRY GARDEN PROPERTIES LTD,11/10/2021,375.2
Bath and North East Somerset Council,81024018,LM6,Nursing Care,P28,Adults & Council House Building,CHERRY GARDEN PROPERTIES LTD,11/10/2021,375.2
Bath and North East Somerset Council,81024155,LM6,Nursing Care,P28,Adults & Council House Building,CHERRY GARDEN PROPERTIES LTD,11/10/2021,1344.3
Bath and North East Somerset Council,81024155,LM6,Nursing Care,P28,Adults & Council House Building,CHERRY GARDEN PROPERTIES LTD,11/10/2021,1344.3
Bath and North East Somerset Council,81024155,LM6,Nursing Care,P28,Adults & Council House Building,CHERRY GARDEN PROPERTIES LTD,11/10/2021,1344.3
Bath and North East Somerset Council,81024155,LM6,Nursing Care,P28,Adults & Council House Building,CHERRY GARDEN PROPERTIES LTD,11/10/2021,1344.3
Bath and North East Somerset Council,81024155,LM6,Nursing Care,P28,Adults & Council House Building,CHERRY GARDEN PROPERTIES LTD,11/10/2021,1415.54
Bath and North East Somerset Council,81024155,LM3,Residential Care,P28,Adults & Council House Building,CHERRY GARDEN PROPERTIES LTD,11/10/2021,1428.14
Bath and North East Somerset Council,81024155,LM6,Nursing Care,P28,Adults & Council House Building,CHERRY GARDEN PROPERTIES LTD,11/10/2021,1478
Bath and North East Somerset Council,81024155,LM6,Nursing Care,P28,Adults & Council House Building,CHERRY GARDEN PROPERTIES LTD,11/10/2021,1500
Bath and North East Somerset Council,81024155,LM6,Nursing Care,P28,Adults & Council House Building,CHERRY GARDEN PROPERTIES LTD,11/10/2021,1504.16
Bath and North East Somerset Council,81024155,LM6,Nursing Care,P28,Adults & Council House Building,CHERRY GARDEN PROPERTIES LTD,11/10/2021,1624.8
Bath and North East Somerset Council,81024155,LM3,Residential Care,P28,Adults & Council House Building,CHERRY GARDEN PROPERTIES LTD,11/10/2021,1700
Bath and North East Somerset Council,81024155,LM6,Nursing Care,P28,Adults & Council House Building,CHERRY GARDEN PROPERTIES LTD,11/10/2021,1775.2
Bath and North East Somerset Council,81024039,LM3,Residential Care,P28,Adults & Council House Building,CHESCOMBE TRUST,11/10/2021,3232.3
Bath and North East Somerset Council,81023666,LM3,Residential Care,P28,Adults & Council House Building,CHOICE LTD,11/10/2021,4276.34
Bath and North East Somerset Council,81024093,LM3,Residential Care,P28,Adults & Council House Building,CHOICE LTD,11/10/2021,4338.02
Bath and North East Somerset Council,81024005,LM6,Nursing Care,P28,Adults & Council House Building,CHOLWELL HOUSE NURSING HOME,11/10/2021,375.2
Bath and North East Somerset Council,81024005,LM6,Nursing Care,P28,Adults & Council House Building,CHOLWELL HOUSE NURSING HOME,11/10/2021,375.2
Bath and North East Somerset Council,81024005,LM6,Nursing Care,P28,Adults & Council House Building,CHOLWELL HOUSE NURSING HOME,11/10/2021,375.2
Bath and North East Somerset Council,81024005,LM6,Nursing Care,P28,Adults & Council House Building,CHOLWELL HOUSE NURSING HOME,11/10/2021,375.2
Bath and North East Somerset Council,81024005,LM6,Nursing Care,P28,Adults & Council House Building,CHOLWELL HOUSE NURSING HOME,11/10/2021,375.2
Bath and North East Somerset Council,81024005,LM6,Nursing Care,P28,Adults & Council House Building,CHOLWELL HOUSE NURSING HOME,11/10/2021,375.2
Bath and North East Somerset Council,81024005,LM6,Nursing Care,P28,Adults & Council House Building,CHOLWELL HOUSE NURSING HOME,11/10/2021,375.2
Bath and North East Somerset Council,81024005,LM6,Nursing Care,P28,Adults & Council House Building,CHOLWELL HOUSE NURSING HOME,11/10/2021,375.2
Bath and North East Somerset Council,81024005,LM6,Nursing Care,P28,Adults & Council House Building,CHOLWELL HOUSE NURSING HOME,11/10/2021,375.2
Bath and North East Somerset Council,81024005,LM6,Nursing Care,P28,Adults & Council House Building,CHOLWELL HOUSE NURSING HOME,11/10/2021,375.2
Bath and North East Somerset Council,81024005,LM6,Nursing Care,P28,Adults & Council House Building,CHOLWELL HOUSE NURSING HOME,11/10/2021,375.2
Bath and North East Somerset Council,81024005,LM6,Nursing Care,P28,Adults & Council House Building,CHOLWELL HOUSE NURSING HOME,11/10/2021,375.2
Bath and North East Somerset Council,81024005,LM6,Nursing Care,P28,Adults & Council House Building,CHOLWELL HOUSE NURSING HOME,11/10/2021,375.2
Bath and North East Somerset Council,81024005,LM6,Nursing Care,P28,Adults & Council House Building,CHOLWELL HOUSE NURSING HOME,11/10/2021,375.2
Bath and North East Somerset Council,81024130,LM6,Nursing Care,P28,Adults & Council House Building,CHOLWELL HOUSE NURSING HOME,11/10/2021,707.76
Bath and North East Somerset Council,81024130,LM6,Nursing Care,P28,Adults & Council House Building,CHOLWELL HOUSE NURSING HOME,11/10/2021,707.78
Bath and North East Somerset Council,81024130,LM6,Nursing Care,P28,Adults & Council House Building,CHOLWELL HOUSE NURSING HOME,11/10/2021,1502.4
Bath and North East Somerset Council,81024130,LM3,Residential Care,P28,Adults & Council House Building,CHOLWELL HOUSE NURSING HOME,11/10/2021,1545
Bath and North East Somerset Council,81024130,LM3,Residential Care,P28,Adults & Council House Building,CHOLWELL HOUSE NURSING HOME,11/10/2021,1700
Bath and North East Somerset Council,81024130,LM3,Residential Care,P28,Adults & Council House Building,CHOLWELL HOUSE NURSING HOME,11/10/2021,1700
Bath and North East Somerset Council,81023661,LM6,Nursing Care,P28,Adults & Council House Building,CHOLWELL HOUSE NURSING HOME,11/10/2021,2327.04
Bath and North East Somerset Council,81023989,LM1,Volunt Homes Placements Top/Up,P29,"Children & Young People, Communities & Culture",REDACTED,11/10/2021,264.34
Bath and North East Somerset Council,81023989,LM1,Volunt Homes Placements Top/Up,P29,"Children & Young People, Communities & Culture",REDACTED,11/10/2021,264.36
Bath and North East Somerset Council,81024186,LL3,Supported Living,P28,Adults & Council House Building,CLEEVE REST LTD,11/10/2021,830.8
Bath and North East Somerset Council,81024186,LL3,Supported Living,P28,Adults & Council House Building,CLEEVE REST LTD,11/10/2021,872.34
Bath and North East Somerset Council,81024044,LM3,Residential Care,P28,Adults & Council House Building,COCKLEBURY FARMHOUSE,11/10/2021,3931.62
Bath and North East Somerset Council,81024062,LM3,Residential Care,P28,Adults & Council House Building,COMMUNITY OF ST ANTONY & ST ELIAS & REV,11/10/2021,1136.92
Bath and North East Somerset Council,81024062,LM3,Residential Care,P28,Adults & Council House Building,COMMUNITY OF ST ANTONY & ST ELIAS & REV,11/10/2021,1163.14
Bath and North East Somerset Council,81024062,LM3,Residential Care,P28,Adults & Council House Building,COMMUNITY OF ST ANTONY & ST ELIAS & REV,11/10/2021,2652.76
Bath and North East Somerset Council,81024062,LM3,Residential Care,P28,Adults & Council House Building,COMMUNITY OF ST ANTONY & ST ELIAS & REV,11/10/2021,2713.94
Bath and North East Somerset Council,81024116,LM3,Residential Care,P28,Adults & Council House Building,COMMUNITY THERAPEUTIC SERVICES LTD,11/10/2021,3806.84
Bath and North East Somerset Council,81024070,LM3,Residential Care,P28,Adults & Council House Building,COMMUNITY THERAPEUTIC SERVICES LTD,11/10/2021,6320.94
Bath and North East Somerset Council,81023657,LL8,Individualised Budget,P28,Adults & Council House Building,COMPASS DISABILITY SERVICES,11/10/2021,3182
Bath and North East Somerset Council,81024021,LM6,Nursing Care,P28,Adults & Council House Building,ST MONICAS GENERAL ACCOUNT,11/10/2021,375.2
Bath and North East Somerset Council,81024021,LM6,Nursing Care,P28,Adults & Council House Building,ST MONICAS GENERAL ACCOUNT,11/10/2021,375.2
Bath and North East Somerset Council,81024021,LM6,Nursing Care,P28,Adults & Council House Building,ST MONICAS GENERAL ACCOUNT,11/10/2021,375.2
Bath and North East Somerset Council,81024021,LM6,Nursing Care,P28,Adults & Council House Building,ST MONICAS GENERAL ACCOUNT,11/10/2021,375.2
Bath and North East Somerset Council,81024021,LM6,Nursing Care,P28,Adults & Council House Building,ST MONICAS GENERAL ACCOUNT,11/10/2021,375.2
Bath and North East Somerset Council,81024021,LM6,Nursing Care,P28,Adults & Council House Building,ST MONICAS GENERAL ACCOUNT,11/10/2021,375.2
Bath and North East Somerset Council,81024021,LM6,Nursing Care,P28,Adults & Council House Building,ST MONICAS GENERAL ACCOUNT,11/10/2021,375.2
Bath and North East Somerset Council,81024021,LM6,Nursing Care,P28,Adults & Council House Building,ST MONICAS GENERAL ACCOUNT,11/10/2021,375.2
Bath and North East Somerset Council,81024021,LM6,Nursing Care,P28,Adults & Council House Building,ST MONICAS GENERAL ACCOUNT,11/10/2021,375.2
Bath and North East Somerset Council,81024021,LM6,Nursing Care,P28,Adults & Council House Building,ST MONICAS GENERAL ACCOUNT,11/10/2021,375.2
Bath and North East Somerset Council,81024021,LM6,Nursing Care,P28,Adults & Council House Building,ST MONICAS GENERAL ACCOUNT,11/10/2021,375.2
Bath and North East Somerset Council,81024021,LM6,Nursing Care,P28,Adults & Council House Building,ST MONICAS GENERAL ACCOUNT,11/10/2021,375.2
Bath and North East Somerset Council,81024021,LM6,Nursing Care,P28,Adults & Council House Building,ST MONICAS GENERAL ACCOUNT,11/10/2021,375.2
Bath and North East Somerset Council,81024021,LM6,Nursing Care,P28,Adults & Council House Building,ST MONICAS GENERAL ACCOUNT,11/10/2021,375.2
Bath and North East Somerset Council,81024021,LM6,Nursing Care,P28,Adults & Council House Building,ST MONICAS GENERAL ACCOUNT,11/10/2021,375.2
Bath and North East Somerset Council,81024021,LM6,Nursing Care,P28,Adults & Council House Building,ST MONICAS GENERAL ACCOUNT,11/10/2021,375.2
Bath and North East Somerset Council,81024021,LM6,Nursing Care,P28,Adults & Council House Building,ST MONICAS GENERAL ACCOUNT,11/10/2021,375.2
Bath and North East Somerset Council,81024021,LM6,Nursing Care,P28,Adults & Council House Building,ST MONICAS GENERAL ACCOUNT,11/10/2021,375.2
Bath and North East Somerset Council,81024021,LM6,Nursing Care,P28,Adults & Council House Building,ST MONICAS GENERAL ACCOUNT,11/10/2021,375.2
Bath and North East Somerset Council,81024021,LM6,Nursing Care,P28,Adults & Council House Building,ST MONICAS GENERAL ACCOUNT,11/10/2021,375.2
Bath and North East Somerset Council,81024021,LM6,Nursing Care,P28,Adults & Council House Building,ST MONICAS GENERAL ACCOUNT,11/10/2021,375.2
Bath and North East Somerset Council,81024021,LM6,Nursing Care,P28,Adults & Council House Building,ST MONICAS GENERAL ACCOUNT,11/10/2021,375.2
Bath and North East Somerset Council,81024021,LM6,Nursing Care,P28,Adults & Council House Building,ST MONICAS GENERAL ACCOUNT,11/10/2021,375.2
Bath and North East Somerset Council,81024021,LM6,Nursing Care,P28,Adults & Council House Building,ST MONICAS GENERAL ACCOUNT,11/10/2021,375.2
Bath and North East Somerset Council,81024021,LM6,Nursing Care,P28,Adults & Council House Building,ST MONICAS GENERAL ACCOUNT,11/10/2021,375.2
Bath and North East Somerset Council,81024150,LM3,Residential Care,P28,Adults & Council House Building,CONSENSUS SUPPORT SERVICES LTD,11/10/2021,4176.76
Bath and North East Somerset Council,81024150,LM3,Residential Care,P28,Adults & Council House Building,CONSENSUS SUPPORT SERVICES LTD,11/10/2021,4298.26
Bath and North East Somerset Council,81024150,LM3,Residential Care,P28,Adults & Council House Building,CONSENSUS SUPPORT SERVICES LTD,11/10/2021,4352.26
Bath and North East Somerset Council,81024113,LM3,Residential Care,P28,Adults & Council House Building,CONSENSUS SUPPORT SERVICES LTD,11/10/2021,4460.16
Bath and North East Somerset Council,81024150,LM3,Residential Care,P28,Adults & Council House Building,CONSENSUS SUPPORT SERVICES LTD,11/10/2021,4541.26
Bath and North East Somerset Council,81024150,LM3,Residential Care,P28,Adults & Council House Building,CONSENSUS SUPPORT SERVICES LTD,11/10/2021,8510.26
Bath and North East Somerset Council,81024107,LM3,Residential Care,P28,Adults & Council House Building,CONSENSUS SUPPORT SERVICES LTD ,11/10/2021,3556.3
Bath and North East Somerset Council,81024171,LL3,Supported Living,P28,Adults & Council House Building,CORNERSTONES UK LTD,11/10/2021,2314.57
Bath and North East Somerset Council,81024059,LM3,Residential Care,P28,Adults & Council House Building,CORNERSTONES UK LTD,11/10/2021,3120.5
Bath and North East Somerset Council,81024182,LL3,Supported Living,P28,Adults & Council House Building,VIRGIN CARE SERVICES LTD,11/10/2021,383.76
Bath and North East Somerset Council,81023419,LA7,Purchases for Resale,P26,Economic Development & Resources,CUSTOMWORKS,11/10/2021,385
Bath and North East Somerset Council,81024193,PG4,Support Grants,P26,Economic Development & Resources,COVID 19 BUSINESS GRANT,11/10/2021,500
Bath and North East Somerset Council,81024194,PG4,Support Grants,P26,Economic Development & Resources,COVID 19 BUSINESS GRANT,11/10/2021,500
Bath and North East Somerset Council,81024195,PG4,Support Grants,P26,Economic Development & Resources,COVID 19 BUSINESS GRANT,11/10/2021,500
Bath and North East Somerset Council,81024196,PG4,Support Grants,P26,Economic Development & Resources,COVID 19 BUSINESS GRANT,11/10/2021,500
Bath and North East Somerset Council,81024197,PG4,Support Grants,P26,Economic Development & Resources,COVID 19 BUSINESS GRANT,11/10/2021,500
Bath and North East Somerset Council,81024198,PG4,Support Grants,P26,Economic Development & Resources,COVID 19 BUSINESS GRANT,11/10/2021,500
Bath and North East Somerset Council,81024182,LL3,Supported Living,P28,Adults & Council House Building,VIRGIN CARE SERVICES LTD,11/10/2021,400
Bath and North East Somerset Council,81023391,LA7,Purchases for Resale,P26,Economic Development & Resources,KURT & CAROLINE JACKSON LTD,11/10/2021,401
Bath and North East Somerset Council,81024061,LM3,Residential Care,P28,Adults & Council House Building,CRAEGMOOR FACILITIES CO LTD,11/10/2021,3598.32
Bath and North East Somerset Council,81024068,LM3,Residential Care,P28,Adults & Council House Building,CRAEGMOOR FACILITIES CO LTD,11/10/2021,2144.8
Bath and North East Somerset Council,81023428,LA7,Purchases for Resale,P26,Economic Development & Resources,SMUDGE,11/10/2021,420
Bath and North East Somerset Council,81024068,LM3,Residential Care,P28,Adults & Council House Building,CRAEGMOOR FACILITIES CO LTD,11/10/2021,8465.62
Bath and North East Somerset Council,81024129,LM3,Residential Care,P28,Adults & Council House Building,CRAEGMOOR FACILITIES CO LTD,11/10/2021,735.04
Bath and North East Somerset Council,81024129,LM3,Residential Care,P28,Adults & Council House Building,CRAEGMOOR FACILITIES CO LTD,11/10/2021,2136.98
Bath and North East Somerset Council,81024129,LM3,Residential Care,P28,Adults & Council House Building,CRAEGMOOR FACILITIES CO LTD,11/10/2021,2403.02
Bath and North East Somerset Council,81024129,LM3,Residential Care,P28,Adults & Council House Building,CRAEGMOOR FACILITIES CO LTD,11/10/2021,2439.82
Bath and North East Somerset Council,81024045,LM3,Residential Care,P28,Adults & Council House Building,CRAEGMOOR FACILITIES CO LTD,11/10/2021,2627.36
Bath and North East Somerset Council,81024086,LM3,Residential Care,P28,Adults & Council House Building,CRAEGMOOR FACILITIES CO LTD,11/10/2021,3352.92
Bath and North East Somerset Council,81024008,LM6,Nursing Care,P28,Adults & Council House Building,CRANHILL NURSING HOME LTD,11/10/2021,375.2
Bath and North East Somerset Council,81024008,LM6,Nursing Care,P28,Adults & Council House Building,CRANHILL NURSING HOME LTD,11/10/2021,375.2
Bath and North East Somerset Council,81024008,LM6,Nursing Care,P28,Adults & Council House Building,CRANHILL NURSING HOME LTD,11/10/2021,375.2
Bath and North East Somerset Council,81024008,LM6,Nursing Care,P28,Adults & Council House Building,CRANHILL NURSING HOME LTD,11/10/2021,375.2
Bath and North East Somerset Council,81024008,LM6,Nursing Care,P28,Adults & Council House Building,CRANHILL NURSING HOME LTD,11/10/2021,375.2
Bath and North East Somerset Council,81024008,LM6,Nursing Care,P28,Adults & Council House Building,CRANHILL NURSING HOME LTD,11/10/2021,375.2
Bath and North East Somerset Council,81024008,LM6,Nursing Care,P28,Adults & Council House Building,CRANHILL NURSING HOME LTD,11/10/2021,670
Bath and North East Somerset Council,81024134,LM6,Nursing Care,P28,Adults & Council House Building,CRANHILL NURSING HOME LTD,11/10/2021,1524.8
Bath and North East Somerset Council,81024134,LM6,Nursing Care,P28,Adults & Council House Building,CRANHILL NURSING HOME LTD,11/10/2021,1750
Bath and North East Somerset Council,81024134,LM6,Nursing Care,P28,Adults & Council House Building,CRANHILL NURSING HOME LTD,11/10/2021,2400.54
Bath and North East Somerset Council,81024134,LM6,Nursing Care,P28,Adults & Council House Building,CRANHILL NURSING HOME LTD,11/10/2021,3360
Bath and North East Somerset Council,81024076,LM3,Residential Care,P28,Adults & Council House Building,CREAM HOLDING (TAUNTON) LTD,11/10/2021,5358.34
Bath and North East Somerset Council,81024065,LM3,Residential Care,P28,Adults & Council House Building,CREAM I LTD,11/10/2021,5531.84
Bath and North East Somerset Council,81024085,LM3,Residential Care,P28,Adults & Council House Building,CREAM III LTD,11/10/2021,5214.5
Bath and North East Somerset Council,81024184,LL3,Supported Living,P28,Adults & Council House Building,CRYSTAL CARE AND SUPPORT LTD,11/10/2021,3031.8
Bath and North East Somerset Council,81024011,LM6,Nursing Care,P28,Adults & Council House Building,CULVERHAY NURSING HOME,11/10/2021,375.2
Bath and North East Somerset Council,81024011,LM6,Nursing Care,P28,Adults & Council House Building,CULVERHAY NURSING HOME,11/10/2021,375.2
Bath and North East Somerset Council,81024011,LM6,Nursing Care,P28,Adults & Council House Building,CULVERHAY NURSING HOME,11/10/2021,375.2
Bath and North East Somerset Council,81024011,LM6,Nursing Care,P28,Adults & Council House Building,CULVERHAY NURSING HOME,11/10/2021,375.2
Bath and North East Somerset Council,81024011,LM6,Nursing Care,P28,Adults & Council House Building,CULVERHAY NURSING HOME,11/10/2021,375.2
Bath and North East Somerset Council,81024011,LM6,Nursing Care,P28,Adults & Council House Building,CULVERHAY NURSING HOME,11/10/2021,375.2
Bath and North East Somerset Council,81024011,LM6,Nursing Care,P28,Adults & Council House Building,CULVERHAY NURSING HOME,11/10/2021,375.2
Bath and North East Somerset Council,81024011,LM6,Nursing Care,P28,Adults & Council House Building,CULVERHAY NURSING HOME,11/10/2021,375.2
Bath and North East Somerset Council,81024011,LM6,Nursing Care,P28,Adults & Council House Building,CULVERHAY NURSING HOME,11/10/2021,375.2
Bath and North East Somerset Council,81024011,LM6,Nursing Care,P28,Adults & Council House Building,CULVERHAY NURSING HOME,11/10/2021,375.2
Bath and North East Somerset Council,81024011,LM6,Nursing Care,P28,Adults & Council House Building,CULVERHAY NURSING HOME,11/10/2021,375.2
Bath and North East Somerset Council,81024011,LM6,Nursing Care,P28,Adults & Council House Building,CULVERHAY NURSING HOME,11/10/2021,375.2
Bath and North East Somerset Council,81024011,LM6,Nursing Care,P28,Adults & Council House Building,CULVERHAY NURSING HOME,11/10/2021,375.2
Bath and North East Somerset Council,81024011,LM6,Nursing Care,P28,Adults & Council House Building,CULVERHAY NURSING HOME,11/10/2021,375.2
Bath and North East Somerset Council,81024011,LM6,Nursing Care,P28,Adults & Council House Building,CULVERHAY NURSING HOME,11/10/2021,375.2
Bath and North East Somerset Council,81024011,LM6,Nursing Care,P28,Adults & Council House Building,CULVERHAY NURSING HOME,11/10/2021,375.2
Bath and North East Somerset Council,81024011,LM6,Nursing Care,P28,Adults & Council House Building,CULVERHAY NURSING HOME,11/10/2021,375.2
Bath and North East Somerset Council,81024011,LM6,Nursing Care,P28,Adults & Council House Building,CULVERHAY NURSING HOME,11/10/2021,375.2
Bath and North East Somerset Council,81024011,LM6,Nursing Care,P28,Adults & Council House Building,CULVERHAY NURSING HOME,11/10/2021,375.2
Bath and North East Somerset Council,81024011,LM6,Nursing Care,P28,Adults & Council House Building,CULVERHAY NURSING HOME,11/10/2021,375.2
Bath and North East Somerset Council,81024011,LM6,Nursing Care,P28,Adults & Council House Building,CULVERHAY NURSING HOME,11/10/2021,375.2
Bath and North East Somerset Council,81024011,LM6,Nursing Care,P28,Adults & Council House Building,CULVERHAY NURSING HOME,11/10/2021,375.2
Bath and North East Somerset Council,81024011,LM6,Nursing Care,P28,Adults & Council House Building,CULVERHAY NURSING HOME,11/10/2021,375.2
Bath and North East Somerset Council,81024011,LM6,Nursing Care,P28,Adults & Council House Building,CULVERHAY NURSING HOME,11/10/2021,375.2
Bath and North East Somerset Council,81024011,LM6,Nursing Care,P28,Adults & Council House Building,CULVERHAY NURSING HOME,11/10/2021,375.2
Bath and North East Somerset Council,81024011,LM6,Nursing Care,P28,Adults & Council House Building,CULVERHAY NURSING HOME,11/10/2021,375.2
Bath and North East Somerset Council,81023400,LA7,Purchases for Resale,P26,Economic Development & Resources,MARY GOLDBERG,11/10/2021,469.75
Bath and North East Somerset Council,10981000,LJ4,Contracts,P05,Neighbourhood Services,RENTEQ TM (SOUTH WEST) LTD,11/10/2021,470
Bath and North East Somerset Council,81024011,LM6,Nursing Care,P28,Adults & Council House Building,CULVERHAY NURSING HOME,11/10/2021,375.2
Bath and North East Somerset Council,81024011,LM6,Nursing Care,P28,Adults & Council House Building,CULVERHAY NURSING HOME,11/10/2021,375.2
Bath and North East Somerset Council,81024011,LM6,Nursing Care,P28,Adults & Council House Building,CULVERHAY NURSING HOME,11/10/2021,375.2
Bath and North East Somerset Council,81024011,LM6,Nursing Care,P28,Adults & Council House Building,CULVERHAY NURSING HOME,11/10/2021,375.2
Bath and North East Somerset Council,81024182,LL3,Supported Living,P28,Adults & Council House Building,VIRGIN CARE SERVICES LTD,11/10/2021,479.7
Bath and North East Somerset Council,10981035,EA1,Training,P26,Economic Development & Resources,LGS TRANSPORT SERVICES LTD,11/10/2021,480
Bath and North East Somerset Council,81024011,LM6,Nursing Care,P28,Adults & Council House Building,CULVERHAY NURSING HOME,11/10/2021,375.2
Bath and North East Somerset Council,81024011,LM6,Nursing Care,P28,Adults & Council House Building,CULVERHAY NURSING HOME,11/10/2021,375.2
Bath and North East Somerset Council,81024011,LM6,Nursing Care,P28,Adults & Council House Building,CULVERHAY NURSING HOME,11/10/2021,375.2
Bath and North East Somerset Council,81024182,LL3,Supported Living,P28,Adults & Council House Building,VIRGIN CARE SERVICES LTD,11/10/2021,483.2
Bath and North East Somerset Council,81024011,LM6,Nursing Care,P28,Adults & Council House Building,CULVERHAY NURSING HOME,11/10/2021,375.2
Bath and North East Somerset Council,81024011,LM6,Nursing Care,P28,Adults & Council House Building,CULVERHAY NURSING HOME,11/10/2021,375.2
Bath and North East Somerset Council,81024011,LM6,Nursing Care,P28,Adults & Council House Building,CULVERHAY NURSING HOME,11/10/2021,375.2
Bath and North East Somerset Council,81024011,LM6,Nursing Care,P28,Adults & Council House Building,CULVERHAY NURSING HOME,11/10/2021,375.2
Bath and North East Somerset Council,81024011,LM6,Nursing Care,P28,Adults & Council House Building,CULVERHAY NURSING HOME,11/10/2021,375.2
Bath and North East Somerset Council,81024011,LM6,Nursing Care,P28,Adults & Council House Building,CULVERHAY NURSING HOME,11/10/2021,375.2
Bath and North East Somerset Council,81024011,LM6,Nursing Care,P28,Adults & Council House Building,CULVERHAY NURSING HOME,11/10/2021,375.2
Bath and North East Somerset Council,81024011,LM6,Nursing Care,P28,Adults & Council House Building,CULVERHAY NURSING HOME,11/10/2021,375.2
Bath and North East Somerset Council,81024011,LM6,Nursing Care,P28,Adults & Council House Building,CULVERHAY NURSING HOME,11/10/2021,375.2
Bath and North East Somerset Council,81024011,LM6,Nursing Care,P28,Adults & Council House Building,CULVERHAY NURSING HOME,11/10/2021,375.2
Bath and North East Somerset Council,81024011,LM6,Nursing Care,P28,Adults & Council House Building,CULVERHAY NURSING HOME,11/10/2021,375.2
Bath and North East Somerset Council,81024011,LM6,Nursing Care,P28,Adults & Council House Building,CULVERHAY NURSING HOME,11/10/2021,375.2
Bath and North East Somerset Council,81024011,LM6,Nursing Care,P28,Adults & Council House Building,CULVERHAY NURSING HOME,11/10/2021,375.2
Bath and North East Somerset Council,10980774,LP5,Software Support,P26,Economic Development & Resources,IDOX SOFTWARE LTD,11/10/2021,500
Bath and North East Somerset Council,10980935,LJ2,Legal Fees,P29,"Children & Young People, Communities & Culture",ST JOHNS REGULATORY FEE ACCOUNT,11/10/2021,500
Bath and North East Somerset Council,10980939,LJ2,Legal Fees,P29,"Children & Young People, Communities & Culture",MS L E REED PROFESSIONAL ACCOUNT,11/10/2021,500
Bath and North East Somerset Council,81024011,LM6,Nursing Care,P28,Adults & Council House Building,CULVERHAY NURSING HOME,11/10/2021,536
Bath and North East Somerset Council,81024136,LM6,Nursing Care,P28,Adults & Council House Building,CULVERHAY NURSING HOME,11/10/2021,544.44
Bath and North East Somerset Council,81024136,LM6,Nursing Care,P28,Adults & Council House Building,CULVERHAY NURSING HOME,11/10/2021,544.44
Bath and North East Somerset Council,81024136,LM6,Nursing Care,P28,Adults & Council House Building,CULVERHAY NURSING HOME,11/10/2021,544.44
Bath and North East Somerset Council,81024136,LM6,Nursing Care,P28,Adults & Council House Building,CULVERHAY NURSING HOME,11/10/2021,544.44
Bath and North East Somerset Council,81024136,LM6,Nursing Care,P28,Adults & Council House Building,CULVERHAY NURSING HOME,11/10/2021,544.44
Bath and North East Somerset Council,81024136,LM6,Nursing Care,P28,Adults & Council House Building,CULVERHAY NURSING HOME,11/10/2021,544.44
Bath and North East Somerset Council,81024136,LM6,Nursing Care,P28,Adults & Council House Building,CULVERHAY NURSING HOME,11/10/2021,544.44
Bath and North East Somerset Council,81024136,LM6,Nursing Care,P28,Adults & Council House Building,CULVERHAY NURSING HOME,11/10/2021,907.4
Bath and North East Somerset Council,81024136,LM6,Nursing Care,P28,Adults & Council House Building,CULVERHAY NURSING HOME,11/10/2021,907.4
Bath and North East Somerset Council,81024136,LM6,Nursing Care,P28,Adults & Council House Building,CULVERHAY NURSING HOME,11/10/2021,907.4
Bath and North East Somerset Council,81024136,LM6,Nursing Care,P28,Adults & Council House Building,CULVERHAY NURSING HOME,11/10/2021,907.4
Bath and North East Somerset Council,81024136,LM6,Nursing Care,P28,Adults & Council House Building,CULVERHAY NURSING HOME,11/10/2021,907.4
Bath and North East Somerset Council,81024136,LM6,Nursing Care,P28,Adults & Council House Building,CULVERHAY NURSING HOME,11/10/2021,907.4
Bath and North East Somerset Council,81024136,LM6,Nursing Care,P28,Adults & Council House Building,CULVERHAY NURSING HOME,11/10/2021,907.4
Bath and North East Somerset Council,81024136,LM6,Nursing Care,P28,Adults & Council House Building,CULVERHAY NURSING HOME,11/10/2021,907.4
Bath and North East Somerset Council,81024136,LM6,Nursing Care,P28,Adults & Council House Building,CULVERHAY NURSING HOME,11/10/2021,907.4
Bath and North East Somerset Council,81024136,LM6,Nursing Care,P28,Adults & Council House Building,CULVERHAY NURSING HOME,11/10/2021,907.4
Bath and North East Somerset Council,81024136,LM6,Nursing Care,P28,Adults & Council House Building,CULVERHAY NURSING HOME,11/10/2021,907.4
Bath and North East Somerset Council,81024136,LM6,Nursing Care,P28,Adults & Council House Building,CULVERHAY NURSING HOME,11/10/2021,907.4
Bath and North East Somerset Council,81024136,LM6,Nursing Care,P28,Adults & Council House Building,CULVERHAY NURSING HOME,11/10/2021,907.4
Bath and North East Somerset Council,81024136,LM6,Nursing Care,P28,Adults & Council House Building,CULVERHAY NURSING HOME,11/10/2021,907.4
Bath and North East Somerset Council,81024136,LM6,Nursing Care,P28,Adults & Council House Building,CULVERHAY NURSING HOME,11/10/2021,907.4
Bath and North East Somerset Council,81024136,LM6,Nursing Care,P28,Adults & Council House Building,CULVERHAY NURSING HOME,11/10/2021,907.4
Bath and North East Somerset Council,81023392,LA7,Purchases for Resale,P26,Economic Development & Resources,CHALICE MEAD LTD,11/10/2021,510
Bath and North East Somerset Council,81024136,LM6,Nursing Care,P28,Adults & Council House Building,CULVERHAY NURSING HOME,11/10/2021,1270.36
Bath and North East Somerset Council,81024136,LM6,Nursing Care,P28,Adults & Council House Building,CULVERHAY NURSING HOME,11/10/2021,1270.36
Bath and North East Somerset Council,81024136,LM6,Nursing Care,P28,Adults & Council House Building,CULVERHAY NURSING HOME,11/10/2021,1270.36
Bath and North East Somerset Council,81024136,LM6,Nursing Care,P28,Adults & Council House Building,CULVERHAY NURSING HOME,11/10/2021,1270.36
Bath and North East Somerset Council,81024136,LM6,Nursing Care,P28,Adults & Council House Building,CULVERHAY NURSING HOME,11/10/2021,1270.36
Bath and North East Somerset Council,81023384,LA7,Purchases for Resale,P26,Economic Development & Resources,DROYT PRODUCTS LTD,11/10/2021,519.67
Bath and North East Somerset Council,81024136,LM6,Nursing Care,P28,Adults & Council House Building,CULVERHAY NURSING HOME,11/10/2021,1270.36
Bath and North East Somerset Council,81024136,LM6,Nursing Care,P28,Adults & Council House Building,CULVERHAY NURSING HOME,11/10/2021,1270.36
Bath and North East Somerset Council,81024136,LM6,Nursing Care,P28,Adults & Council House Building,CULVERHAY NURSING HOME,11/10/2021,1814.8
Bath and North East Somerset Council,81024136,LM6,Nursing Care,P28,Adults & Council House Building,CULVERHAY NURSING HOME,11/10/2021,1814.8
Bath and North East Somerset Council,81024136,LM6,Nursing Care,P28,Adults & Council House Building,CULVERHAY NURSING HOME,11/10/2021,1814.8
Bath and North East Somerset Council,81024136,LM6,Nursing Care,P28,Adults & Council House Building,CULVERHAY NURSING HOME,11/10/2021,1814.8
Bath and North East Somerset Council,81024136,LM6,Nursing Care,P28,Adults & Council House Building,CULVERHAY NURSING HOME,11/10/2021,1814.8
Bath and North East Somerset Council,81024136,LM6,Nursing Care,P28,Adults & Council House Building,CULVERHAY NURSING HOME,11/10/2021,1814.8
Bath and North East Somerset Council,81024136,LM6,Nursing Care,P28,Adults & Council House Building,CULVERHAY NURSING HOME,11/10/2021,1814.8
Bath and North East Somerset Council,81024136,LM6,Nursing Care,P28,Adults & Council House Building,CULVERHAY NURSING HOME,11/10/2021,1814.8
Bath and North East Somerset Council,81024136,LM6,Nursing Care,P28,Adults & Council House Building,CULVERHAY NURSING HOME,11/10/2021,1814.8
Bath and North East Somerset Council,81024136,LM6,Nursing Care,P28,Adults & Council House Building,CULVERHAY NURSING HOME,11/10/2021,1814.8
Bath and North East Somerset Council,81024136,LM6,Nursing Care,P28,Adults & Council House Building,CULVERHAY NURSING HOME,11/10/2021,1814.8
Bath and North East Somerset Council,81024136,LM6,Nursing Care,P28,Adults & Council House Building,CULVERHAY NURSING HOME,11/10/2021,1814.8
Bath and North East Somerset Council,81024136,LM6,Nursing Care,P28,Adults & Council House Building,CULVERHAY NURSING HOME,11/10/2021,1814.8
Bath and North East Somerset Council,81024136,LM6,Nursing Care,P28,Adults & Council House Building,CULVERHAY NURSING HOME,11/10/2021,1814.8
Bath and North East Somerset Council,81024136,LM6,Nursing Care,P28,Adults & Council House Building,CULVERHAY NURSING HOME,11/10/2021,1814.8
Bath and North East Somerset Council,81024136,LM6,Nursing Care,P28,Adults & Council House Building,CULVERHAY NURSING HOME,11/10/2021,1814.8
Bath and North East Somerset Council,81024136,LM6,Nursing Care,P28,Adults & Council House Building,CULVERHAY NURSING HOME,11/10/2021,1814.8
Bath and North East Somerset Council,81024136,LM6,Nursing Care,P28,Adults & Council House Building,CULVERHAY NURSING HOME,11/10/2021,1814.8
Bath and North East Somerset Council,81024136,LM6,Nursing Care,P28,Adults & Council House Building,CULVERHAY NURSING HOME,11/10/2021,1814.8
Bath and North East Somerset Council,81024136,LM6,Nursing Care,P28,Adults & Council House Building,CULVERHAY NURSING HOME,11/10/2021,1814.8
Bath and North East Somerset Council,81024136,LM6,Nursing Care,P28,Adults & Council House Building,CULVERHAY NURSING HOME,11/10/2021,1814.8
Bath and North East Somerset Council,81024182,LL3,Supported Living,P28,Adults & Council House Building,VIRGIN CARE SERVICES LTD,11/10/2021,533
Bath and North East Somerset Council,81024182,LL3,Supported Living,P28,Adults & Council House Building,VIRGIN CARE SERVICES LTD,11/10/2021,533
Bath and North East Somerset Council,81024182,LL3,Supported Living,P28,Adults & Council House Building,VIRGIN CARE SERVICES LTD,11/10/2021,533
Bath and North East Somerset Council,10980922,LF1,Printing/Design,P26,Economic Development & Resources,RICOH UK LTD,11/10/2021,537.29
Bath and North East Somerset Council,81024182,LL3,Supported Living,P28,Adults & Council House Building,VIRGIN CARE SERVICES LTD,11/10/2021,540
Bath and North East Somerset Council,81024011,LM6,Nursing Care,P28,Adults & Council House Building,CULVERHAY NURSING HOME,11/10/2021,2599.6
Bath and North East Somerset Council,81024136,LM6,Nursing Care,P28,Adults & Council House Building,CULVERHAY NURSING HOME,11/10/2021,2661.52
Bath and North East Somerset Council,81024136,LM6,Nursing Care,P28,Adults & Council House Building,CULVERHAY NURSING HOME,11/10/2021,3629.6
Bath and North East Somerset Council,81024136,XD3,Client Contributions,P28,Adults & Council House Building,CULVERHAY NURSING HOME,11/10/2021,3768.55
Bath and North East Somerset Council,10980927,LM2,Foster Carer Allowances,P29,"Children & Young People, Communities & Culture",CAPSTONE FOSTER CARE (SOUTH WEST)  LTD,11/10/2021,544.73
Bath and North East Somerset Council,10980936,LJ2,Legal Fees,P29,"Children & Young People, Communities & Culture",ST JOHNS REGULATORY FEE ACCOUNT,11/10/2021,550
Bath and North East Somerset Council,81024125,LM3,Residential Care,P28,Adults & Council House Building,CYGNET CARE SERVICES LTS,11/10/2021,7028
Bath and North East Somerset Council,81024124,LM6,Nursing Care,P28,Adults & Council House Building,Cygnet Health Care Ltd,11/10/2021,5825.68
Bath and North East Somerset Council,81024111,LM6,Nursing Care,P28,Adults & Council House Building,CYGNET LEARNING DISABILITIES MIDLANDS LTD,11/10/2021,6249.88
Bath and North East Somerset Council,81023692,LL8,Individualised Budget,P28,Adults & Council House Building,REDACTED,11/10/2021,552.8
Bath and North East Somerset Council,81023418,LA7,Purchases for Resale,P26,Economic Development & Resources,S R MULLETT T/A BATH BOTANICS LTD,11/10/2021,564
Bath and North East Somerset Council,10981022,EA1,Training,P26,Economic Development & Resources,DH PEOPLE PLUS LTD,11/10/2021,565
Bath and North East Somerset Council,81023902,LL8,Individualised Budget,P28,Adults & Council House Building,REDACTED,11/10/2021,4395.62
Bath and North East Somerset Council,10980309,LK1,Fees,P29,"Children & Young People, Communities & Culture",JONATHAN DALLAS NEWTON,11/10/2021,570
Bath and North East Somerset Council,81024182,LL3,Supported Living,P28,Adults & Council House Building,VIRGIN CARE SERVICES LTD,11/10/2021,575.64
Bath and North East Somerset Council,81024157,LM3,Residential Care,P28,Adults & Council House Building,DAVID NERY LTD T/A BEECHCROFT RESIDENTIAL HOME,11/10/2021,1367.22
Bath and North East Somerset Council,81024157,LM3,Residential Care,P28,Adults & Council House Building,DAVID NERY LTD T/A BEECHCROFT RESIDENTIAL HOME,11/10/2021,1392.22
Bath and North East Somerset Council,10980841,LK1,Fees,P26,Economic Development & Resources,HARDSTAFF BARRIERS,11/10/2021,577.5
Bath and North East Somerset Council,81024157,LM3,Residential Care,P28,Adults & Council House Building,DAVID NERY LTD T/A BEECHCROFT RESIDENTIAL HOME,11/10/2021,1500
Bath and North East Somerset Council,81024157,LM3,Residential Care,P28,Adults & Council House Building,DAVID NERY LTD T/A BEECHCROFT RESIDENTIAL HOME,11/10/2021,15389.28
Bath and North East Somerset Council,81023623,LL8,Individualised Budget,P28,Adults & Council House Building,REDACTED,11/10/2021,4900.2
Bath and North East Somerset Council,10980728,HE2,General Maintenance Recharged,P28,Adults & Council House Building,ADT FIRE & SECURITY PLC,11/10/2021,584
Bath and North East Somerset Council,10980921,LF1,Printing/Design,P26,Economic Development & Resources,RICOH UK LTD,11/10/2021,584.99
Bath and North East Somerset Council,81024177,LL3,Supported Living,P28,Adults & Council House Building,DEVON SHELTERED HOMES TRUST,11/10/2021,1121.56
Bath and North East Somerset Council,81024189,LL3,Supported Living,P28,Adults & Council House Building,DIMENSIONS PERSONALISED SUPPORT LTD,11/10/2021,163.06
Bath and North East Somerset Council,10981060,HA2,Servicing,P26,Economic Development & Resources,TYCO FIRE & INTEGRATED SOLUTIONS (UK) LTD,11/10/2021,592
Bath and North East Somerset Council,81024189,LL3,Supported Living,P28,Adults & Council House Building,DIMENSIONS PERSONALISED SUPPORT LTD,11/10/2021,515
Bath and North East Somerset Council,81024189,LL3,Supported Living,P28,Adults & Council House Building,DIMENSIONS PERSONALISED SUPPORT LTD,11/10/2021,653.5
Bath and North East Somerset Council,81024189,LL3,Supported Living,P28,Adults & Council House Building,DIMENSIONS PERSONALISED SUPPORT LTD,11/10/2021,759.62
Bath and North East Somerset Council,81024166,LM3,Residential Care,P28,Adults & Council House Building,DIMENSIONS PERSONALISED SUPPORT LTD,11/10/2021,846.7
Bath and North East Somerset Council,81024189,LL3,Supported Living,P28,Adults & Council House Building,DIMENSIONS PERSONALISED SUPPORT LTD,11/10/2021,970.22
Bath and North East Somerset Council,81024189,LL3,Supported Living,P28,Adults & Council House Building,DIMENSIONS PERSONALISED SUPPORT LTD,11/10/2021,970.22
Bath and North East Somerset Council,81024189,LL3,Supported Living,P28,Adults & Council House Building,DIMENSIONS PERSONALISED SUPPORT LTD,11/10/2021,970.22
Bath and North East Somerset Council,81024189,LL3,Supported Living,P28,Adults & Council House Building,DIMENSIONS PERSONALISED SUPPORT LTD,11/10/2021,1000.12
Bath and North East Somerset Council,81024166,LM3,Residential Care,P28,Adults & Council House Building,DIMENSIONS PERSONALISED SUPPORT LTD,11/10/2021,1061.3
Bath and North East Somerset Council,81024189,LL3,Supported Living,P28,Adults & Council House Building,DIMENSIONS PERSONALISED SUPPORT LTD,11/10/2021,1061.96
Bath and North East Somerset Council,81024189,LL3,Supported Living,P28,Adults & Council House Building,DIMENSIONS PERSONALISED SUPPORT LTD,11/10/2021,1141.72
Bath and North East Somerset Council,81024189,LL3,Supported Living,P28,Adults & Council House Building,DIMENSIONS PERSONALISED SUPPORT LTD,11/10/2021,1162.12
